DepartmentFamily,Entity,Date,ExpenseType,ExpenseArea,Supplier,Transaction Number,Amount,VAT Registration Number
BEIS,The Insolvency Service,01/05/2019,Legal Costs,Legal Services Division,5 Paper Buildings Chambers,300008965,120.00,677825187
BEIS,The Insolvency Service,01/05/2019,Accomodation,Finance & Commercial,Avison Young,300009464,3216.78,894545868
BEIS,The Insolvency Service,01/05/2019,Accomodation,Finance & Commercial,Colliers International Property Consultants Ltd,300009486,4962.79,
BEIS,The Insolvency Service,01/05/2019,Computer & IT Systems,Strategy & Change,Edenred,30000097,-30100.00,
BEIS,The Insolvency Service,01/05/2019,Computer & IT Systems,Strategy & Change,Edenred,300009122,30100.00,
BEIS,The Insolvency Service,01/05/2019,Legal Costs,Official Receiver Services,Gowling Wragge Lawrence Graham  & Co,300009266,20873.93,858 698 838
BEIS,The Insolvency Service,07/05/2019,Agency Costs,Finance & Commercial,ALEXANDER MANN SOLUTIONS,300008253,60759.11,7444926120
BEIS,The Insolvency Service,07/05/2019,Computer & IT Systems,Strategy & Change,Insight Direct (UK) Ltd,300008180,107400.00,746075129
BEIS,The Insolvency Service,07/05/2019,Employee Related Costs,People & Capability,Smart Employee Eyecare,300008237,323.00,
BEIS,The Insolvency Service,07/05/2019,Travel and Subsistence,Business Service Division,Staff Payment,900008001,227.81,
BEIS,The Insolvency Service,07/05/2019,Travel and Subsistence,Investigations & Enforcement Services,Staff Payment,900008107,7.00,
BEIS,The Insolvency Service,07/05/2019,Travel and Subsistence,Investigations & Enforcement Services,Staff Payment,900008107,7.00,
BEIS,The Insolvency Service,07/05/2019,Travel and Subsistence,Business Service Division,Staff Payment,900008223,19.50,
BEIS,The Insolvency Service,07/05/2019,Travel and Subsistence,Business Service Division,Staff Payment,900008223,5.00,
BEIS,The Insolvency Service,07/05/2019,Travel and Subsistence,Business Service Division,Staff Payment,900008223,5.00,
BEIS,The Insolvency Service,07/05/2019,Travel and Subsistence,Business Service Division,Staff Payment,900008223,12.65,
BEIS,The Insolvency Service,07/05/2019,Travel and Subsistence,Business Service Division,Staff Payment,900008223,35.00,
BEIS,The Insolvency Service,07/05/2019,Travel and Subsistence,Business Service Division,Staff Payment,900008223,13.40,
BEIS,The Insolvency Service,07/05/2019,Travel and Subsistence,Business Service Division,Staff Payment,900008224,10.40,
BEIS,The Insolvency Service,07/05/2019,Travel and Subsistence,Business Service Division,Staff Payment,900008224,5.00,
BEIS,The Insolvency Service,07/05/2019,Travel and Subsistence,Business Service Division,Staff Payment,900008224,5.00,
BEIS,The Insolvency Service,07/05/2019,Travel and Subsistence,Business Service Division,Staff Payment,900008224,35.00,
BEIS,The Insolvency Service,07/05/2019,Travel and Subsistence,Business Service Division,Staff Payment,900008224,14.15,
BEIS,The Insolvency Service,07/05/2019,Travel and Subsistence,Business Service Division,Staff Payment,900008224,12.65,
BEIS,The Insolvency Service,07/05/2019,Travel and Subsistence,Business Service Division,Staff Payment,900008224,10.80,
BEIS,The Insolvency Service,07/05/2019,Travel and Subsistence,Chief Executive Office,Staff Payment,900008271,15.00,
BEIS,The Insolvency Service,07/05/2019,Travel and Subsistence,Chief Executive Office,Staff Payment,900008271,5.00,
BEIS,The Insolvency Service,07/05/2019,Travel and Subsistence,Chief Executive Office,Staff Payment,900008271,3.00,
BEIS,The Insolvency Service,07/05/2019,Travel and Subsistence,Investigations & Enforcement Services,Staff Payment,900008314,59.40,
BEIS,The Insolvency Service,07/05/2019,Travel and Subsistence,Investigations & Enforcement Services,Staff Payment,900008314,128.25,
BEIS,The Insolvency Service,07/05/2019,Travel and Subsistence,Investigations & Enforcement Services,Staff Payment,900008314,75.15,
BEIS,The Insolvency Service,07/05/2019,Travel and Subsistence,Investigations & Enforcement Services,Staff Payment,900008341,3.60,
BEIS,The Insolvency Service,07/05/2019,Travel and Subsistence,Investigations & Enforcement Services,Staff Payment,900008341,3.90,
BEIS,The Insolvency Service,07/05/2019,Travel and Subsistence,Investigations & Enforcement Services,Staff Payment,900008341,5.00,
BEIS,The Insolvency Service,07/05/2019,Travel and Subsistence,Investigations & Enforcement Services,Staff Payment,900008341,12.00,
BEIS,The Insolvency Service,07/05/2019,Travel and Subsistence,Investigations & Enforcement Services,Staff Payment,900008341,22.50,
BEIS,The Insolvency Service,07/05/2019,Travel and Subsistence,Investigations & Enforcement Services,Staff Payment,900008442,5.00,
BEIS,The Insolvency Service,07/05/2019,Travel and Subsistence,Investigations & Enforcement Services,Staff Payment,900008442,5.00,
BEIS,The Insolvency Service,07/05/2019,Travel and Subsistence,Investigations & Enforcement Services,Staff Payment,900008442,9.95,
BEIS,The Insolvency Service,07/05/2019,Travel and Subsistence,Legal Services Division,Staff Payment,900008443,199.80,
BEIS,The Insolvency Service,07/05/2019,Travel and Subsistence,Legal Services Division,Staff Payment,900008446,5.00,
BEIS,The Insolvency Service,07/05/2019,Travel and Subsistence,Legal Services Division,Staff Payment,900008446,10.00,
BEIS,The Insolvency Service,07/05/2019,Travel and Subsistence,Legal Services Division,Staff Payment,900008446,7.40,
BEIS,The Insolvency Service,07/05/2019,Travel and Subsistence,Legal Services Division,Staff Payment,900008447,3.95,
BEIS,The Insolvency Service,07/05/2019,Travel and Subsistence,Legal Services Division,Staff Payment,900008447,5.80,
BEIS,The Insolvency Service,07/05/2019,Travel and Subsistence,Legal Services Division,Staff Payment,900008448,11.10,
BEIS,The Insolvency Service,07/05/2019,Travel and Subsistence,Legal Services Division,Staff Payment,900008449,6.58,
BEIS,The Insolvency Service,07/05/2019,Travel and Subsistence,Legal Services Division,Staff Payment,900008450,3.50,
BEIS,The Insolvency Service,07/05/2019,Travel and Subsistence,Legal Services Division,Staff Payment,900008450,4.36,
BEIS,The Insolvency Service,07/05/2019,Travel and Subsistence,Investigations & Enforcement Services,Staff Payment,900008455,9.80,
BEIS,The Insolvency Service,07/05/2019,Travel and Subsistence,Investigations & Enforcement Services,Staff Payment,900008455,8.00,
BEIS,The Insolvency Service,07/05/2019,Travel and Subsistence,Official Receiver Services,Staff Payment,900008458,4.95,
BEIS,The Insolvency Service,07/05/2019,Travel and Subsistence,Official Receiver Services,Staff Payment,900008458,4.95,
BEIS,The Insolvency Service,07/05/2019,Travel and Subsistence,Official Receiver Services,Staff Payment,900008458,2.00,
BEIS,The Insolvency Service,07/05/2019,Travel and Subsistence,Business Service Division,Staff Payment,900008462,12.55,
BEIS,The Insolvency Service,07/05/2019,Travel and Subsistence,Business Service Division,Staff Payment,900008462,10.00,
BEIS,The Insolvency Service,07/05/2019,Travel and Subsistence,Official Receiver Services,Staff Payment,900008465,19.35,
BEIS,The Insolvency Service,07/05/2019,Travel and Subsistence,Investigations & Enforcement Services,Staff Payment,900008475,5.00,
BEIS,The Insolvency Service,07/05/2019,Travel and Subsistence,Investigations & Enforcement Services,Staff Payment,900008476,30.00,
BEIS,The Insolvency Service,07/05/2019,Travel and Subsistence,Investigations & Enforcement Services,Staff Payment,900008476,10.00,
BEIS,The Insolvency Service,07/05/2019,Travel and Subsistence,Investigations & Enforcement Services,Staff Payment,900008476,5.00,
BEIS,The Insolvency Service,07/05/2019,Travel and Subsistence,Investigations & Enforcement Services,Staff Payment,900008476,5.00,
BEIS,The Insolvency Service,07/05/2019,Travel and Subsistence,People & Capability,Staff Payment,900008484,3.35,
BEIS,The Insolvency Service,07/05/2019,Travel and Subsistence,People & Capability,Staff Payment,900008484,5.00,
BEIS,The Insolvency Service,07/05/2019,Travel and Subsistence,People & Capability,Staff Payment,900008484,6.30,
BEIS,The Insolvency Service,07/05/2019,Travel and Subsistence,People & Capability,Staff Payment,900008484,8.55,
BEIS,The Insolvency Service,07/05/2019,Travel and Subsistence,Investigations & Enforcement Services,Staff Payment,900008485,12.60,
BEIS,The Insolvency Service,07/05/2019,Travel and Subsistence,Investigations & Enforcement Services,Staff Payment,900008485,5.00,
BEIS,The Insolvency Service,07/05/2019,Travel and Subsistence,Investigations & Enforcement Services,Staff Payment,900008485,4.90,
BEIS,The Insolvency Service,07/05/2019,Travel and Subsistence,Investigations & Enforcement Services,Staff Payment,900008485,4.50,
BEIS,The Insolvency Service,07/05/2019,Travel and Subsistence,Business Service Division,Staff Payment,900008486,10.59,
BEIS,The Insolvency Service,07/05/2019,Travel and Subsistence,Business Service Division,Staff Payment,900008486,5.00,
BEIS,The Insolvency Service,07/05/2019,Travel and Subsistence,Investigations & Enforcement Services,Staff Payment,900008493,16.32,
BEIS,The Insolvency Service,08/05/2019,Legal Costs,Official Receiver Services,Burness Paull & Williamsons Solicitors,300009458,12500.65,216 2185 32
BEIS,The Insolvency Service,08/05/2019,Legal Costs,Official Receiver Services,Womble Bond Dickinson,300009275,3048.16,123 3926 27
BEIS,The Insolvency Service,10/05/2019,Computer & IT Systems,Information & Technology,Atos It Services Uk Ltd,300008443,757.70,232327983
BEIS,The Insolvency Service,10/05/2019,Computer & IT Systems,Strategy & Change,Atos It Services Uk Ltd,300008444,2756.79,232327983
BEIS,The Insolvency Service,10/05/2019,Computer & IT Systems,Information & Technology,Atos It Services Uk Ltd,300008445,1468.96,232327983
BEIS,The Insolvency Service,10/05/2019,Telephones,Information & Technology,Bt Conferencing Services,300008462,2437.16, 245 7193 48 000
BEIS,The Insolvency Service,10/05/2019,Accomodation,Finance & Commercial,GPA (c/o CRBE Ltd),300008394,41090.40,
BEIS,The Insolvency Service,10/05/2019,Training Costs,Official Receiver Services,Head Heart And Brain,300008236,900.00,
BEIS,The Insolvency Service,10/05/2019,Computer & IT Systems,Strategy & Change,Insight Direct (UK) Ltd,300008315,8351.65,746075129
BEIS,The Insolvency Service,10/05/2019,Postage,Business Service Division,Neopost Ltd,300008430,40450.00,
BEIS,The Insolvency Service,10/05/2019,Training Costs,Information & Technology,Ricardo AEA Limited,300008392,3000.00,212836524
BEIS,The Insolvency Service,10/05/2019,Training Costs,Information & Technology,Ricardo AEA Limited,300008393,3000.00,212836524
BEIS,The Insolvency Service,10/05/2019,Agency Costs,Finance & Commercial,SF RECRUITMENT LTD,300007229,3117.00,141 9659 92
BEIS,The Insolvency Service,10/05/2019,Travel and Subsistence,Business Service Division,Staff Payment,900008118,5.00,
BEIS,The Insolvency Service,10/05/2019,Travel and Subsistence,Business Service Division,Staff Payment,900008118,5.00,
BEIS,The Insolvency Service,10/05/2019,Travel and Subsistence,Business Service Division,Staff Payment,900008118,25.49,
BEIS,The Insolvency Service,10/05/2019,Travel and Subsistence,Business Service Division,Staff Payment,900008118,13.95,
BEIS,The Insolvency Service,10/05/2019,Travel and Subsistence,Chief Executive Office,Staff Payment,900008135,15.00,
BEIS,The Insolvency Service,10/05/2019,Travel and Subsistence,Official Receiver Services,Staff Payment,900008300,9.00,
BEIS,The Insolvency Service,10/05/2019,Travel and Subsistence,Official Receiver Services,Staff Payment,900008300,54.00,
BEIS,The Insolvency Service,10/05/2019,Travel and Subsistence,Strategy & Change,Staff Payment,900008320,5.00,
BEIS,The Insolvency Service,10/05/2019,Travel and Subsistence,Strategy & Change,Staff Payment,900008320,4.60,
BEIS,The Insolvency Service,10/05/2019,Travel and Subsistence,Strategy & Change,Staff Payment,900008320,5.00,
BEIS,The Insolvency Service,10/05/2019,Travel and Subsistence,Strategy & Change,Staff Payment,900008320,15.00,
BEIS,The Insolvency Service,10/05/2019,Travel and Subsistence,Strategy & Change,Staff Payment,900008321,4.60,
BEIS,The Insolvency Service,10/05/2019,Travel and Subsistence,Strategy & Change,Staff Payment,900008321,13.00,
BEIS,The Insolvency Service,10/05/2019,Travel and Subsistence,Strategy & Change,Staff Payment,900008321,5.00,
BEIS,The Insolvency Service,10/05/2019,Travel and Subsistence,Strategy & Change,Staff Payment,900008321,5.00,
BEIS,The Insolvency Service,10/05/2019,Travel and Subsistence,Strategy & Change,Staff Payment,900008330,6.40,
BEIS,The Insolvency Service,10/05/2019,Travel and Subsistence,Strategy & Change,Staff Payment,900008330,11.49,
BEIS,The Insolvency Service,10/05/2019,Travel and Subsistence,Strategy & Change,Staff Payment,900008330,14.50,
BEIS,The Insolvency Service,10/05/2019,Travel and Subsistence,Strategy & Change,Staff Payment,900008330,47.70,
BEIS,The Insolvency Service,10/05/2019,Travel and Subsistence,Strategy & Change,Staff Payment,900008330,47.70,
BEIS,The Insolvency Service,10/05/2019,Travel and Subsistence,Strategy & Change,Staff Payment,900008330,5.50,
BEIS,The Insolvency Service,10/05/2019,Travel and Subsistence,Strategy & Change,Staff Payment,900008330,51.30,
BEIS,The Insolvency Service,10/05/2019,Travel and Subsistence,Strategy & Change,Staff Payment,900008330,51.30,
BEIS,The Insolvency Service,10/05/2019,Travel and Subsistence,Strategy & Change,Staff Payment,900008330,15.00,
BEIS,The Insolvency Service,10/05/2019,Travel and Subsistence,Strategy & Change,Staff Payment,900008330,15.00,
BEIS,The Insolvency Service,10/05/2019,Travel and Subsistence,Strategy & Change,Staff Payment,900008330,102.15,
BEIS,The Insolvency Service,10/05/2019,Travel and Subsistence,Strategy & Change,Staff Payment,900008330,102.15,
BEIS,The Insolvency Service,10/05/2019,Travel and Subsistence,Official Receiver Services,Staff Payment,900008377,52.02,
BEIS,The Insolvency Service,10/05/2019,Travel and Subsistence,Strategy & Change,Staff Payment,900008407,4.80,
BEIS,The Insolvency Service,10/05/2019,Travel and Subsistence,Strategy & Change,Staff Payment,900008407,14.29,
BEIS,The Insolvency Service,10/05/2019,Travel and Subsistence,Strategy & Change,Staff Payment,900008408,5.00,
BEIS,The Insolvency Service,10/05/2019,Travel and Subsistence,Investigations & Enforcement Services,Staff Payment,900008461,2.40,
BEIS,The Insolvency Service,10/05/2019,Travel and Subsistence,Investigations & Enforcement Services,Staff Payment,900008461,17.00,
BEIS,The Insolvency Service,10/05/2019,Travel and Subsistence,Investigations & Enforcement Services,Staff Payment,900008461,4.70,
BEIS,The Insolvency Service,10/05/2019,Travel and Subsistence,Investigations & Enforcement Services,Staff Payment,900008461,2.75,
BEIS,The Insolvency Service,10/05/2019,Travel and Subsistence,Investigations & Enforcement Services,Staff Payment,900008461,30.00,
BEIS,The Insolvency Service,10/05/2019,Travel and Subsistence,Chief Executive Office,Staff Payment,900008477,2.40,
BEIS,The Insolvency Service,10/05/2019,Travel and Subsistence,Chief Executive Office,Staff Payment,900008477,2.40,
BEIS,The Insolvency Service,10/05/2019,Travel and Subsistence,Chief Executive Office,Staff Payment,900008477,2.40,
BEIS,The Insolvency Service,10/05/2019,Travel and Subsistence,Chief Executive Office,Staff Payment,900008477,2.40,
BEIS,The Insolvency Service,10/05/2019,Travel and Subsistence,Investigations & Enforcement Services,Staff Payment,900008505,4.06,
BEIS,The Insolvency Service,10/05/2019,Travel and Subsistence,Investigations & Enforcement Services,Staff Payment,900008506,10.30,
BEIS,The Insolvency Service,10/05/2019,Travel and Subsistence,Investigations & Enforcement Services,Staff Payment,900008507,2.79,
BEIS,The Insolvency Service,10/05/2019,Travel and Subsistence,Strategy & Change,Staff Payment,900008531,10.50,
BEIS,The Insolvency Service,10/05/2019,Travel and Subsistence,Strategy & Change,Staff Payment,900008531,15.00,
BEIS,The Insolvency Service,10/05/2019,Travel and Subsistence,Business Service Division,Staff Payment,900008541,8.00,
BEIS,The Insolvency Service,10/05/2019,Travel and Subsistence,Business Service Division,Staff Payment,900008541,14.74,
BEIS,The Insolvency Service,10/05/2019,Travel and Subsistence,Business Service Division,Staff Payment,900008541,5.00,
BEIS,The Insolvency Service,10/05/2019,Travel and Subsistence,Investigations & Enforcement Services,Staff Payment,900008553,14.00,
BEIS,The Insolvency Service,10/05/2019,Travel and Subsistence,Official Receiver Services,Staff Payment,900008554,8.10,
BEIS,The Insolvency Service,10/05/2019,Travel and Subsistence,Official Receiver Services,Staff Payment,900008554,1.00,
BEIS,The Insolvency Service,10/05/2019,Travel and Subsistence,Official Receiver Services,Staff Payment,900008555,3.60,
BEIS,The Insolvency Service,10/05/2019,Travel and Subsistence,Official Receiver Services,Staff Payment,900008555,15.30,
BEIS,The Insolvency Service,10/05/2019,Travel and Subsistence,Official Receiver Services,Staff Payment,900008556,3.60,
BEIS,The Insolvency Service,10/05/2019,Travel and Subsistence,Official Receiver Services,Staff Payment,900008556,15.30,
BEIS,The Insolvency Service,10/05/2019,Travel and Subsistence,Official Receiver Services,Staff Payment,900008557,5.00,
BEIS,The Insolvency Service,10/05/2019,Travel and Subsistence,Strategy & Change,Staff Payment,900008558,5.00,
BEIS,The Insolvency Service,10/05/2019,Travel and Subsistence,Strategy & Change,Staff Payment,900008558,13.00,
BEIS,The Insolvency Service,10/05/2019,Travel and Subsistence,Strategy & Change,Staff Payment,900008558,9.10,
BEIS,The Insolvency Service,10/05/2019,Travel and Subsistence,Investigations & Enforcement Services,Staff Payment,900008559,13.50,
BEIS,The Insolvency Service,10/05/2019,Travel and Subsistence,Investigations & Enforcement Services,Staff Payment,900008559,12.50,
BEIS,The Insolvency Service,10/05/2019,Travel and Subsistence,Investigations & Enforcement Services,Staff Payment,900008562,10.00,
BEIS,The Insolvency Service,10/05/2019,Travel and Subsistence,Investigations & Enforcement Services,Staff Payment,900008562,29.00,
BEIS,The Insolvency Service,10/05/2019,Travel and Subsistence,Investigations & Enforcement Services,Staff Payment,900008562,5.10,
BEIS,The Insolvency Service,10/05/2019,Travel and Subsistence,Investigations & Enforcement Services,Staff Payment,900008562,12.00,
BEIS,The Insolvency Service,10/05/2019,Travel and Subsistence,Investigations & Enforcement Services,Staff Payment,900008562,52.65,
BEIS,The Insolvency Service,10/05/2019,Travel and Subsistence,Investigations & Enforcement Services,Staff Payment,900008562,52.20,
BEIS,The Insolvency Service,10/05/2019,Travel and Subsistence,Legal Services Division,Staff Payment,900008563,133.20,
BEIS,The Insolvency Service,10/05/2019,Travel and Subsistence,Investigations & Enforcement Services,Staff Payment,900008564,3.70,
BEIS,The Insolvency Service,10/05/2019,Travel and Subsistence,Investigations & Enforcement Services,Staff Payment,900008564,5.00,
BEIS,The Insolvency Service,10/05/2019,Travel and Subsistence,Investigations & Enforcement Services,Staff Payment,900008564,14.89,
BEIS,The Insolvency Service,10/05/2019,Travel and Subsistence,Investigations & Enforcement Services,Staff Payment,900008564,5.00,
BEIS,The Insolvency Service,10/05/2019,Travel and Subsistence,Investigations & Enforcement Services,Staff Payment,900008564,4.69,
BEIS,The Insolvency Service,10/05/2019,Travel and Subsistence,Investigations & Enforcement Services,Staff Payment,900008567,4.00,
BEIS,The Insolvency Service,10/05/2019,Travel and Subsistence,Chief Executive Office,Staff Payment,900008568,5.00,
BEIS,The Insolvency Service,10/05/2019,Travel and Subsistence,Chief Executive Office,Staff Payment,900008568,5.00,
BEIS,The Insolvency Service,10/05/2019,Travel and Subsistence,Chief Executive Office,Staff Payment,900008568,30.00,
BEIS,The Insolvency Service,10/05/2019,Travel and Subsistence,Chief Executive Office,Staff Payment,900008568,10.00,
BEIS,The Insolvency Service,10/05/2019,Travel and Subsistence,Chief Executive Office,Staff Payment,900008568,10.00,
BEIS,The Insolvency Service,10/05/2019,Travel and Subsistence,Chief Executive Office,Staff Payment,900008568,13.02,
BEIS,The Insolvency Service,10/05/2019,Travel and Subsistence,Chief Executive Office,Staff Payment,900008568,15.00,
BEIS,The Insolvency Service,10/05/2019,Travel and Subsistence,Chief Executive Office,Staff Payment,900008568,5.00,
BEIS,The Insolvency Service,10/05/2019,Travel and Subsistence,Chief Executive Office,Staff Payment,900008568,7.00,
BEIS,The Insolvency Service,10/05/2019,Travel and Subsistence,Chief Executive Office,Staff Payment,900008568,5.00,
BEIS,The Insolvency Service,10/05/2019,Travel and Subsistence,Chief Executive Office,Staff Payment,900008568,9.00,
BEIS,The Insolvency Service,10/05/2019,Travel and Subsistence,Chief Executive Office,Staff Payment,900008568,5.00,
BEIS,The Insolvency Service,10/05/2019,Travel and Subsistence,Chief Executive Office,Staff Payment,900008568,30.00,
BEIS,The Insolvency Service,10/05/2019,Travel and Subsistence,Chief Executive Office,Staff Payment,900008568,12.00,
BEIS,The Insolvency Service,10/05/2019,Travel and Subsistence,Chief Executive Office,Staff Payment,900008578,205.00,
BEIS,The Insolvency Service,10/05/2019,Travel and Subsistence,Business Service Division,Staff Payment,900008589,4.50,
BEIS,The Insolvency Service,10/05/2019,Travel and Subsistence,Business Service Division,Staff Payment,900008589,5.00,
BEIS,The Insolvency Service,10/05/2019,Travel and Subsistence,Business Service Division,Staff Payment,900008589,4.90,
BEIS,The Insolvency Service,10/05/2019,Travel and Subsistence,Business Service Division,Staff Payment,900008589,4.90,
BEIS,The Insolvency Service,10/05/2019,Travel and Subsistence,Business Service Division,Staff Payment,900008589,15.00,
BEIS,The Insolvency Service,10/05/2019,Travel and Subsistence,Business Service Division,Staff Payment,900008589,16.00,
BEIS,The Insolvency Service,10/05/2019,Travel and Subsistence,Strategy & Change,Staff Payment,900008592,357.57,
BEIS,The Insolvency Service,10/05/2019,Travel and Subsistence,Strategy & Change,Staff Payment,900008592,5.00,
BEIS,The Insolvency Service,10/05/2019,Travel and Subsistence,Strategy & Change,Staff Payment,900008592,10.95,
BEIS,The Insolvency Service,10/05/2019,Travel and Subsistence,Strategy & Change,Staff Payment,900008592,5.00,
BEIS,The Insolvency Service,10/05/2019,Travel and Subsistence,Strategy & Change,Staff Payment,900008592,6.60,
BEIS,The Insolvency Service,10/05/2019,Travel and Subsistence,Strategy & Change,Staff Payment,900008592,5.00,
BEIS,The Insolvency Service,10/05/2019,Travel and Subsistence,Strategy & Change,Staff Payment,900008592,5.00,
BEIS,The Insolvency Service,10/05/2019,Travel and Subsistence,Strategy & Change,Staff Payment,900008592,7.40,
BEIS,The Insolvency Service,10/05/2019,Travel and Subsistence,Strategy & Change,Staff Payment,900008592,3.00,
BEIS,The Insolvency Service,10/05/2019,Travel and Subsistence,Strategy & Change,Staff Payment,900008593,5.00,
BEIS,The Insolvency Service,10/05/2019,Travel and Subsistence,Strategy & Change,Staff Payment,900008593,15.00,
BEIS,The Insolvency Service,10/05/2019,Travel and Subsistence,Strategy & Change,Staff Payment,900008593,7.24,
BEIS,The Insolvency Service,10/05/2019,Travel and Subsistence,Strategy & Change,Staff Payment,900008593,5.00,
BEIS,The Insolvency Service,10/05/2019,Travel and Subsistence,Strategy & Change,Staff Payment,900008593,5.00,
BEIS,The Insolvency Service,10/05/2019,Travel and Subsistence,Strategy & Change,Staff Payment,900008593,5.00,
BEIS,The Insolvency Service,10/05/2019,Travel and Subsistence,Strategy & Change,Staff Payment,900008594,5.00,
BEIS,The Insolvency Service,10/05/2019,Travel and Subsistence,Strategy & Change,Staff Payment,900008594,13.50,
BEIS,The Insolvency Service,10/05/2019,Travel and Subsistence,Strategy & Change,Staff Payment,900008595,5.65,
BEIS,The Insolvency Service,10/05/2019,Travel and Subsistence,Strategy & Change,Staff Payment,900008595,5.00,
BEIS,The Insolvency Service,10/05/2019,Travel and Subsistence,Strategy & Change,Staff Payment,900008595,5.00,
BEIS,The Insolvency Service,10/05/2019,Other Costs,Business Service Division,SUNDRY SUPPLIER,300007732,1225.65,
BEIS,The Insolvency Service,10/05/2019,Other Costs,Official Receiver Services,Thomson Reuters Professional Uk Ltd,300008391,46233.42,
BEIS,The Insolvency Service,10/05/2019,Other Costs,Investigations & Enforcement Services,Thomson Reuters Professional Uk Ltd,300008391,41880.58,
BEIS,The Insolvency Service,13/05/2019,Consultancy,Strategy & Change,Agilisys Ltd,300008278,73857.60,791 7117 13
BEIS,The Insolvency Service,13/05/2019,Agency Costs,Finance & Commercial,ALEXANDER MANN SOLUTIONS,300008478,67428.17,7444926120
BEIS,The Insolvency Service,13/05/2019,Legal Costs,Investigations & Enforcement Services,Appropriate Adult Service,300008307,111.00,861446224
BEIS,The Insolvency Service,13/05/2019,Accomodation,Finance & Commercial,Avison Young,300008243,1153.20,657 7195 90
BEIS,The Insolvency Service,13/05/2019,Accomodation,Finance & Commercial,Avison Young,300008244,707.81,657 7195 90
BEIS,The Insolvency Service,13/05/2019,Accomodation,Finance & Commercial,Avison Young,300008245,789.64,657 7195 90
BEIS,The Insolvency Service,13/05/2019,Accomodation,Finance & Commercial,Avison Young,300008246,2780.35,657 7195 90
BEIS,The Insolvency Service,13/05/2019,Accomodation,Finance & Commercial,Avison Young,300008247,13265.69,657 7195 90
BEIS,The Insolvency Service,13/05/2019,Accomodation,Finance & Commercial,Avison Young,300008248,1117.97,657 7195 90
BEIS,The Insolvency Service,13/05/2019,Accomodation,Finance & Commercial,Avison Young,300008249,36.00,657 7195 90
BEIS,The Insolvency Service,13/05/2019,Accomodation,Finance & Commercial,Avison Young,300008250,36.00,657 7195 90
BEIS,The Insolvency Service,13/05/2019,Accomodation,Finance & Commercial,Avison Young,300008251,1072.32,657 7195 90
BEIS,The Insolvency Service,13/05/2019,Accomodation,Finance & Commercial,Avison Young,300008351,681.53,657 7195 90
BEIS,The Insolvency Service,13/05/2019,Postage,Business Service Division,City Sprint Uk Ltd,300008308,153.50,997 3273 64
BEIS,The Insolvency Service,13/05/2019,Postage,Business Service Division,City Sprint Uk Ltd,300008309,29.00,997 3273 64
BEIS,The Insolvency Service,13/05/2019,Consultancy,Information & Technology,Concept Information Technology Ltd,300008136,2040.00,776147892
BEIS,The Insolvency Service,13/05/2019,Consultancy,Information & Technology,Concept Information Technology Ltd,300008313,2040.00,776147892
BEIS,The Insolvency Service,13/05/2019,Employee Related Costs,People & Capability,Dods Parlimentary Communications Ltd,300008254,4320.00,792067900
BEIS,The Insolvency Service,13/05/2019,Storage,Official Receiver Services,File Centre,300008279,300.90,885439474
BEIS,The Insolvency Service,13/05/2019,Storage,Official Receiver Services,File Centre,300008282,271.79,885439474
BEIS,The Insolvency Service,13/05/2019,Storage,Official Receiver Services,File Centre,300008283,300.90,885439474
BEIS,The Insolvency Service,13/05/2019,Computer & IT Systems,Information & Technology,Geoff Smith Associates Ltd,300008238,20513.21,813 0471 66
BEIS,The Insolvency Service,13/05/2019,Other Costs,Finance & Commercial,Government Internal Audit Agency,300008483,26631.60,
BEIS,The Insolvency Service,13/05/2019,Accomodation,Finance & Commercial,GPA (c/o CRBE Ltd),300008395,10272.60,
BEIS,The Insolvency Service,13/05/2019,Accomodation,Finance & Commercial,GPA (c/o CRBE Ltd),300008427,1798.14,
BEIS,The Insolvency Service,13/05/2019,Computer & IT Systems,Information & Technology,Ibm Uk Ltd,300008390,12270.60,107328000
BEIS,The Insolvency Service,13/05/2019,Computer & IT Systems,Information & Technology,Insight Direct (UK) Ltd,300008181,307656.92,746075129
BEIS,The Insolvency Service,13/05/2019,Computer & IT Systems,Information & Technology,Insight Direct (UK) Ltd,300008216,77556.98,746075129
BEIS,The Insolvency Service,13/05/2019,Training Costs,Official Receiver Services,Midlands Fraud Forum,300008415,65.00,
BEIS,The Insolvency Service,13/05/2019,Postage,Official Receiver Services,Natural England,300008239,3279.35,551065074
BEIS,The Insolvency Service,13/05/2019,Postage,Official Receiver Services,Natural England,300008240,6871.40,551065074
BEIS,The Insolvency Service,13/05/2019,Computer & IT Systems,Strategy & Change,Netcompany,300008287,71029.20, 171 8090 09
BEIS,The Insolvency Service,13/05/2019,Legal Costs,Investigations & Enforcement Services,Pitney Bowes Finance Limited,300008310,255.20,
BEIS,The Insolvency Service,13/05/2019,Accomodation,Finance & Commercial,Prydis Support Ltd,300008314,577.82,974841283
BEIS,The Insolvency Service,13/05/2019,Accomodation,Business Service Division,Restore Datashred,300008294,64.00,240193143
BEIS,The Insolvency Service,13/05/2019,Accomodation,Business Service Division,Restore Datashred,300008295,74.10,240193143
BEIS,The Insolvency Service,13/05/2019,Accomodation,Business Service Division,Restore Datashred,300008296,57.25,240193143
BEIS,The Insolvency Service,13/05/2019,Accomodation,Business Service Division,Restore Datashred,300008297,140.06,240193143
BEIS,The Insolvency Service,13/05/2019,Accomodation,Business Service Division,Restore Datashred,300008298,80.35,240193143
BEIS,The Insolvency Service,13/05/2019,Accomodation,Business Service Division,Restore Datashred,300008299,64.00,240193143
BEIS,The Insolvency Service,13/05/2019,Accomodation,Business Service Division,Restore Datashred,300008300,43.25,240193143
BEIS,The Insolvency Service,13/05/2019,Accomodation,Business Service Division,Restore Datashred,300008301,32.00,240193143
BEIS,The Insolvency Service,13/05/2019,Accomodation,Business Service Division,Restore Datashred,300008302,59.25,240193143
BEIS,The Insolvency Service,13/05/2019,Accomodation,Business Service Division,Restore Datashred,300008303,37.95,240193143
BEIS,The Insolvency Service,13/05/2019,Accomodation,Business Service Division,Restore Datashred,300008304,64.00,240193143
BEIS,The Insolvency Service,13/05/2019,Accomodation,Business Service Division,Restore Datashred,300008305,621.54,240193143
BEIS,The Insolvency Service,13/05/2019,Employee Related Costs,People & Capability,Right Corecare Ltd,300008219,577.88,
BEIS,The Insolvency Service,13/05/2019,Agency Costs,Finance & Commercial,SF RECRUITMENT LTD,300007443,3117.00,141 9659 92
BEIS,The Insolvency Service,13/05/2019,Other Costs,Investigations & Enforcement Services,Sirs (Europe) Ltd,300008228,2482.50,990 834 974
BEIS,The Insolvency Service,13/05/2019,Other Costs,Official Receiver Services,Sirs (Europe) Ltd,300008228,14895.00,990 834 974
BEIS,The Insolvency Service,13/05/2019,Other Costs,Investigations & Enforcement Services,Sirs (Europe) Ltd,300008228,2482.50,990 834 974
BEIS,The Insolvency Service,13/05/2019,Travel and Subsistence,Official Receiver Services,Staff Payment,900007814,6.00,
BEIS,The Insolvency Service,13/05/2019,Travel and Subsistence,Official Receiver Services,Staff Payment,900007814,47.70,
BEIS,The Insolvency Service,13/05/2019,Travel and Subsistence,Business Service Division,Staff Payment,900007879,4.50,
BEIS,The Insolvency Service,13/05/2019,Travel and Subsistence,Business Service Division,Staff Payment,900007879,1.70,
BEIS,The Insolvency Service,13/05/2019,Travel and Subsistence,Business Service Division,Staff Payment,900007879,6.20,
BEIS,The Insolvency Service,13/05/2019,Travel and Subsistence,Business Service Division,Staff Payment,900007879,4.60,
BEIS,The Insolvency Service,13/05/2019,Travel and Subsistence,Business Service Division,Staff Payment,900007879,12.10,
BEIS,The Insolvency Service,13/05/2019,Travel and Subsistence,Business Service Division,Staff Payment,900007879,15.00,
BEIS,The Insolvency Service,13/05/2019,Travel and Subsistence,Business Service Division,Staff Payment,900007879,51.29,
BEIS,The Insolvency Service,13/05/2019,Travel and Subsistence,Investigations & Enforcement Services,Staff Payment,900007957,39.60,
BEIS,The Insolvency Service,13/05/2019,Travel and Subsistence,Investigations & Enforcement Services,Staff Payment,900007957,21.06,
BEIS,The Insolvency Service,13/05/2019,Travel and Subsistence,Official Receiver Services,Staff Payment,900007985,78.10,
BEIS,The Insolvency Service,13/05/2019,Travel and Subsistence,Strategy & Change,Staff Payment,900008117,14.00,
BEIS,The Insolvency Service,13/05/2019,Travel and Subsistence,Investigations & Enforcement Services,Staff Payment,900008171,135.20,
BEIS,The Insolvency Service,13/05/2019,Travel and Subsistence,Investigations & Enforcement Services,Staff Payment,900008194,2.75,
BEIS,The Insolvency Service,13/05/2019,Travel and Subsistence,Investigations & Enforcement Services,Staff Payment,900008194,6.80,
BEIS,The Insolvency Service,13/05/2019,Travel and Subsistence,Investigations & Enforcement Services,Staff Payment,900008194,6.50,
BEIS,The Insolvency Service,13/05/2019,Travel and Subsistence,Investigations & Enforcement Services,Staff Payment,900008194,25.20,
BEIS,The Insolvency Service,13/05/2019,Travel and Subsistence,Investigations & Enforcement Services,Staff Payment,900008215,5.00,
BEIS,The Insolvency Service,13/05/2019,Travel and Subsistence,Official Receiver Services,Staff Payment,900008234,7.00,
BEIS,The Insolvency Service,13/05/2019,Travel and Subsistence,Official Receiver Services,Staff Payment,900008234,5.00,
BEIS,The Insolvency Service,13/05/2019,Travel and Subsistence,Information & Technology,Staff Payment,900008235,15.00,
BEIS,The Insolvency Service,13/05/2019,Travel and Subsistence,Information & Technology,Staff Payment,900008235,10.00,
BEIS,The Insolvency Service,13/05/2019,Travel and Subsistence,Information & Technology,Staff Payment,900008235,13.36,
BEIS,The Insolvency Service,13/05/2019,Travel and Subsistence,Information & Technology,Staff Payment,900008235,45.90,
BEIS,The Insolvency Service,13/05/2019,Travel and Subsistence,Information & Technology,Staff Payment,900008235,45.45,
BEIS,The Insolvency Service,13/05/2019,Travel and Subsistence,Finance & Commercial,Staff Payment,900008303,2.60,
BEIS,The Insolvency Service,13/05/2019,Travel and Subsistence,Finance & Commercial,Staff Payment,900008303,5.00,
BEIS,The Insolvency Service,13/05/2019,Travel and Subsistence,Finance & Commercial,Staff Payment,900008303,3.90,
BEIS,The Insolvency Service,13/05/2019,Travel and Subsistence,Finance & Commercial,Staff Payment,900008303,31.10,
BEIS,The Insolvency Service,13/05/2019,Travel and Subsistence,Finance & Commercial,Staff Payment,900008304,6.50,
BEIS,The Insolvency Service,13/05/2019,Travel and Subsistence,Finance & Commercial,Staff Payment,900008304,14.00,
BEIS,The Insolvency Service,13/05/2019,Travel and Subsistence,Finance & Commercial,Staff Payment,900008304,5.00,
BEIS,The Insolvency Service,13/05/2019,Travel and Subsistence,Finance & Commercial,Staff Payment,900008305,15.00,
BEIS,The Insolvency Service,13/05/2019,Travel and Subsistence,Finance & Commercial,Staff Payment,900008305,15.00,
BEIS,The Insolvency Service,13/05/2019,Travel and Subsistence,Finance & Commercial,Staff Payment,900008307,3.00,
BEIS,The Insolvency Service,13/05/2019,Travel and Subsistence,Finance & Commercial,Staff Payment,900008307,3.89,
BEIS,The Insolvency Service,13/05/2019,Travel and Subsistence,Finance & Commercial,Staff Payment,900008307,3.00,
BEIS,The Insolvency Service,13/05/2019,Travel and Subsistence,Finance & Commercial,Staff Payment,900008307,15.00,
BEIS,The Insolvency Service,13/05/2019,Travel and Subsistence,Finance & Commercial,Staff Payment,900008308,3.30,
BEIS,The Insolvency Service,13/05/2019,Travel and Subsistence,Finance & Commercial,Staff Payment,900008308,3.50,
BEIS,The Insolvency Service,13/05/2019,Travel and Subsistence,Finance & Commercial,Staff Payment,900008308,5.00,
BEIS,The Insolvency Service,13/05/2019,Travel and Subsistence,Finance & Commercial,Staff Payment,900008309,7.90,
BEIS,The Insolvency Service,13/05/2019,Travel and Subsistence,Finance & Commercial,Staff Payment,900008309,5.00,
BEIS,The Insolvency Service,13/05/2019,Travel and Subsistence,Finance & Commercial,Staff Payment,900008309,3.89,
BEIS,The Insolvency Service,13/05/2019,Travel and Subsistence,Finance & Commercial,Staff Payment,900008309,7.90,
BEIS,The Insolvency Service,13/05/2019,Travel and Subsistence,Investigations & Enforcement Services,Staff Payment,900008318,4.23,
BEIS,The Insolvency Service,13/05/2019,Travel and Subsistence,Investigations & Enforcement Services,Staff Payment,900008318,12.00,
BEIS,The Insolvency Service,13/05/2019,Travel and Subsistence,Business Service Division,Staff Payment,900008327,9.60,
BEIS,The Insolvency Service,13/05/2019,Travel and Subsistence,Business Service Division,Staff Payment,900008327,13.17,
BEIS,The Insolvency Service,13/05/2019,Travel and Subsistence,Business Service Division,Staff Payment,900008327,8.10,
BEIS,The Insolvency Service,13/05/2019,Travel and Subsistence,Business Service Division,Staff Payment,900008328,5.00,
BEIS,The Insolvency Service,13/05/2019,Travel and Subsistence,Business Service Division,Staff Payment,900008328,8.48,
BEIS,The Insolvency Service,13/05/2019,Travel and Subsistence,Strategy & Change,Staff Payment,900008338,2.40,
BEIS,The Insolvency Service,13/05/2019,Travel and Subsistence,Strategy & Change,Staff Payment,900008338,2.40,
BEIS,The Insolvency Service,13/05/2019,Travel and Subsistence,Strategy & Change,Staff Payment,900008338,25.65,
BEIS,The Insolvency Service,13/05/2019,Travel and Subsistence,Strategy & Change,Staff Payment,900008338,10.00,
BEIS,The Insolvency Service,13/05/2019,Travel and Subsistence,Strategy & Change,Staff Payment,900008338,3.14,
BEIS,The Insolvency Service,13/05/2019,Travel and Subsistence,Strategy & Change,Staff Payment,900008338,15.00,
BEIS,The Insolvency Service,13/05/2019,Travel and Subsistence,Strategy & Change,Staff Payment,900008338,36.00,
BEIS,The Insolvency Service,13/05/2019,Travel and Subsistence,Strategy & Change,Staff Payment,900008338,7.20,
BEIS,The Insolvency Service,13/05/2019,Travel and Subsistence,Strategy & Change,Staff Payment,900008338,7.20,
BEIS,The Insolvency Service,13/05/2019,Travel and Subsistence,Investigations & Enforcement Services,Staff Payment,900008353,5.00,
BEIS,The Insolvency Service,13/05/2019,Travel and Subsistence,Official Receiver Services,Staff Payment,900008367,12.50,
BEIS,The Insolvency Service,13/05/2019,Travel and Subsistence,Official Receiver Services,Staff Payment,900008367,30.60,
BEIS,The Insolvency Service,13/05/2019,Travel and Subsistence,Official Receiver Services,Staff Payment,900008368,12.50,
BEIS,The Insolvency Service,13/05/2019,Travel and Subsistence,Official Receiver Services,Staff Payment,900008368,30.60,
BEIS,The Insolvency Service,13/05/2019,Travel and Subsistence,Official Receiver Services,Staff Payment,900008370,15.00,
BEIS,The Insolvency Service,13/05/2019,Travel and Subsistence,Official Receiver Services,Staff Payment,900008371,15.00,
BEIS,The Insolvency Service,13/05/2019,Travel and Subsistence,Investigations & Enforcement Services,Staff Payment,900008384,5.00,
BEIS,The Insolvency Service,13/05/2019,Travel and Subsistence,Official Receiver Services,Staff Payment,900008388,4.70,
BEIS,The Insolvency Service,13/05/2019,Travel and Subsistence,Official Receiver Services,Staff Payment,900008388,28.80,
BEIS,The Insolvency Service,13/05/2019,Travel and Subsistence,Official Receiver Services,Staff Payment,900008388,10.00,
BEIS,The Insolvency Service,13/05/2019,Travel and Subsistence,Official Receiver Services,Staff Payment,900008390,5.00,
BEIS,The Insolvency Service,13/05/2019,Travel and Subsistence,Official Receiver Services,Staff Payment,900008390,12.75,
BEIS,The Insolvency Service,13/05/2019,Travel and Subsistence,Official Receiver Services,Staff Payment,900008390,15.00,
BEIS,The Insolvency Service,13/05/2019,Travel and Subsistence,Official Receiver Services,Staff Payment,900008391,5.00,
BEIS,The Insolvency Service,13/05/2019,Travel and Subsistence,Finance & Commercial,Staff Payment,900008394,6.48,
BEIS,The Insolvency Service,13/05/2019,Travel and Subsistence,Finance & Commercial,Staff Payment,900008394,3.00,
BEIS,The Insolvency Service,13/05/2019,Travel and Subsistence,Finance & Commercial,Staff Payment,900008394,4.07,
BEIS,The Insolvency Service,13/05/2019,Travel and Subsistence,Official Receiver Services,Staff Payment,900008395,149.00,
BEIS,The Insolvency Service,13/05/2019,Travel and Subsistence,Official Receiver Services,Staff Payment,900008397,15.00,
BEIS,The Insolvency Service,13/05/2019,Travel and Subsistence,Official Receiver Services,Staff Payment,900008413,5.00,
BEIS,The Insolvency Service,13/05/2019,Travel and Subsistence,Business Service Division,Staff Payment,900008414,2.40,
BEIS,The Insolvency Service,13/05/2019,Travel and Subsistence,Business Service Division,Staff Payment,900008414,15.00,
BEIS,The Insolvency Service,13/05/2019,Travel and Subsistence,Business Service Division,Staff Payment,900008414,5.00,
BEIS,The Insolvency Service,13/05/2019,Travel and Subsistence,Business Service Division,Staff Payment,900008414,5.00,
BEIS,The Insolvency Service,13/05/2019,Travel and Subsistence,Finance & Commercial,Staff Payment,900008416,42.28,
BEIS,The Insolvency Service,13/05/2019,Travel and Subsistence,Finance & Commercial,Staff Payment,900008416,6.00,
BEIS,The Insolvency Service,13/05/2019,Travel and Subsistence,Official Receiver Services,Staff Payment,900008417,51.84,
BEIS,The Insolvency Service,13/05/2019,Travel and Subsistence,Official Receiver Services,Staff Payment,900008417,55.28,
BEIS,The Insolvency Service,13/05/2019,Travel and Subsistence,Investigations & Enforcement Services,Staff Payment,900008418,5.00,
BEIS,The Insolvency Service,13/05/2019,Travel and Subsistence,Investigations & Enforcement Services,Staff Payment,900008419,4.34,
BEIS,The Insolvency Service,13/05/2019,Travel and Subsistence,Investigations & Enforcement Services,Staff Payment,900008420,5.00,
BEIS,The Insolvency Service,13/05/2019,Travel and Subsistence,Investigations & Enforcement Services,Staff Payment,900008421,5.00,
BEIS,The Insolvency Service,13/05/2019,Travel and Subsistence,Investigations & Enforcement Services,Staff Payment,900008422,5.00,
BEIS,The Insolvency Service,13/05/2019,Travel and Subsistence,Investigations & Enforcement Services,Staff Payment,900008423,5.00,
BEIS,The Insolvency Service,13/05/2019,Travel and Subsistence,Official Receiver Services,Staff Payment,900008424,14.40,
BEIS,The Insolvency Service,13/05/2019,Travel and Subsistence,Strategy & Change,Staff Payment,900008425,3.14,
BEIS,The Insolvency Service,13/05/2019,Travel and Subsistence,Strategy & Change,Staff Payment,900008425,5.00,
BEIS,The Insolvency Service,13/05/2019,Travel and Subsistence,Strategy & Change,Staff Payment,900008425,7.20,
BEIS,The Insolvency Service,13/05/2019,Travel and Subsistence,Strategy & Change,Staff Payment,900008425,12.00,
BEIS,The Insolvency Service,13/05/2019,Travel and Subsistence,Official Receiver Services,Staff Payment,900008426,153.00,
BEIS,The Insolvency Service,13/05/2019,Travel and Subsistence,Official Receiver Services,Staff Payment,900008428,5.00,
BEIS,The Insolvency Service,13/05/2019,Travel and Subsistence,Official Receiver Services,Staff Payment,900008428,5.00,
BEIS,The Insolvency Service,13/05/2019,Travel and Subsistence,Official Receiver Services,Staff Payment,900008428,15.00,
BEIS,The Insolvency Service,13/05/2019,Travel and Subsistence,Official Receiver Services,Staff Payment,900008428,5.00,
BEIS,The Insolvency Service,13/05/2019,Travel and Subsistence,Official Receiver Services,Staff Payment,900008428,12.00,
BEIS,The Insolvency Service,13/05/2019,Travel and Subsistence,Official Receiver Services,Staff Payment,900008428,5.70,
BEIS,The Insolvency Service,13/05/2019,Travel and Subsistence,Official Receiver Services,Staff Payment,900008429,8.10,
BEIS,The Insolvency Service,13/05/2019,Travel and Subsistence,Investigations & Enforcement Services,Staff Payment,900008431,10.00,
BEIS,The Insolvency Service,13/05/2019,Travel and Subsistence,Investigations & Enforcement Services,Staff Payment,900008431,4.94,
BEIS,The Insolvency Service,13/05/2019,Travel and Subsistence,Investigations & Enforcement Services,Staff Payment,900008432,25.00,
BEIS,The Insolvency Service,13/05/2019,Travel and Subsistence,Investigations & Enforcement Services,Staff Payment,900008432,5.00,
BEIS,The Insolvency Service,13/05/2019,Travel and Subsistence,Investigations & Enforcement Services,Staff Payment,900008432,5.00,
BEIS,The Insolvency Service,13/05/2019,Travel and Subsistence,Investigations & Enforcement Services,Staff Payment,900008432,5.00,
BEIS,The Insolvency Service,13/05/2019,Travel and Subsistence,Investigations & Enforcement Services,Staff Payment,900008435,12.80,
BEIS,The Insolvency Service,13/05/2019,Travel and Subsistence,Investigations & Enforcement Services,Staff Payment,900008435,5.00,
BEIS,The Insolvency Service,13/05/2019,Travel and Subsistence,Investigations & Enforcement Services,Staff Payment,900008435,94.50,
BEIS,The Insolvency Service,13/05/2019,Travel and Subsistence,Investigations & Enforcement Services,Staff Payment,900008435,2.40,
BEIS,The Insolvency Service,13/05/2019,Travel and Subsistence,Investigations & Enforcement Services,Staff Payment,900008435,36.90,
BEIS,The Insolvency Service,13/05/2019,Travel and Subsistence,Investigations & Enforcement Services,Staff Payment,900008436,5.00,
BEIS,The Insolvency Service,13/05/2019,Travel and Subsistence,Investigations & Enforcement Services,Staff Payment,900008436,5.00,
BEIS,The Insolvency Service,13/05/2019,Travel and Subsistence,Investigations & Enforcement Services,Staff Payment,900008436,9.45,
BEIS,The Insolvency Service,13/05/2019,Travel and Subsistence,Investigations & Enforcement Services,Staff Payment,900008436,19.04,
BEIS,The Insolvency Service,13/05/2019,Travel and Subsistence,Investigations & Enforcement Services,Staff Payment,900008436,5.00,
BEIS,The Insolvency Service,13/05/2019,Travel and Subsistence,Investigations & Enforcement Services,Staff Payment,900008436,11.90,
BEIS,The Insolvency Service,13/05/2019,Travel and Subsistence,Investigations & Enforcement Services,Staff Payment,900008436,3.70,
BEIS,The Insolvency Service,13/05/2019,Travel and Subsistence,Investigations & Enforcement Services,Staff Payment,900008436,3.00,
BEIS,The Insolvency Service,13/05/2019,Travel and Subsistence,Investigations & Enforcement Services,Staff Payment,900008436,32.40,
BEIS,The Insolvency Service,13/05/2019,Travel and Subsistence,Investigations & Enforcement Services,Staff Payment,900008436,34.20,
BEIS,The Insolvency Service,13/05/2019,Travel and Subsistence,Investigations & Enforcement Services,Staff Payment,900008436,53.10,
BEIS,The Insolvency Service,13/05/2019,Travel and Subsistence,Investigations & Enforcement Services,Staff Payment,900008436,35.10,
BEIS,The Insolvency Service,13/05/2019,Travel and Subsistence,Investigations & Enforcement Services,Staff Payment,900008436,20.70,
BEIS,The Insolvency Service,13/05/2019,Travel and Subsistence,Investigations & Enforcement Services,Staff Payment,900008436,36.90,
BEIS,The Insolvency Service,13/05/2019,Travel and Subsistence,Investigations & Enforcement Services,Staff Payment,900008436,38.70,
BEIS,The Insolvency Service,13/05/2019,Travel and Subsistence,Investigations & Enforcement Services,Staff Payment,900008438,2.80,
BEIS,The Insolvency Service,13/05/2019,Travel and Subsistence,Investigations & Enforcement Services,Staff Payment,900008439,2.70,
BEIS,The Insolvency Service,13/05/2019,Travel and Subsistence,Investigations & Enforcement Services,Staff Payment,900008439,4.95,
BEIS,The Insolvency Service,13/05/2019,Travel and Subsistence,Investigations & Enforcement Services,Staff Payment,900008439,1.35,
BEIS,The Insolvency Service,13/05/2019,Travel and Subsistence,Official Receiver Services,Staff Payment,900008440,5.00,
BEIS,The Insolvency Service,13/05/2019,Travel and Subsistence,Official Receiver Services,Staff Payment,900008440,5.00,
BEIS,The Insolvency Service,13/05/2019,Travel and Subsistence,Business Service Division,Staff Payment,900008444,7.00,
BEIS,The Insolvency Service,13/05/2019,Travel and Subsistence,Business Service Division,Staff Payment,900008444,6.60,
BEIS,The Insolvency Service,13/05/2019,Travel and Subsistence,Finance & Commercial,Staff Payment,900008445,2.20,
BEIS,The Insolvency Service,13/05/2019,Travel and Subsistence,Finance & Commercial,Staff Payment,900008445,1.10,
BEIS,The Insolvency Service,13/05/2019,Travel and Subsistence,Finance & Commercial,Staff Payment,900008445,2.30,
BEIS,The Insolvency Service,13/05/2019,Travel and Subsistence,Investigations & Enforcement Services,Staff Payment,900008451,4.80,
BEIS,The Insolvency Service,13/05/2019,Travel and Subsistence,Investigations & Enforcement Services,Staff Payment,900008451,4.80,
BEIS,The Insolvency Service,13/05/2019,Travel and Subsistence,Investigations & Enforcement Services,Staff Payment,900008451,4.80,
BEIS,The Insolvency Service,13/05/2019,Travel and Subsistence,Investigations & Enforcement Services,Staff Payment,900008452,5.00,
BEIS,The Insolvency Service,13/05/2019,Travel and Subsistence,Chief Executive Office,Staff Payment,900008460,44.99,
BEIS,The Insolvency Service,13/05/2019,Travel and Subsistence,Chief Executive Office,Staff Payment,900008460,3.80,
BEIS,The Insolvency Service,13/05/2019,Travel and Subsistence,Chief Executive Office,Staff Payment,900008460,2.40,
BEIS,The Insolvency Service,13/05/2019,Travel and Subsistence,Chief Executive Office,Staff Payment,900008460,5.00,
BEIS,The Insolvency Service,13/05/2019,Travel and Subsistence,Chief Executive Office,Staff Payment,900008460,15.00,
BEIS,The Insolvency Service,13/05/2019,Travel and Subsistence,Chief Executive Office,Staff Payment,900008460,5.00,
BEIS,The Insolvency Service,13/05/2019,Travel and Subsistence,Investigations & Enforcement Services,Staff Payment,900008463,14.00,
BEIS,The Insolvency Service,13/05/2019,Travel and Subsistence,Official Receiver Services,Staff Payment,900008464,149.00,
BEIS,The Insolvency Service,13/05/2019,Travel and Subsistence,Investigations & Enforcement Services,Staff Payment,900008466,5.00,
BEIS,The Insolvency Service,13/05/2019,Travel and Subsistence,Investigations & Enforcement Services,Staff Payment,900008467,2.80,
BEIS,The Insolvency Service,13/05/2019,Travel and Subsistence,Official Receiver Services,Staff Payment,900008468,4.09,
BEIS,The Insolvency Service,13/05/2019,Travel and Subsistence,Official Receiver Services,Staff Payment,900008472,5.00,
BEIS,The Insolvency Service,13/05/2019,Travel and Subsistence,Official Receiver Services,Staff Payment,900008472,6.50,
BEIS,The Insolvency Service,13/05/2019,Travel and Subsistence,Investigations & Enforcement Services,Staff Payment,900008473,2.90,
BEIS,The Insolvency Service,13/05/2019,Travel and Subsistence,Investigations & Enforcement Services,Staff Payment,900008473,2.40,
BEIS,The Insolvency Service,13/05/2019,Travel and Subsistence,Investigations & Enforcement Services,Staff Payment,900008473,4.70,
BEIS,The Insolvency Service,13/05/2019,Travel and Subsistence,Official Receiver Services,Staff Payment,900008474,11.80,
BEIS,The Insolvency Service,13/05/2019,Travel and Subsistence,Official Receiver Services,Staff Payment,900008479,18.90,
BEIS,The Insolvency Service,13/05/2019,Travel and Subsistence,Official Receiver Services,Staff Payment,900008479,70.20,
BEIS,The Insolvency Service,13/05/2019,Travel and Subsistence,Official Receiver Services,Staff Payment,900008479,3.50,
BEIS,The Insolvency Service,13/05/2019,Travel and Subsistence,Official Receiver Services,Staff Payment,900008479,7.65,
BEIS,The Insolvency Service,13/05/2019,Travel and Subsistence,Official Receiver Services,Staff Payment,900008479,4.00,
BEIS,The Insolvency Service,13/05/2019,Travel and Subsistence,Official Receiver Services,Staff Payment,900008479,17.15,
BEIS,The Insolvency Service,13/05/2019,Travel and Subsistence,Strategy & Change,Staff Payment,900008482,4.80,
BEIS,The Insolvency Service,13/05/2019,Travel and Subsistence,Strategy & Change,Staff Payment,900008482,4.70,
BEIS,The Insolvency Service,13/05/2019,Travel and Subsistence,Strategy & Change,Staff Payment,900008482,5.00,
BEIS,The Insolvency Service,13/05/2019,Travel and Subsistence,Business Service Division,Staff Payment,900008487,34.95,
BEIS,The Insolvency Service,13/05/2019,Travel and Subsistence,Business Service Division,Staff Payment,900008487,8.50,
BEIS,The Insolvency Service,13/05/2019,Travel and Subsistence,Business Service Division,Staff Payment,900008487,8.50,
BEIS,The Insolvency Service,13/05/2019,Travel and Subsistence,Business Service Division,Staff Payment,900008487,14.50,
BEIS,The Insolvency Service,13/05/2019,Travel and Subsistence,Business Service Division,Staff Payment,900008487,144.70,
BEIS,The Insolvency Service,13/05/2019,Travel and Subsistence,Business Service Division,Staff Payment,900008487,20.50,
BEIS,The Insolvency Service,13/05/2019,Travel and Subsistence,Business Service Division,Staff Payment,900008487,20.00,
BEIS,The Insolvency Service,13/05/2019,Travel and Subsistence,Business Service Division,Staff Payment,900008487,15.00,
BEIS,The Insolvency Service,13/05/2019,Travel and Subsistence,Business Service Division,Staff Payment,900008487,15.00,
BEIS,The Insolvency Service,13/05/2019,Travel and Subsistence,Business Service Division,Staff Payment,900008487,15.00,
BEIS,The Insolvency Service,13/05/2019,Travel and Subsistence,Business Service Division,Staff Payment,900008487,15.00,
BEIS,The Insolvency Service,13/05/2019,Travel and Subsistence,Business Service Division,Staff Payment,900008487,20.00,
BEIS,The Insolvency Service,13/05/2019,Travel and Subsistence,Business Service Division,Staff Payment,900008487,5.00,
BEIS,The Insolvency Service,13/05/2019,Travel and Subsistence,Business Service Division,Staff Payment,900008487,5.00,
BEIS,The Insolvency Service,13/05/2019,Travel and Subsistence,Business Service Division,Staff Payment,900008487,10.00,
BEIS,The Insolvency Service,13/05/2019,Travel and Subsistence,Business Service Division,Staff Payment,900008487,15.00,
BEIS,The Insolvency Service,13/05/2019,Travel and Subsistence,Business Service Division,Staff Payment,900008487,15.00,
BEIS,The Insolvency Service,13/05/2019,Travel and Subsistence,Business Service Division,Staff Payment,900008487,5.00,
BEIS,The Insolvency Service,13/05/2019,Travel and Subsistence,Business Service Division,Staff Payment,900008487,5.00,
BEIS,The Insolvency Service,13/05/2019,Travel and Subsistence,Business Service Division,Staff Payment,900008487,18.00,
BEIS,The Insolvency Service,13/05/2019,Travel and Subsistence,Business Service Division,Staff Payment,900008487,18.00,
BEIS,The Insolvency Service,13/05/2019,Travel and Subsistence,Investigations & Enforcement Services,Staff Payment,900008488,3.50,
BEIS,The Insolvency Service,13/05/2019,Travel and Subsistence,Investigations & Enforcement Services,Staff Payment,900008488,1.44,
BEIS,The Insolvency Service,13/05/2019,Travel and Subsistence,Investigations & Enforcement Services,Staff Payment,900008488,13.90,
BEIS,The Insolvency Service,13/05/2019,Travel and Subsistence,Business Service Division,Staff Payment,900008490,7.99,
BEIS,The Insolvency Service,13/05/2019,Travel and Subsistence,Business Service Division,Staff Payment,900008490,5.00,
BEIS,The Insolvency Service,13/05/2019,Travel and Subsistence,Strategy & Change,Staff Payment,900008492,7.70,
BEIS,The Insolvency Service,13/05/2019,Travel and Subsistence,Chief Executive Office,Staff Payment,900008494,3.10,
BEIS,The Insolvency Service,13/05/2019,Travel and Subsistence,Chief Executive Office,Staff Payment,900008494,5.00,
BEIS,The Insolvency Service,13/05/2019,Travel and Subsistence,Chief Executive Office,Staff Payment,900008494,3.35,
BEIS,The Insolvency Service,13/05/2019,Travel and Subsistence,Chief Executive Office,Staff Payment,900008494,4.80,
BEIS,The Insolvency Service,13/05/2019,Travel and Subsistence,Chief Executive Office,Staff Payment,900008494,2.40,
BEIS,The Insolvency Service,13/05/2019,Travel and Subsistence,Chief Executive Office,Staff Payment,900008494,2.40,
BEIS,The Insolvency Service,13/05/2019,Travel and Subsistence,Chief Executive Office,Staff Payment,900008494,3.10,
BEIS,The Insolvency Service,13/05/2019,Travel and Subsistence,Chief Executive Office,Staff Payment,900008494,5.00,
BEIS,The Insolvency Service,13/05/2019,Travel and Subsistence,Chief Executive Office,Staff Payment,900008494,5.00,
BEIS,The Insolvency Service,13/05/2019,Travel and Subsistence,Chief Executive Office,Staff Payment,900008494,9.95,
BEIS,The Insolvency Service,13/05/2019,Travel and Subsistence,Chief Executive Office,Staff Payment,900008494,5.00,
BEIS,The Insolvency Service,13/05/2019,Travel and Subsistence,Chief Executive Office,Staff Payment,900008494,11.05,
BEIS,The Insolvency Service,13/05/2019,Travel and Subsistence,Chief Executive Office,Staff Payment,900008494,4.64,
BEIS,The Insolvency Service,13/05/2019,Travel and Subsistence,Chief Executive Office,Staff Payment,900008494,4.55,
BEIS,The Insolvency Service,13/05/2019,Travel and Subsistence,Chief Executive Office,Staff Payment,900008494,14.95,
BEIS,The Insolvency Service,13/05/2019,Travel and Subsistence,Strategy & Change,Staff Payment,900008495,42.20,
BEIS,The Insolvency Service,13/05/2019,Travel and Subsistence,Investigations & Enforcement Services,Staff Payment,900008496,5.50,
BEIS,The Insolvency Service,13/05/2019,Travel and Subsistence,Investigations & Enforcement Services,Staff Payment,900008496,5.00,
BEIS,The Insolvency Service,13/05/2019,Travel and Subsistence,Investigations & Enforcement Services,Staff Payment,900008496,4.85,
BEIS,The Insolvency Service,13/05/2019,Travel and Subsistence,Investigations & Enforcement Services,Staff Payment,900008496,4.60,
BEIS,The Insolvency Service,13/05/2019,Travel and Subsistence,Investigations & Enforcement Services,Staff Payment,900008496,5.00,
BEIS,The Insolvency Service,13/05/2019,Travel and Subsistence,Investigations & Enforcement Services,Staff Payment,900008496,95.40,
BEIS,The Insolvency Service,13/05/2019,Travel and Subsistence,Investigations & Enforcement Services,Staff Payment,900008496,40.95,
BEIS,The Insolvency Service,13/05/2019,Travel and Subsistence,Investigations & Enforcement Services,Staff Payment,900008496,3.50,
BEIS,The Insolvency Service,13/05/2019,Travel and Subsistence,Investigations & Enforcement Services,Staff Payment,900008496,49.95,
BEIS,The Insolvency Service,13/05/2019,Travel and Subsistence,Investigations & Enforcement Services,Staff Payment,900008496,1.80,
BEIS,The Insolvency Service,13/05/2019,Travel and Subsistence,Investigations & Enforcement Services,Staff Payment,900008496,72.00,
BEIS,The Insolvency Service,13/05/2019,Travel and Subsistence,Official Receiver Services,Staff Payment,900008499,8.00,
BEIS,The Insolvency Service,13/05/2019,Travel and Subsistence,Finance & Commercial,Staff Payment,900008500,216.00,
BEIS,The Insolvency Service,13/05/2019,Travel and Subsistence,Finance & Commercial,Staff Payment,900008500,105.00,
BEIS,The Insolvency Service,13/05/2019,Travel and Subsistence,Finance & Commercial,Staff Payment,900008501,24.00,
BEIS,The Insolvency Service,13/05/2019,Travel and Subsistence,Finance & Commercial,Staff Payment,900008502,7.00,
BEIS,The Insolvency Service,13/05/2019,Travel and Subsistence,Finance & Commercial,Staff Payment,900008503,115.20,
BEIS,The Insolvency Service,13/05/2019,Travel and Subsistence,Finance & Commercial,Staff Payment,900008504,5.00,
BEIS,The Insolvency Service,13/05/2019,Travel and Subsistence,Finance & Commercial,Staff Payment,900008504,5.00,
BEIS,The Insolvency Service,13/05/2019,Travel and Subsistence,Finance & Commercial,Staff Payment,900008504,5.00,
BEIS,The Insolvency Service,13/05/2019,Travel and Subsistence,Investigations & Enforcement Services,Staff Payment,900008508,5.00,
BEIS,The Insolvency Service,13/05/2019,Travel and Subsistence,Investigations & Enforcement Services,Staff Payment,900008508,4.45,
BEIS,The Insolvency Service,13/05/2019,Travel and Subsistence,Investigations & Enforcement Services,Staff Payment,900008508,4.45,
BEIS,The Insolvency Service,13/05/2019,Travel and Subsistence,Investigations & Enforcement Services,Staff Payment,900008508,13.50,
BEIS,The Insolvency Service,13/05/2019,Travel and Subsistence,Investigations & Enforcement Services,Staff Payment,900008508,3.80,
BEIS,The Insolvency Service,13/05/2019,Travel and Subsistence,Investigations & Enforcement Services,Staff Payment,900008508,49.95,
BEIS,The Insolvency Service,13/05/2019,Travel and Subsistence,Investigations & Enforcement Services,Staff Payment,900008508,144.00,
BEIS,The Insolvency Service,13/05/2019,Travel and Subsistence,Investigations & Enforcement Services,Staff Payment,900008508,5.00,
BEIS,The Insolvency Service,13/05/2019,Travel and Subsistence,Investigations & Enforcement Services,Staff Payment,900008508,7.20,
BEIS,The Insolvency Service,13/05/2019,Travel and Subsistence,Investigations & Enforcement Services,Staff Payment,900008509,5.00,
BEIS,The Insolvency Service,13/05/2019,Travel and Subsistence,Investigations & Enforcement Services,Staff Payment,900008509,19.35,
BEIS,The Insolvency Service,13/05/2019,Travel and Subsistence,Investigations & Enforcement Services,Staff Payment,900008509,6.00,
BEIS,The Insolvency Service,13/05/2019,Travel and Subsistence,Investigations & Enforcement Services,Staff Payment,900008509,2.70,
BEIS,The Insolvency Service,13/05/2019,Travel and Subsistence,Investigations & Enforcement Services,Staff Payment,900008509,8.40,
BEIS,The Insolvency Service,13/05/2019,Travel and Subsistence,Investigations & Enforcement Services,Staff Payment,900008509,19.35,
BEIS,The Insolvency Service,13/05/2019,Travel and Subsistence,Investigations & Enforcement Services,Staff Payment,900008509,19.35,
BEIS,The Insolvency Service,13/05/2019,Travel and Subsistence,Investigations & Enforcement Services,Staff Payment,900008509,22.95,
BEIS,The Insolvency Service,13/05/2019,Travel and Subsistence,Investigations & Enforcement Services,Staff Payment,900008509,75.00,
BEIS,The Insolvency Service,13/05/2019,Travel and Subsistence,Investigations & Enforcement Services,Staff Payment,900008511,4.80,
BEIS,The Insolvency Service,13/05/2019,Travel and Subsistence,Investigations & Enforcement Services,Staff Payment,900008511,4.80,
BEIS,The Insolvency Service,13/05/2019,Travel and Subsistence,Investigations & Enforcement Services,Staff Payment,900008511,4.80,
BEIS,The Insolvency Service,13/05/2019,Travel and Subsistence,Finance & Commercial,Staff Payment,900008512,4.35,
BEIS,The Insolvency Service,13/05/2019,Travel and Subsistence,Finance & Commercial,Staff Payment,900008512,8.20,
BEIS,The Insolvency Service,13/05/2019,Travel and Subsistence,Finance & Commercial,Staff Payment,900008512,4.79,
BEIS,The Insolvency Service,13/05/2019,Travel and Subsistence,Business Service Division,Staff Payment,900008513,5.00,
BEIS,The Insolvency Service,13/05/2019,Travel and Subsistence,Finance & Commercial,Staff Payment,900008514,2.80,
BEIS,The Insolvency Service,13/05/2019,Travel and Subsistence,Finance & Commercial,Staff Payment,900008514,5.00,
BEIS,The Insolvency Service,13/05/2019,Travel and Subsistence,Finance & Commercial,Staff Payment,900008514,6.84,
BEIS,The Insolvency Service,13/05/2019,Travel and Subsistence,Finance & Commercial,Staff Payment,900008514,6.00,
BEIS,The Insolvency Service,13/05/2019,Travel and Subsistence,Official Receiver Services,Staff Payment,900008516,4.70,
BEIS,The Insolvency Service,13/05/2019,Travel and Subsistence,Official Receiver Services,Staff Payment,900008516,2.40,
BEIS,The Insolvency Service,13/05/2019,Travel and Subsistence,Official Receiver Services,Staff Payment,900008516,14.50,
BEIS,The Insolvency Service,13/05/2019,Travel and Subsistence,Business Service Division,Staff Payment,900008519,15.00,
BEIS,The Insolvency Service,13/05/2019,Travel and Subsistence,Business Service Division,Staff Payment,900008519,3.40,
BEIS,The Insolvency Service,13/05/2019,Travel and Subsistence,Business Service Division,Staff Payment,900008519,45.00,
BEIS,The Insolvency Service,13/05/2019,Travel and Subsistence,Business Service Division,Staff Payment,900008519,3.98,
BEIS,The Insolvency Service,13/05/2019,Travel and Subsistence,Business Service Division,Staff Payment,900008519,15.00,
BEIS,The Insolvency Service,13/05/2019,Travel and Subsistence,Business Service Division,Staff Payment,900008519,25.77,
BEIS,The Insolvency Service,13/05/2019,Travel and Subsistence,Business Service Division,Staff Payment,900008519,5.00,
BEIS,The Insolvency Service,13/05/2019,Travel and Subsistence,Official Receiver Services,Staff Payment,900008522,2.50,
BEIS,The Insolvency Service,13/05/2019,Travel and Subsistence,Official Receiver Services,Staff Payment,900008522,14.40,
BEIS,The Insolvency Service,13/05/2019,Travel and Subsistence,Business Service Division,Staff Payment,900008524,60.00,
BEIS,The Insolvency Service,13/05/2019,Travel and Subsistence,Business Service Division,Staff Payment,900008524,20.00,
BEIS,The Insolvency Service,13/05/2019,Travel and Subsistence,Business Service Division,Staff Payment,900008524,140.06,
BEIS,The Insolvency Service,13/05/2019,Travel and Subsistence,Business Service Division,Staff Payment,900008527,12.00,
BEIS,The Insolvency Service,13/05/2019,Travel and Subsistence,Business Service Division,Staff Payment,900008528,12.00,
BEIS,The Insolvency Service,13/05/2019,Travel and Subsistence,Investigations & Enforcement Services,Staff Payment,900008529,14.00,
BEIS,The Insolvency Service,13/05/2019,Travel and Subsistence,Investigations & Enforcement Services,Staff Payment,900008530,21.00,
BEIS,The Insolvency Service,13/05/2019,Travel and Subsistence,Investigations & Enforcement Services,Staff Payment,900008530,2.40,
BEIS,The Insolvency Service,13/05/2019,Travel and Subsistence,Investigations & Enforcement Services,Staff Payment,900008530,5.00,
BEIS,The Insolvency Service,13/05/2019,Travel and Subsistence,Investigations & Enforcement Services,Staff Payment,900008530,5.00,
BEIS,The Insolvency Service,13/05/2019,Travel and Subsistence,Investigations & Enforcement Services,Staff Payment,900008530,14.95,
BEIS,The Insolvency Service,13/05/2019,Travel and Subsistence,Investigations & Enforcement Services,Staff Payment,900008530,5.00,
BEIS,The Insolvency Service,13/05/2019,Travel and Subsistence,Investigations & Enforcement Services,Staff Payment,900008530,15.00,
BEIS,The Insolvency Service,13/05/2019,Travel and Subsistence,Investigations & Enforcement Services,Staff Payment,900008530,4.68,
BEIS,The Insolvency Service,13/05/2019,Travel and Subsistence,Investigations & Enforcement Services,Staff Payment,900008530,14.95,
BEIS,The Insolvency Service,13/05/2019,Travel and Subsistence,Investigations & Enforcement Services,Staff Payment,900008530,15.00,
BEIS,The Insolvency Service,13/05/2019,Travel and Subsistence,Investigations & Enforcement Services,Staff Payment,900008530,5.00,
BEIS,The Insolvency Service,13/05/2019,Travel and Subsistence,Investigations & Enforcement Services,Staff Payment,900008530,2.25,
BEIS,The Insolvency Service,13/05/2019,Travel and Subsistence,Investigations & Enforcement Services,Staff Payment,900008530,2.25,
BEIS,The Insolvency Service,13/05/2019,Travel and Subsistence,Investigations & Enforcement Services,Staff Payment,900008530,2.25,
BEIS,The Insolvency Service,13/05/2019,Travel and Subsistence,Investigations & Enforcement Services,Staff Payment,900008530,4.50,
BEIS,The Insolvency Service,13/05/2019,Travel and Subsistence,Investigations & Enforcement Services,Staff Payment,900008530,2.25,
BEIS,The Insolvency Service,13/05/2019,Travel and Subsistence,People & Capability,Staff Payment,900008540,6.80,
BEIS,The Insolvency Service,13/05/2019,Travel and Subsistence,People & Capability,Staff Payment,900008546,4.97,
BEIS,The Insolvency Service,13/05/2019,Travel and Subsistence,People & Capability,Staff Payment,900008546,5.00,
BEIS,The Insolvency Service,13/05/2019,Travel and Subsistence,People & Capability,Staff Payment,900008546,4.94,
BEIS,The Insolvency Service,13/05/2019,Travel and Subsistence,People & Capability,Staff Payment,900008546,4.50,
BEIS,The Insolvency Service,13/05/2019,Travel and Subsistence,Business Service Division,Staff Payment,900008547,4.79,
BEIS,The Insolvency Service,13/05/2019,Travel and Subsistence,Business Service Division,Staff Payment,900008547,5.10,
BEIS,The Insolvency Service,13/05/2019,Travel and Subsistence,Official Receiver Services,Staff Payment,900008549,5.00,
BEIS,The Insolvency Service,13/05/2019,Travel and Subsistence,Investigations & Enforcement Services,Staff Payment,900008560,42.80,
BEIS,The Insolvency Service,13/05/2019,Travel and Subsistence,Investigations & Enforcement Services,Staff Payment,900008560,7.52,
BEIS,The Insolvency Service,13/05/2019,Travel and Subsistence,Investigations & Enforcement Services,Staff Payment,900008561,5.00,
BEIS,The Insolvency Service,13/05/2019,Travel and Subsistence,Investigations & Enforcement Services,Staff Payment,900008561,8.00,
BEIS,The Insolvency Service,13/05/2019,Travel and Subsistence,Business Service Division,Staff Payment,900008565,5.00,
BEIS,The Insolvency Service,13/05/2019,Travel and Subsistence,Business Service Division,Staff Payment,900008565,15.00,
BEIS,The Insolvency Service,13/05/2019,Travel and Subsistence,Business Service Division,Staff Payment,900008565,5.00,
BEIS,The Insolvency Service,13/05/2019,Travel and Subsistence,Business Service Division,Staff Payment,900008566,5.00,
BEIS,The Insolvency Service,13/05/2019,Travel and Subsistence,Business Service Division,Staff Payment,900008566,5.00,
BEIS,The Insolvency Service,13/05/2019,Travel and Subsistence,Investigations & Enforcement Services,Staff Payment,900008569,16.00,
BEIS,The Insolvency Service,13/05/2019,Travel and Subsistence,Investigations & Enforcement Services,Staff Payment,900008569,4.00,
BEIS,The Insolvency Service,13/05/2019,Travel and Subsistence,Investigations & Enforcement Services,Staff Payment,900008569,4.50,
BEIS,The Insolvency Service,13/05/2019,Travel and Subsistence,Investigations & Enforcement Services,Staff Payment,900008577,5.00,
BEIS,The Insolvency Service,13/05/2019,Travel and Subsistence,Official Receiver Services,Staff Payment,900008579,5.00,
BEIS,The Insolvency Service,13/05/2019,Travel and Subsistence,Business Service Division,Staff Payment,900008582,5.00,
BEIS,The Insolvency Service,13/05/2019,Travel and Subsistence,Business Service Division,Staff Payment,900008582,5.00,
BEIS,The Insolvency Service,13/05/2019,Travel and Subsistence,Business Service Division,Staff Payment,900008582,9.70,
BEIS,The Insolvency Service,13/05/2019,Travel and Subsistence,Official Receiver Services,Staff Payment,900008585,4.79,
BEIS,The Insolvency Service,13/05/2019,Travel and Subsistence,Official Receiver Services,Staff Payment,900008585,57.80,
BEIS,The Insolvency Service,13/05/2019,Travel and Subsistence,Official Receiver Services,Staff Payment,900008585,10.00,
BEIS,The Insolvency Service,13/05/2019,Travel and Subsistence,Investigations & Enforcement Services,Staff Payment,900008587,3.30,
BEIS,The Insolvency Service,13/05/2019,Travel and Subsistence,Investigations & Enforcement Services,Staff Payment,900008587,2.50,
BEIS,The Insolvency Service,13/05/2019,Travel and Subsistence,Investigations & Enforcement Services,Staff Payment,900008587,3.40,
BEIS,The Insolvency Service,13/05/2019,Travel and Subsistence,Investigations & Enforcement Services,Staff Payment,900008587,3.40,
BEIS,The Insolvency Service,13/05/2019,Travel and Subsistence,Investigations & Enforcement Services,Staff Payment,900008587,10.00,
BEIS,The Insolvency Service,13/05/2019,Travel and Subsistence,Investigations & Enforcement Services,Staff Payment,900008587,17.98,
BEIS,The Insolvency Service,13/05/2019,Travel and Subsistence,Investigations & Enforcement Services,Staff Payment,900008587,13.50,
BEIS,The Insolvency Service,13/05/2019,Travel and Subsistence,Investigations & Enforcement Services,Staff Payment,900008587,10.00,
BEIS,The Insolvency Service,13/05/2019,Travel and Subsistence,Official Receiver Services,Staff Payment,900008590,15.00,
BEIS,The Insolvency Service,13/05/2019,Travel and Subsistence,Official Receiver Services,Staff Payment,900008590,5.00,
BEIS,The Insolvency Service,13/05/2019,Travel and Subsistence,Official Receiver Services,Staff Payment,900008590,6.79,
BEIS,The Insolvency Service,13/05/2019,Travel and Subsistence,Official Receiver Services,Staff Payment,900008591,14.80,
BEIS,The Insolvency Service,13/05/2019,Travel and Subsistence,Official Receiver Services,Staff Payment,900008591,5.00,
BEIS,The Insolvency Service,13/05/2019,Travel and Subsistence,Business Service Division,Staff Payment,900008601,2.50,
BEIS,The Insolvency Service,13/05/2019,Travel and Subsistence,Business Service Division,Staff Payment,900008601,30.00,
BEIS,The Insolvency Service,13/05/2019,Travel and Subsistence,Business Service Division,Staff Payment,900008601,10.00,
BEIS,The Insolvency Service,13/05/2019,Travel and Subsistence,Business Service Division,Staff Payment,900008605,3.39,
BEIS,The Insolvency Service,13/05/2019,Travel and Subsistence,Business Service Division,Staff Payment,900008606,196.00,
BEIS,The Insolvency Service,13/05/2019,Travel and Subsistence,Business Service Division,Staff Payment,900008607,8.23,
BEIS,The Insolvency Service,13/05/2019,Travel and Subsistence,Official Receiver Services,Staff Payment,900008608,5.00,
BEIS,The Insolvency Service,13/05/2019,Travel and Subsistence,Official Receiver Services,Staff Payment,900008608,6.00,
BEIS,The Insolvency Service,13/05/2019,Travel and Subsistence,Investigations & Enforcement Services,Staff Payment,900008613,2.40,
BEIS,The Insolvency Service,13/05/2019,Travel and Subsistence,Investigations & Enforcement Services,Staff Payment,900008614,69.65,
BEIS,The Insolvency Service,13/05/2019,Travel and Subsistence,Investigations & Enforcement Services,Staff Payment,900008614,5.00,
BEIS,The Insolvency Service,13/05/2019,Travel and Subsistence,Investigations & Enforcement Services,Staff Payment,900008614,5.00,
BEIS,The Insolvency Service,13/05/2019,Travel and Subsistence,Investigations & Enforcement Services,Staff Payment,900008614,5.00,
BEIS,The Insolvency Service,13/05/2019,Travel and Subsistence,Investigations & Enforcement Services,Staff Payment,900008614,17.00,
BEIS,The Insolvency Service,13/05/2019,Travel and Subsistence,Investigations & Enforcement Services,Staff Payment,900008614,66.60,
BEIS,The Insolvency Service,13/05/2019,Travel and Subsistence,Investigations & Enforcement Services,Staff Payment,900008614,17.00,
BEIS,The Insolvency Service,13/05/2019,Travel and Subsistence,Investigations & Enforcement Services,Staff Payment,900008617,4.80,
BEIS,The Insolvency Service,13/05/2019,Travel and Subsistence,Investigations & Enforcement Services,Staff Payment,900008617,3.90,
BEIS,The Insolvency Service,13/05/2019,Travel and Subsistence,Investigations & Enforcement Services,Staff Payment,900008617,37.80,
BEIS,The Insolvency Service,13/05/2019,Travel and Subsistence,Investigations & Enforcement Services,Staff Payment,900008617,10.20,
BEIS,The Insolvency Service,13/05/2019,Travel and Subsistence,Investigations & Enforcement Services,Staff Payment,900008620,20.40,
BEIS,The Insolvency Service,13/05/2019,Travel and Subsistence,Investigations & Enforcement Services,Staff Payment,900008629,2.00,
BEIS,The Insolvency Service,13/05/2019,Travel and Subsistence,Investigations & Enforcement Services,Staff Payment,900008629,4.20,
BEIS,The Insolvency Service,13/05/2019,Travel and Subsistence,Investigations & Enforcement Services,Staff Payment,900008629,5.00,
BEIS,The Insolvency Service,13/05/2019,Travel and Subsistence,Investigations & Enforcement Services,Staff Payment,900008629,5.00,
BEIS,The Insolvency Service,13/05/2019,Travel and Subsistence,Investigations & Enforcement Services,Staff Payment,900008629,2.75,
BEIS,The Insolvency Service,13/05/2019,Compensation and Disbursements,Business Service Division,SUNDRY SUPPLIER,300008183,50.00,
BEIS,The Insolvency Service,13/05/2019,Telephones,Business Service Division,Syntec Ltd,300008312,2878.48,264618586
BEIS,The Insolvency Service,14/05/2019,Accomodation,Finance & Commercial,Croydon Council,300008572,77399.76,218 5912 55
BEIS,The Insolvency Service,14/05/2019,Accomodation,Finance & Commercial,HMRC,300008479,22374.24, 888 8481 41
BEIS,The Insolvency Service,14/05/2019,Accomodation,Finance & Commercial,HMRC,300008480,17636.50, 888 8481 41
BEIS,The Insolvency Service,14/05/2019,Telephones,Information & Technology,Maintel,300008284,42000.00,
BEIS,The Insolvency Service,14/05/2019,Legal Costs,Investigations & Enforcement Services,Pitney Bowes Finance Limited,300008285,240.91,
BEIS,The Insolvency Service,14/05/2019,Legal Costs,Investigations & Enforcement Services,Pitney Bowes Finance Limited,300008286,23.83,
BEIS,The Insolvency Service,14/05/2019,Computer & IT Systems,Information & Technology,SmartSourcing,300008340,2527.20,788 5078 69
BEIS,The Insolvency Service,14/05/2019,Computer & IT Systems,Information & Technology,SmartSourcing,300008341,3288.00,788 5078 69
BEIS,The Insolvency Service,14/05/2019,Computer & IT Systems,Information & Technology,SmartSourcing,300008342,2976.00,788 5078 69
BEIS,The Insolvency Service,14/05/2019,Computer & IT Systems,Information & Technology,SmartSourcing,300008343,3456.00,788 5078 69
BEIS,The Insolvency Service,14/05/2019,Computer & IT Systems,Information & Technology,SmartSourcing,300008344,4139.52,788 5078 69
BEIS,The Insolvency Service,14/05/2019,Computer & IT Systems,Information & Technology,SmartSourcing,300008345,2352.00,788 5078 69
BEIS,The Insolvency Service,14/05/2019,Computer & IT Systems,Information & Technology,SmartSourcing,300008346,3000.00,788 5078 69
BEIS,The Insolvency Service,14/05/2019,Computer & IT Systems,Information & Technology,SmartSourcing,300008347,2956.80,788 5078 69
BEIS,The Insolvency Service,14/05/2019,Computer & IT Systems,Information & Technology,SmartSourcing,300008348,2400.00,788 5078 69
BEIS,The Insolvency Service,14/05/2019,Computer & IT Systems,Information & Technology,SmartSourcing,300008349,2178.00,788 5078 69
BEIS,The Insolvency Service,14/05/2019,Computer & IT Systems,Information & Technology,SmartSourcing,300008350,2544.00,788 5078 69
BEIS,The Insolvency Service,14/05/2019,Travel and Subsistence,Investigations & Enforcement Services,Staff Payment,900007869,5.00,
BEIS,The Insolvency Service,14/05/2019,Travel and Subsistence,Investigations & Enforcement Services,Staff Payment,900007869,5.00,
BEIS,The Insolvency Service,14/05/2019,Travel and Subsistence,Investigations & Enforcement Services,Staff Payment,900007869,5.00,
BEIS,The Insolvency Service,14/05/2019,Travel and Subsistence,Investigations & Enforcement Services,Staff Payment,900007869,39.90,
BEIS,The Insolvency Service,14/05/2019,Travel and Subsistence,Investigations & Enforcement Services,Staff Payment,900007869,15.00,
BEIS,The Insolvency Service,14/05/2019,Travel and Subsistence,Investigations & Enforcement Services,Staff Payment,900007869,8.50,
BEIS,The Insolvency Service,14/05/2019,Travel and Subsistence,Investigations & Enforcement Services,Staff Payment,900007869,5.00,
BEIS,The Insolvency Service,14/05/2019,Travel and Subsistence,Investigations & Enforcement Services,Staff Payment,900007869,30.00,
BEIS,The Insolvency Service,14/05/2019,Travel and Subsistence,Investigations & Enforcement Services,Staff Payment,900007869,10.00,
BEIS,The Insolvency Service,14/05/2019,Travel and Subsistence,Investigations & Enforcement Services,Staff Payment,900007869,3.20,
BEIS,The Insolvency Service,14/05/2019,Travel and Subsistence,Investigations & Enforcement Services,Staff Payment,900007869,108.00,
BEIS,The Insolvency Service,14/05/2019,Travel and Subsistence,Investigations & Enforcement Services,Staff Payment,900007869,49.50,
BEIS,The Insolvency Service,14/05/2019,Travel and Subsistence,Official Receiver Services,Staff Payment,900008067,4.85,
BEIS,The Insolvency Service,14/05/2019,Travel and Subsistence,Investigations & Enforcement Services,Staff Payment,900008207,12.00,
BEIS,The Insolvency Service,14/05/2019,Travel and Subsistence,Investigations & Enforcement Services,Staff Payment,900008207,60.30,
BEIS,The Insolvency Service,14/05/2019,Travel and Subsistence,Investigations & Enforcement Services,Staff Payment,900008207,34.20,
BEIS,The Insolvency Service,14/05/2019,Travel and Subsistence,Investigations & Enforcement Services,Staff Payment,900008207,12.78,
BEIS,The Insolvency Service,14/05/2019,Travel and Subsistence,Business Service Division,Staff Payment,900008218,4.53,
BEIS,The Insolvency Service,14/05/2019,Travel and Subsistence,Business Service Division,Staff Payment,900008218,15.00,
BEIS,The Insolvency Service,14/05/2019,Travel and Subsistence,Business Service Division,Staff Payment,900008218,5.00,
BEIS,The Insolvency Service,14/05/2019,Travel and Subsistence,Business Service Division,Staff Payment,900008218,3.00,
BEIS,The Insolvency Service,14/05/2019,Travel and Subsistence,Business Service Division,Staff Payment,900008218,48.15,
BEIS,The Insolvency Service,14/05/2019,Travel and Subsistence,Business Service Division,Staff Payment,900008218,48.15,
BEIS,The Insolvency Service,14/05/2019,Travel and Subsistence,Business Service Division,Staff Payment,900008218,8.50,
BEIS,The Insolvency Service,14/05/2019,Travel and Subsistence,Investigations & Enforcement Services,Staff Payment,900008286,103.01,
BEIS,The Insolvency Service,14/05/2019,Travel and Subsistence,Investigations & Enforcement Services,Staff Payment,900008286,12.00,
BEIS,The Insolvency Service,14/05/2019,Travel and Subsistence,Investigations & Enforcement Services,Staff Payment,900008286,3.00,
BEIS,The Insolvency Service,14/05/2019,Travel and Subsistence,Investigations & Enforcement Services,Staff Payment,900008286,36.90,
BEIS,The Insolvency Service,14/05/2019,Travel and Subsistence,Strategy & Change,Staff Payment,900008380,5.60,
BEIS,The Insolvency Service,14/05/2019,Travel and Subsistence,Strategy & Change,Staff Payment,900008380,5.00,
BEIS,The Insolvency Service,14/05/2019,Travel and Subsistence,Official Receiver Services,Staff Payment,900008380,2.80,
BEIS,The Insolvency Service,14/05/2019,Travel and Subsistence,Official Receiver Services,Staff Payment,900008380,10.00,
BEIS,The Insolvency Service,14/05/2019,Travel and Subsistence,Official Receiver Services,Staff Payment,900008380,11.00,
BEIS,The Insolvency Service,14/05/2019,Travel and Subsistence,Official Receiver Services,Staff Payment,900008380,13.00,
BEIS,The Insolvency Service,14/05/2019,Travel and Subsistence,Official Receiver Services,Staff Payment,900008380,15.00,
BEIS,The Insolvency Service,14/05/2019,Travel and Subsistence,Strategy & Change,Staff Payment,900008380,10.00,
BEIS,The Insolvency Service,14/05/2019,Travel and Subsistence,Strategy & Change,Staff Payment,900008380,15.00,
BEIS,The Insolvency Service,14/05/2019,Travel and Subsistence,Strategy & Change,Staff Payment,900008380,4.75,
BEIS,The Insolvency Service,14/05/2019,Travel and Subsistence,Official Receiver Services,Staff Payment,900008380,15.00,
BEIS,The Insolvency Service,14/05/2019,Travel and Subsistence,Strategy & Change,Staff Payment,900008453,29.99,
BEIS,The Insolvency Service,14/05/2019,Travel and Subsistence,Strategy & Change,Staff Payment,900008453,5.50,
BEIS,The Insolvency Service,14/05/2019,Travel and Subsistence,Strategy & Change,Staff Payment,900008453,6.50,
BEIS,The Insolvency Service,14/05/2019,Travel and Subsistence,Strategy & Change,Staff Payment,900008454,29.99,
BEIS,The Insolvency Service,14/05/2019,Travel and Subsistence,Strategy & Change,Staff Payment,900008454,5.50,
BEIS,The Insolvency Service,14/05/2019,Travel and Subsistence,Official Receiver Services,Staff Payment,900008478,22.80,
BEIS,The Insolvency Service,14/05/2019,Travel and Subsistence,Business Service Division,Staff Payment,900008481,5.00,
BEIS,The Insolvency Service,14/05/2019,Travel and Subsistence,Business Service Division,Staff Payment,900008481,8.75,
BEIS,The Insolvency Service,14/05/2019,Travel and Subsistence,Business Service Division,Staff Payment,900008481,5.00,
BEIS,The Insolvency Service,14/05/2019,Travel and Subsistence,Business Service Division,Staff Payment,900008481,5.68,
BEIS,The Insolvency Service,14/05/2019,Travel and Subsistence,Business Service Division,Staff Payment,900008481,38.25,
BEIS,The Insolvency Service,14/05/2019,Travel and Subsistence,Business Service Division,Staff Payment,900008481,38.25,
BEIS,The Insolvency Service,14/05/2019,Travel and Subsistence,Official Receiver Services,Staff Payment,900008521,27.00,
BEIS,The Insolvency Service,14/05/2019,Travel and Subsistence,Investigations & Enforcement Services,Staff Payment,900008535,4.55,
BEIS,The Insolvency Service,14/05/2019,Travel and Subsistence,Official Receiver Services,Staff Payment,900008543,3.10,
BEIS,The Insolvency Service,14/05/2019,Travel and Subsistence,Official Receiver Services,Staff Payment,900008543,12.60,
BEIS,The Insolvency Service,14/05/2019,Travel and Subsistence,Official Receiver Services,Staff Payment,900008545,5.00,
BEIS,The Insolvency Service,14/05/2019,Travel and Subsistence,Official Receiver Services,Staff Payment,900008545,5.00,
BEIS,The Insolvency Service,14/05/2019,Travel and Subsistence,Official Receiver Services,Staff Payment,900008545,32.40,
BEIS,The Insolvency Service,14/05/2019,Travel and Subsistence,Business Service Division,Staff Payment,900008548,3.15,
BEIS,The Insolvency Service,14/05/2019,Travel and Subsistence,Business Service Division,Staff Payment,900008548,5.00,
BEIS,The Insolvency Service,14/05/2019,Travel and Subsistence,Official Receiver Services,Staff Payment,900008550,5.00,
BEIS,The Insolvency Service,14/05/2019,Travel and Subsistence,Official Receiver Services,Staff Payment,900008551,5.00,
BEIS,The Insolvency Service,14/05/2019,Travel and Subsistence,Investigations & Enforcement Services,Staff Payment,900008571,32.40,
BEIS,The Insolvency Service,14/05/2019,Travel and Subsistence,Investigations & Enforcement Services,Staff Payment,900008574,6.00,
BEIS,The Insolvency Service,14/05/2019,Travel and Subsistence,Official Receiver Services,Staff Payment,900008583,5.00,
BEIS,The Insolvency Service,14/05/2019,Travel and Subsistence,Official Receiver Services,Staff Payment,900008584,3.55,
BEIS,The Insolvency Service,14/05/2019,Travel and Subsistence,Investigations & Enforcement Services,Staff Payment,900008599,2.78,
BEIS,The Insolvency Service,14/05/2019,Travel and Subsistence,Investigations & Enforcement Services,Staff Payment,900008604,10.35,
BEIS,The Insolvency Service,14/05/2019,Travel and Subsistence,Official Receiver Services,Staff Payment,900008609,5.00,
BEIS,The Insolvency Service,14/05/2019,Travel and Subsistence,Official Receiver Services,Staff Payment,900008610,6.60,
BEIS,The Insolvency Service,14/05/2019,Travel and Subsistence,Official Receiver Services,Staff Payment,900008610,5.00,
BEIS,The Insolvency Service,14/05/2019,Travel and Subsistence,Official Receiver Services,Staff Payment,900008610,5.00,
BEIS,The Insolvency Service,14/05/2019,Travel and Subsistence,Official Receiver Services,Staff Payment,900008610,7.95,
BEIS,The Insolvency Service,14/05/2019,Travel and Subsistence,Official Receiver Services,Staff Payment,900008610,12.00,
BEIS,The Insolvency Service,14/05/2019,Travel and Subsistence,Official Receiver Services,Staff Payment,900008610,75.60,
BEIS,The Insolvency Service,14/05/2019,Travel and Subsistence,Official Receiver Services,Staff Payment,900008610,75.60,
BEIS,The Insolvency Service,14/05/2019,Travel and Subsistence,Official Receiver Services,Staff Payment,900008612,8.65,
BEIS,The Insolvency Service,14/05/2019,Travel and Subsistence,Official Receiver Services,Staff Payment,900008612,5.00,
BEIS,The Insolvency Service,14/05/2019,Travel and Subsistence,Strategy & Change,Staff Payment,900008618,12.00,
BEIS,The Insolvency Service,14/05/2019,Travel and Subsistence,Strategy & Change,Staff Payment,900008619,4.49,
BEIS,The Insolvency Service,14/05/2019,Travel and Subsistence,Strategy & Change,Staff Payment,900008619,12.00,
BEIS,The Insolvency Service,14/05/2019,Travel and Subsistence,Investigations & Enforcement Services,Staff Payment,900008621,5.00,
BEIS,The Insolvency Service,14/05/2019,Travel and Subsistence,Investigations & Enforcement Services,Staff Payment,900008621,2.45,
BEIS,The Insolvency Service,14/05/2019,Travel and Subsistence,Investigations & Enforcement Services,Staff Payment,900008621,5.00,
BEIS,The Insolvency Service,14/05/2019,Travel and Subsistence,Investigations & Enforcement Services,Staff Payment,900008621,5.00,
BEIS,The Insolvency Service,14/05/2019,Travel and Subsistence,Investigations & Enforcement Services,Staff Payment,900008621,113.00,
BEIS,The Insolvency Service,14/05/2019,Travel and Subsistence,Investigations & Enforcement Services,Staff Payment,900008621,4.70,
BEIS,The Insolvency Service,14/05/2019,Travel and Subsistence,Investigations & Enforcement Services,Staff Payment,900008621,4.00,
BEIS,The Insolvency Service,14/05/2019,Travel and Subsistence,Investigations & Enforcement Services,Staff Payment,900008621,8.10,
BEIS,The Insolvency Service,14/05/2019,Travel and Subsistence,Investigations & Enforcement Services,Staff Payment,900008621,104.50,
BEIS,The Insolvency Service,14/05/2019,Travel and Subsistence,Strategy & Change,Staff Payment,900008623,188.00,
BEIS,The Insolvency Service,14/05/2019,Travel and Subsistence,Strategy & Change,Staff Payment,900008623,4.50,
BEIS,The Insolvency Service,14/05/2019,Travel and Subsistence,Strategy & Change,Staff Payment,900008623,14.40,
BEIS,The Insolvency Service,14/05/2019,Travel and Subsistence,Strategy & Change,Staff Payment,900008623,5.00,
BEIS,The Insolvency Service,14/05/2019,Travel and Subsistence,Official Receiver Services,Staff Payment,900008624,4.34,
BEIS,The Insolvency Service,14/05/2019,Travel and Subsistence,Official Receiver Services,Staff Payment,900008624,5.00,
BEIS,The Insolvency Service,14/05/2019,Travel and Subsistence,Official Receiver Services,Staff Payment,900008624,5.40,
BEIS,The Insolvency Service,14/05/2019,Travel and Subsistence,Official Receiver Services,Staff Payment,900008624,12.50,
BEIS,The Insolvency Service,14/05/2019,Travel and Subsistence,Chief Executive Office,Staff Payment,900008625,2.00,
BEIS,The Insolvency Service,14/05/2019,Travel and Subsistence,Chief Executive Office,Staff Payment,900008625,2.40,
BEIS,The Insolvency Service,14/05/2019,Travel and Subsistence,Chief Executive Office,Staff Payment,900008625,14.55,
BEIS,The Insolvency Service,14/05/2019,Travel and Subsistence,Chief Executive Office,Staff Payment,900008625,5.00,
BEIS,The Insolvency Service,14/05/2019,Travel and Subsistence,Chief Executive Office,Staff Payment,900008625,5.00,
BEIS,The Insolvency Service,14/05/2019,Travel and Subsistence,Investigations & Enforcement Services,Staff Payment,900008634,4.80,
BEIS,The Insolvency Service,14/05/2019,Travel and Subsistence,Investigations & Enforcement Services,Staff Payment,900008634,5.00,
BEIS,The Insolvency Service,14/05/2019,Travel and Subsistence,Investigations & Enforcement Services,Staff Payment,900008634,11.95,
BEIS,The Insolvency Service,14/05/2019,Travel and Subsistence,Investigations & Enforcement Services,Staff Payment,900008634,5.00,
BEIS,The Insolvency Service,14/05/2019,Travel and Subsistence,Investigations & Enforcement Services,Staff Payment,900008634,1.90,
BEIS,The Insolvency Service,14/05/2019,Travel and Subsistence,Official Receiver Services,Staff Payment,900008636,15.00,
BEIS,The Insolvency Service,14/05/2019,Travel and Subsistence,Official Receiver Services,Staff Payment,900008636,5.00,
BEIS,The Insolvency Service,14/05/2019,Travel and Subsistence,Official Receiver Services,Staff Payment,900008636,5.00,
BEIS,The Insolvency Service,14/05/2019,Travel and Subsistence,Finance & Commercial,Staff Payment,900008639,3.55,
BEIS,The Insolvency Service,14/05/2019,Travel and Subsistence,Finance & Commercial,Staff Payment,900008639,5.00,
BEIS,The Insolvency Service,14/05/2019,Travel and Subsistence,Investigations & Enforcement Services,Staff Payment,900008640,5.00,
BEIS,The Insolvency Service,14/05/2019,Travel and Subsistence,Investigations & Enforcement Services,Staff Payment,900008640,5.00,
BEIS,The Insolvency Service,14/05/2019,Travel and Subsistence,Investigations & Enforcement Services,Staff Payment,900008640,5.00,
BEIS,The Insolvency Service,14/05/2019,Travel and Subsistence,Investigations & Enforcement Services,Staff Payment,900008640,15.00,
BEIS,The Insolvency Service,14/05/2019,Travel and Subsistence,Investigations & Enforcement Services,Staff Payment,900008640,3.50,
BEIS,The Insolvency Service,14/05/2019,Travel and Subsistence,Investigations & Enforcement Services,Staff Payment,900008640,12.50,
BEIS,The Insolvency Service,14/05/2019,Travel and Subsistence,Investigations & Enforcement Services,Staff Payment,900008640,8.60,
BEIS,The Insolvency Service,14/05/2019,Travel and Subsistence,Investigations & Enforcement Services,Staff Payment,900008640,6.20,
BEIS,The Insolvency Service,14/05/2019,Travel and Subsistence,Investigations & Enforcement Services,Staff Payment,900008640,17.00,
BEIS,The Insolvency Service,14/05/2019,Travel and Subsistence,Investigations & Enforcement Services,Staff Payment,900008640,117.00,
BEIS,The Insolvency Service,14/05/2019,Travel and Subsistence,Business Service Division,Staff Payment,900008645,32.45,
BEIS,The Insolvency Service,14/05/2019,Travel and Subsistence,Official Receiver Services,Staff Payment,900008646,4.85,
BEIS,The Insolvency Service,15/05/2019,Legal Costs,Legal Services Division,5 Paper Buildings Chambers,300008791,120.00,677825187
BEIS,The Insolvency Service,15/05/2019,Postage,Business Service Division,City Sprint Uk Ltd,300008311,11.00,997 3273 64
BEIS,The Insolvency Service,15/05/2019,Training Costs,People & Capability,Consensio Partners Resolution Ltd,300007935,2000.00,
BEIS,The Insolvency Service,15/05/2019,Postage,Business Service Division,Dx Network Services Ltd,300008437,1163.02,849741385
BEIS,The Insolvency Service,15/05/2019,Insolvency Case Related Costs,Business Service Division,Equifax Ltd,300008702,534.00,565629213
BEIS,The Insolvency Service,15/05/2019,Postage,Business Service Division,Parcelforce Worldwide,300008690,410.04,2431 70002
BEIS,The Insolvency Service,15/05/2019,Accomodation,Business Service Division,Posturite (Uk) Ltd.,300007914,115.99,583565114
BEIS,The Insolvency Service,15/05/2019,Accomodation,Business Service Division,Restore Datashred,300008293,35.96,240193143
BEIS,The Insolvency Service,15/05/2019,Storage,Official Receiver Services,Restore Plc,300008595,15.00,843863011
BEIS,The Insolvency Service,15/05/2019,Storage,Official Receiver Services,Restore Plc,300008604,15.00,843863011
BEIS,The Insolvency Service,15/05/2019,Postage,Business Service Division,Royal Mail,300008324,10.56,243 1700 02
BEIS,The Insolvency Service,15/05/2019,Postage,Business Service Division,Royal Mail,300008326,24.10,243 1700 02
BEIS,The Insolvency Service,15/05/2019,Postage,Business Service Division,Royal Mail,300008439,24.67,243 1700 02
BEIS,The Insolvency Service,15/05/2019,Postage,Business Service Division,Royal Mail,300008440,80.62,243 1700 02
BEIS,The Insolvency Service,15/05/2019,Postage,Business Service Division,Royal Mail,300008686,14.60,243 1700 02
BEIS,The Insolvency Service,15/05/2019,Postage,Business Service Division,Royal Mail,300008687,25.74,243 1700 02
BEIS,The Insolvency Service,15/05/2019,Postage,Business Service Division,Royal Mail,300008688,75.95,243 1700 02
BEIS,The Insolvency Service,15/05/2019,Computer & IT Systems,Information & Technology,SmartSourcing,300008655,2956.80,788 5078 69
BEIS,The Insolvency Service,15/05/2019,Computer & IT Systems,Information & Technology,SmartSourcing,300008657,4320.00,788 5078 69
BEIS,The Insolvency Service,15/05/2019,Computer & IT Systems,Information & Technology,SmartSourcing,300008659,3153.00,788 5078 69
BEIS,The Insolvency Service,15/05/2019,Computer & IT Systems,Information & Technology,SmartSourcing,300008663,1701.14,788 5078 69
BEIS,The Insolvency Service,15/05/2019,Computer & IT Systems,Information & Technology,SmartSourcing,300008672,3000.00,788 5078 69
BEIS,The Insolvency Service,15/05/2019,Computer & IT Systems,Information & Technology,SmartSourcing,300008674,4110.00,788 5078 69
BEIS,The Insolvency Service,15/05/2019,Computer & IT Systems,Information & Technology,SmartSourcing,300008676,3696.00,788 5078 69
BEIS,The Insolvency Service,15/05/2019,Computer & IT Systems,Information & Technology,SmartSourcing,300008678,3180.00,788 5078 69
BEIS,The Insolvency Service,15/05/2019,Computer & IT Systems,Information & Technology,SmartSourcing,300008679,3180.00,788 5078 69
BEIS,The Insolvency Service,15/05/2019,Computer & IT Systems,Information & Technology,SmartSourcing,300008680,1530.00,788 5078 69
BEIS,The Insolvency Service,15/05/2019,Computer & IT Systems,Information & Technology,SmartSourcing,300008681,2940.00,788 5078 69
BEIS,The Insolvency Service,15/05/2019,Travel and Subsistence,Official Receiver Services,Staff Payment,900007855,1.80,
BEIS,The Insolvency Service,15/05/2019,Travel and Subsistence,Official Receiver Services,Staff Payment,900007855,15.00,
BEIS,The Insolvency Service,15/05/2019,Travel and Subsistence,Official Receiver Services,Staff Payment,900007855,5.00,
BEIS,The Insolvency Service,15/05/2019,Travel and Subsistence,Official Receiver Services,Staff Payment,900007855,14.77,
BEIS,The Insolvency Service,15/05/2019,Travel and Subsistence,Official Receiver Services,Staff Payment,900007855,4.95,
BEIS,The Insolvency Service,15/05/2019,Travel and Subsistence,Official Receiver Services,Staff Payment,900007855,12.50,
BEIS,The Insolvency Service,15/05/2019,Travel and Subsistence,Official Receiver Services,Staff Payment,900007855,5.00,
BEIS,The Insolvency Service,15/05/2019,Travel and Subsistence,Official Receiver Services,Staff Payment,900007855,15.00,
BEIS,The Insolvency Service,15/05/2019,Travel and Subsistence,Official Receiver Services,Staff Payment,900007855,1.90,
BEIS,The Insolvency Service,15/05/2019,Travel and Subsistence,Official Receiver Services,Staff Payment,900007855,0.79,
BEIS,The Insolvency Service,15/05/2019,Travel and Subsistence,Official Receiver Services,Staff Payment,900008082,44.00,
BEIS,The Insolvency Service,15/05/2019,Travel and Subsistence,Business Service Division,Staff Payment,900008403,10.00,
BEIS,The Insolvency Service,15/05/2019,Travel and Subsistence,Business Service Division,Staff Payment,900008403,8.02,
BEIS,The Insolvency Service,15/05/2019,Travel and Subsistence,Business Service Division,Staff Payment,900008403,5.00,
BEIS,The Insolvency Service,15/05/2019,Travel and Subsistence,Business Service Division,Staff Payment,900008403,14.55,
BEIS,The Insolvency Service,15/05/2019,Travel and Subsistence,Business Service Division,Staff Payment,900008403,24.25,
BEIS,The Insolvency Service,15/05/2019,Travel and Subsistence,Official Receiver Services,Staff Payment,900008480,3.30,
BEIS,The Insolvency Service,15/05/2019,Travel and Subsistence,Official Receiver Services,Staff Payment,900008480,5.00,
BEIS,The Insolvency Service,15/05/2019,Travel and Subsistence,Official Receiver Services,Staff Payment,900008480,4.69,
BEIS,The Insolvency Service,15/05/2019,Travel and Subsistence,Official Receiver Services,Staff Payment,900008480,28.80,
BEIS,The Insolvency Service,15/05/2019,Travel and Subsistence,Investigations & Enforcement Services,Staff Payment,900008532,6.40,
BEIS,The Insolvency Service,15/05/2019,Travel and Subsistence,Investigations & Enforcement Services,Staff Payment,900008532,15.00,
BEIS,The Insolvency Service,15/05/2019,Travel and Subsistence,Investigations & Enforcement Services,Staff Payment,900008532,5.00,
BEIS,The Insolvency Service,15/05/2019,Travel and Subsistence,Investigations & Enforcement Services,Staff Payment,900008532,5.00,
BEIS,The Insolvency Service,15/05/2019,Travel and Subsistence,Investigations & Enforcement Services,Staff Payment,900008532,14.29,
BEIS,The Insolvency Service,15/05/2019,Travel and Subsistence,Investigations & Enforcement Services,Staff Payment,900008532,5.00,
BEIS,The Insolvency Service,15/05/2019,Travel and Subsistence,Investigations & Enforcement Services,Staff Payment,900008532,6.00,
BEIS,The Insolvency Service,15/05/2019,Travel and Subsistence,Investigations & Enforcement Services,Staff Payment,900008532,49.05,
BEIS,The Insolvency Service,15/05/2019,Travel and Subsistence,Investigations & Enforcement Services,Staff Payment,900008532,54.45,
BEIS,The Insolvency Service,15/05/2019,Travel and Subsistence,Investigations & Enforcement Services,Staff Payment,900008532,8.55,
BEIS,The Insolvency Service,15/05/2019,Travel and Subsistence,Investigations & Enforcement Services,Staff Payment,900008532,6.00,
BEIS,The Insolvency Service,15/05/2019,Travel and Subsistence,Investigations & Enforcement Services,Staff Payment,900008532,3.00,
BEIS,The Insolvency Service,15/05/2019,Travel and Subsistence,Investigations & Enforcement Services,Staff Payment,900008532,5.85,
BEIS,The Insolvency Service,15/05/2019,Travel and Subsistence,Investigations & Enforcement Services,Staff Payment,900008532,8.55,
BEIS,The Insolvency Service,15/05/2019,Travel and Subsistence,Official Receiver Services,Staff Payment,900008539,15.75,
BEIS,The Insolvency Service,15/05/2019,Travel and Subsistence,Official Receiver Services,Staff Payment,900008539,2.20,
BEIS,The Insolvency Service,15/05/2019,Travel and Subsistence,Official Receiver Services,Staff Payment,900008539,39.15,
BEIS,The Insolvency Service,15/05/2019,Travel and Subsistence,Official Receiver Services,Staff Payment,900008539,3.40,
BEIS,The Insolvency Service,15/05/2019,Travel and Subsistence,Official Receiver Services,Staff Payment,900008539,12.60,
BEIS,The Insolvency Service,15/05/2019,Travel and Subsistence,Business Service Division,Staff Payment,900008622,9.65,
BEIS,The Insolvency Service,15/05/2019,Travel and Subsistence,Investigations & Enforcement Services,Staff Payment,900008642,3.60,
BEIS,The Insolvency Service,15/05/2019,Travel and Subsistence,Investigations & Enforcement Services,Staff Payment,900008642,5.00,
BEIS,The Insolvency Service,15/05/2019,Travel and Subsistence,Investigations & Enforcement Services,Staff Payment,900008642,104.40,
BEIS,The Insolvency Service,15/05/2019,Travel and Subsistence,Investigations & Enforcement Services,Staff Payment,900008643,5.00,
BEIS,The Insolvency Service,15/05/2019,Travel and Subsistence,Investigations & Enforcement Services,Staff Payment,900008643,15.00,
BEIS,The Insolvency Service,15/05/2019,Travel and Subsistence,Investigations & Enforcement Services,Staff Payment,900008643,104.40,
BEIS,The Insolvency Service,15/05/2019,Travel and Subsistence,Investigations & Enforcement Services,Staff Payment,900008643,30.00,
BEIS,The Insolvency Service,15/05/2019,Travel and Subsistence,Official Receiver Services,Staff Payment,900008648,4.00,
BEIS,The Insolvency Service,15/05/2019,Travel and Subsistence,Business Service Division,Staff Payment,900008649,14.90,
BEIS,The Insolvency Service,15/05/2019,Travel and Subsistence,Business Service Division,Staff Payment,900008649,5.00,
BEIS,The Insolvency Service,15/05/2019,Travel and Subsistence,Business Service Division,Staff Payment,900008649,5.00,
BEIS,The Insolvency Service,15/05/2019,Travel and Subsistence,Business Service Division,Staff Payment,900008649,14.10,
BEIS,The Insolvency Service,15/05/2019,Travel and Subsistence,Business Service Division,Staff Payment,900008649,5.00,
BEIS,The Insolvency Service,15/05/2019,Travel and Subsistence,Business Service Division,Staff Payment,900008649,7.00,
BEIS,The Insolvency Service,15/05/2019,Travel and Subsistence,Business Service Division,Staff Payment,900008649,7.00,
BEIS,The Insolvency Service,15/05/2019,Travel and Subsistence,Strategy & Change,Staff Payment,900008661,4.80,
BEIS,The Insolvency Service,15/05/2019,Travel and Subsistence,Strategy & Change,Staff Payment,900008661,60.00,
BEIS,The Insolvency Service,15/05/2019,Travel and Subsistence,Strategy & Change,Staff Payment,900008661,5.00,
BEIS,The Insolvency Service,15/05/2019,Travel and Subsistence,Strategy & Change,Staff Payment,900008661,2.89,
BEIS,The Insolvency Service,15/05/2019,Travel and Subsistence,Strategy & Change,Staff Payment,900008661,4.68,
BEIS,The Insolvency Service,15/05/2019,Travel and Subsistence,Strategy & Change,Staff Payment,900008661,9.99,
BEIS,The Insolvency Service,15/05/2019,Travel and Subsistence,Strategy & Change,Staff Payment,900008661,5.00,
BEIS,The Insolvency Service,15/05/2019,Travel and Subsistence,Strategy & Change,Staff Payment,900008661,4.80,
BEIS,The Insolvency Service,15/05/2019,Travel and Subsistence,Strategy & Change,Staff Payment,900008661,5.00,
BEIS,The Insolvency Service,15/05/2019,Travel and Subsistence,Strategy & Change,Staff Payment,900008661,15.00,
BEIS,The Insolvency Service,15/05/2019,Travel and Subsistence,Finance & Commercial,Staff Payment,900008665,10.00,
BEIS,The Insolvency Service,15/05/2019,Travel and Subsistence,Finance & Commercial,Staff Payment,900008665,5.00,
BEIS,The Insolvency Service,15/05/2019,Travel and Subsistence,Finance & Commercial,Staff Payment,900008665,12.95,
BEIS,The Insolvency Service,15/05/2019,Travel and Subsistence,Finance & Commercial,Staff Payment,900008665,12.95,
BEIS,The Insolvency Service,15/05/2019,Travel and Subsistence,Finance & Commercial,Staff Payment,900008665,14.00,
BEIS,The Insolvency Service,15/05/2019,Travel and Subsistence,People & Capability,Staff Payment,900008667,4.88,
BEIS,The Insolvency Service,15/05/2019,Compensation and Disbursements,Finance & Commercial,SUNDRY SUPPLIER,300008783,18.12,
BEIS,The Insolvency Service,15/05/2019,Compensation and Disbursements,Business Service Division,SUNDRY SUPPLIER,300008785,100.00,
BEIS,The Insolvency Service,15/05/2019,Postage,Business Service Division,Tnt Uk Ltd,300008329,47.98, 354 7150 57
BEIS,The Insolvency Service,15/05/2019,Postage,Business Service Division,Tnt Uk Ltd,300008438,33.19, 354 7150 57
BEIS,The Insolvency Service,15/05/2019,Postage,Business Service Division,Tnt Uk Ltd,300008691,77.10, 354 7150 57
BEIS,The Insolvency Service,15/05/2019,Postage,Business Service Division,Tnt Uk Ltd,300008693,147.90, 354 7150 57
BEIS,The Insolvency Service,15/05/2019,Postage,Business Service Division,Tnt Uk Ltd,300008700,225.34, 354 7150 57
BEIS,The Insolvency Service,16/05/2019,Legal Costs,Legal Services Division,18 Red Lion Court Chambers,300008936,1407.96,766793665
BEIS,The Insolvency Service,16/05/2019,Legal Costs,Legal Services Division,18 Red Lion Court Chambers,300008938,48.00,766793665
BEIS,The Insolvency Service,16/05/2019,Legal Costs,Legal Services Division,18 Red Lion Court Chambers,300008939,180.00,766793665
BEIS,The Insolvency Service,16/05/2019,Legal Costs,Legal Services Division,18 Red Lion Court Chambers,300008940,204.60,766793665
BEIS,The Insolvency Service,16/05/2019,Legal Costs,Legal Services Division,18 Red Lion Court Chambers,300008941,144.60,766793665
BEIS,The Insolvency Service,16/05/2019,Legal Costs,Legal Services Division,18 Red Lion Court Chambers,300008942,50.00,766793665
BEIS,The Insolvency Service,16/05/2019,Legal Costs,Legal Services Division,18 Red Lion Court Chambers,300008947,2544.00,766793665
BEIS,The Insolvency Service,16/05/2019,Legal Costs,Legal Services Division,18 Red Lion Court Chambers,300008949,204.60,766793665
BEIS,The Insolvency Service,16/05/2019,Legal Costs,Legal Services Division,5 St Andrews Hill,300008945,180.00,703074472
BEIS,The Insolvency Service,16/05/2019,Legal Costs,Legal Services Division,7 Bedford Row,300008946,342.00,524206970
BEIS,The Insolvency Service,16/05/2019,Accomodation,Finance & Commercial,Blackpool Borough Council,300008977,98.75,
BEIS,The Insolvency Service,16/05/2019,Investigation & Enforcement Costs,Finance & Commercial,Clarke Willmott Solicitors,300008954,226.24,129 9130 60
BEIS,The Insolvency Service,16/05/2019,Storage,Official Receiver Services,Crown Records Management,300008777,928.07,902181658
BEIS,The Insolvency Service,16/05/2019,Storage,Official Receiver Services,Crown Records Management,300008781,36.82,902181658
BEIS,The Insolvency Service,16/05/2019,Storage,Official Receiver Services,File Centre,300008967,291.20,885439474
BEIS,The Insolvency Service,16/05/2019,Insolvency Case Related Costs,Official Receiver Services,Frank G. Bowen Ltd,300008481,85.00,238 5043 66
BEIS,The Insolvency Service,16/05/2019,Insolvency Case Related Costs,Official Receiver Services,Frank G. Bowen Ltd,300008482,1580.00,238 5043 66
BEIS,The Insolvency Service,16/05/2019,Telephones,Information & Technology,Gamma Business Communications Ltd,300008924,3024.40,823820344
BEIS,The Insolvency Service,16/05/2019,Training Costs,Finance & Commercial,Kaplan Financial,300008461,2432.83,
BEIS,The Insolvency Service,16/05/2019,Training Costs,Finance & Commercial,Kaplan Financial,300008461,-1327.00,
BEIS,The Insolvency Service,16/05/2019,Legal Costs,Legal Services Division,Lincoln House Chambers,300008937,4404.00,876676360
BEIS,The Insolvency Service,16/05/2019,Legal Costs,Legal Services Division,Lincoln House Chambers,300008943,240.00,876676360
BEIS,The Insolvency Service,16/05/2019,Legal Costs,Legal Services Division,Lincoln House Chambers,300008944,120.00,876676360
BEIS,The Insolvency Service,16/05/2019,Legal Costs,Investigations & Enforcement Services,Mendip Media Group Ltd ,300008964,94.49,609546425
BEIS,The Insolvency Service,16/05/2019,Storage,Official Receiver Services,Restore Plc,300008597,138.72,843863011
BEIS,The Insolvency Service,16/05/2019,Storage,Official Receiver Services,Restore Plc,300008599,7027.67,843863011
BEIS,The Insolvency Service,16/05/2019,Storage,Official Receiver Services,Restore Plc,300008605,15.00,843863011
BEIS,The Insolvency Service,16/05/2019,Storage,Official Receiver Services,Restore Plc,300008607,138.72,843863011
BEIS,The Insolvency Service,16/05/2019,Legal Costs,Investigations & Enforcement Services,Ricoh Uk Limited,300008950,468.54,
BEIS,The Insolvency Service,16/05/2019,Investigation & Enforcement Costs,Legal Services Division,St Philips Barristers,300008951,785.40,614053968
BEIS,The Insolvency Service,16/05/2019,Investigation & Enforcement Costs,Legal Services Division,St Philips Barristers,300008961,850.92,614053968
BEIS,The Insolvency Service,16/05/2019,Travel and Subsistence,Investigations & Enforcement Services,Staff Payment,900008437,2.40,
BEIS,The Insolvency Service,16/05/2019,Travel and Subsistence,Investigations & Enforcement Services,Staff Payment,900008437,2.80,
BEIS,The Insolvency Service,16/05/2019,Travel and Subsistence,People & Capability,Staff Payment,900008575,5.00,
BEIS,The Insolvency Service,16/05/2019,Travel and Subsistence,People & Capability,Staff Payment,900008575,28.45,
BEIS,The Insolvency Service,16/05/2019,Travel and Subsistence,People & Capability,Staff Payment,900008575,3.00,
BEIS,The Insolvency Service,16/05/2019,Travel and Subsistence,People & Capability,Staff Payment,900008576,5.00,
BEIS,The Insolvency Service,16/05/2019,Travel and Subsistence,Official Receiver Services,Staff Payment,900008580,10.00,
BEIS,The Insolvency Service,16/05/2019,Travel and Subsistence,Official Receiver Services,Staff Payment,900008580,15.00,
BEIS,The Insolvency Service,16/05/2019,Travel and Subsistence,Official Receiver Services,Staff Payment,900008580,4.50,
BEIS,The Insolvency Service,16/05/2019,Travel and Subsistence,Finance & Commercial,Staff Payment,900008635,2.20,
BEIS,The Insolvency Service,16/05/2019,Travel and Subsistence,Finance & Commercial,Staff Payment,900008635,2.80,
BEIS,The Insolvency Service,16/05/2019,Travel and Subsistence,Finance & Commercial,Staff Payment,900008635,5.00,
BEIS,The Insolvency Service,16/05/2019,Travel and Subsistence,Finance & Commercial,Staff Payment,900008635,8.55,
BEIS,The Insolvency Service,16/05/2019,Travel and Subsistence,Official Receiver Services,Staff Payment,900008637,5.00,
BEIS,The Insolvency Service,16/05/2019,Travel and Subsistence,Business Service Division,Staff Payment,900008655,9.00,
BEIS,The Insolvency Service,16/05/2019,Travel and Subsistence,Business Service Division,Staff Payment,900008655,30.00,
BEIS,The Insolvency Service,16/05/2019,Travel and Subsistence,Business Service Division,Staff Payment,900008655,10.00,
BEIS,The Insolvency Service,16/05/2019,Travel and Subsistence,Business Service Division,Staff Payment,900008657,20.00,
BEIS,The Insolvency Service,16/05/2019,Travel and Subsistence,Business Service Division,Staff Payment,900008657,45.00,
BEIS,The Insolvency Service,16/05/2019,Travel and Subsistence,Business Service Division,Staff Payment,900008657,15.00,
BEIS,The Insolvency Service,16/05/2019,Travel and Subsistence,People & Capability,Staff Payment,900008660,5.00,
BEIS,The Insolvency Service,16/05/2019,Travel and Subsistence,People & Capability,Staff Payment,900008660,4.70,
BEIS,The Insolvency Service,16/05/2019,Travel and Subsistence,People & Capability,Staff Payment,900008660,6.30,
BEIS,The Insolvency Service,16/05/2019,Travel and Subsistence,People & Capability,Staff Payment,900008660,8.55,
BEIS,The Insolvency Service,16/05/2019,Travel and Subsistence,People & Capability,Staff Payment,900008677,5.00,
BEIS,The Insolvency Service,16/05/2019,Travel and Subsistence,People & Capability,Staff Payment,900008677,5.00,
BEIS,The Insolvency Service,16/05/2019,Travel and Subsistence,People & Capability,Staff Payment,900008677,13.10,
BEIS,The Insolvency Service,16/05/2019,Travel and Subsistence,People & Capability,Staff Payment,900008677,6.90,
BEIS,The Insolvency Service,16/05/2019,Travel and Subsistence,People & Capability,Staff Payment,900008677,15.00,
BEIS,The Insolvency Service,16/05/2019,Travel and Subsistence,People & Capability,Staff Payment,900008677,10.00,
BEIS,The Insolvency Service,16/05/2019,Travel and Subsistence,People & Capability,Staff Payment,900008677,13.00,
BEIS,The Insolvency Service,16/05/2019,Travel and Subsistence,People & Capability,Staff Payment,900008677,39.00,
BEIS,The Insolvency Service,16/05/2019,Travel and Subsistence,People & Capability,Staff Payment,900008677,43.50,
BEIS,The Insolvency Service,16/05/2019,Travel and Subsistence,People & Capability,Staff Payment,900008680,5.00,
BEIS,The Insolvency Service,16/05/2019,Travel and Subsistence,People & Capability,Staff Payment,900008680,8.99,
BEIS,The Insolvency Service,16/05/2019,Travel and Subsistence,People & Capability,Staff Payment,900008680,5.00,
BEIS,The Insolvency Service,16/05/2019,Travel and Subsistence,People & Capability,Staff Payment,900008680,5.00,
BEIS,The Insolvency Service,16/05/2019,Travel and Subsistence,People & Capability,Staff Payment,900008680,15.00,
BEIS,The Insolvency Service,16/05/2019,Travel and Subsistence,People & Capability,Staff Payment,900008680,11.56,
BEIS,The Insolvency Service,16/05/2019,Legal Costs,Legal Services Division,SUNDRY SUPPLIER,300007858,26075.00,
BEIS,The Insolvency Service,16/05/2019,Investigation & Enforcement Costs,Investigations & Enforcement Services,Womble Bond Dickinson,300008948,4443.35,123 3926 27
BEIS,The Insolvency Service,17/05/2019,Computer & IT Systems,Strategy & Change,Agilisys Ltd,300008789,5280.00,791 7117 13
BEIS,The Insolvency Service,17/05/2019,Accomodation,Finance & Commercial,British Gas Business,300009073,122.18,684 9667 62
BEIS,The Insolvency Service,17/05/2019,Investigation & Enforcement Costs,Investigations & Enforcement Services,Burness Paull & Williamsons Solicitors,300009092,800.00,216 2185 32
BEIS,The Insolvency Service,17/05/2019,Investigation & Enforcement Costs,Investigations & Enforcement Services,Dwf,300008996,9726.00,
BEIS,The Insolvency Service,17/05/2019,Investigation & Enforcement Costs,Investigations & Enforcement Services,Dwf,300009074,6388.20,
BEIS,The Insolvency Service,17/05/2019,Investigation & Enforcement Costs,Investigations & Enforcement Services,Dwf,300009074,80.00,
BEIS,The Insolvency Service,17/05/2019,Investigation & Enforcement Costs,Investigations & Enforcement Services,Dwf,300009074,220.00,
BEIS,The Insolvency Service,17/05/2019,Accomodation,Finance & Commercial,E.On,300009077,579.10,559 0978 89
BEIS,The Insolvency Service,17/05/2019,Investigation & Enforcement Costs,Investigations & Enforcement Services,Gowling Wragge Lawrence Graham  & Co,300009024,928.50,858 698 838
BEIS,The Insolvency Service,17/05/2019,Investigation & Enforcement Costs,Investigations & Enforcement Services,Gowling Wragge Lawrence Graham  & Co,300009025,887.12,858 698 838
BEIS,The Insolvency Service,17/05/2019,Investigation & Enforcement Costs,Investigations & Enforcement Services,Gowling Wragge Lawrence Graham  & Co,300009078,12554.69,858 698 838
BEIS,The Insolvency Service,17/05/2019,Investigation & Enforcement Costs,Investigations & Enforcement Services,Gowling Wragge Lawrence Graham  & Co,300009078,208.00,858 698 838
BEIS,The Insolvency Service,17/05/2019,Legal Costs,Investigations & Enforcement Services,Howes Percival,300009050,2518.50,119 5235 73
BEIS,The Insolvency Service,17/05/2019,Investigation & Enforcement Costs,Investigations & Enforcement Services,Howes Percival,300009060,120.00,119 5235 73
BEIS,The Insolvency Service,17/05/2019,Investigation & Enforcement Costs,Investigations & Enforcement Services,Howes Percival,300009068,3168.00,119 5235 73
BEIS,The Insolvency Service,17/05/2019,Investigation & Enforcement Costs,Investigations & Enforcement Services,Howes Percival,300009068,66.00,119 5235 73
BEIS,The Insolvency Service,17/05/2019,Investigation & Enforcement Costs,Investigations & Enforcement Services,Howes Percival,300009070,23762.70,119 5235 73
BEIS,The Insolvency Service,17/05/2019,Investigation & Enforcement Costs,Investigations & Enforcement Services,Howes Percival,300009071,297.00,119 5235 73
BEIS,The Insolvency Service,17/05/2019,Storage,Official Receiver Services,Purdie Worldwide,300009079,961.71,208569880
BEIS,The Insolvency Service,17/05/2019,Agency Costs,Finance & Commercial,SF RECRUITMENT LTD,300007917,3117.00,141 9659 92
BEIS,The Insolvency Service,17/05/2019,Investigation & Enforcement Costs,Investigations & Enforcement Services,Shepherd & Wedderburn,300009093,368.94, 125 4251 42
BEIS,The Insolvency Service,17/05/2019,Investigation & Enforcement Costs,Investigations & Enforcement Services,Shepherd & Wedderburn,300009094,1800.13, 125 4251 42
BEIS,The Insolvency Service,17/05/2019,Travel and Subsistence,Strategy & Change,Staff Payment,900008134,5.00,
BEIS,The Insolvency Service,17/05/2019,Travel and Subsistence,Strategy & Change,Staff Payment,900008134,11.30,
BEIS,The Insolvency Service,17/05/2019,Travel and Subsistence,Strategy & Change,Staff Payment,900008134,10.50,
BEIS,The Insolvency Service,17/05/2019,Travel and Subsistence,Strategy & Change,Staff Payment,900008134,29.00,
BEIS,The Insolvency Service,17/05/2019,Travel and Subsistence,Official Receiver Services,Staff Payment,900008369,38.30,
BEIS,The Insolvency Service,17/05/2019,Travel and Subsistence,Official Receiver Services,Staff Payment,900008369,38.35,
BEIS,The Insolvency Service,17/05/2019,Travel and Subsistence,Official Receiver Services,Staff Payment,900008369,5.00,
BEIS,The Insolvency Service,17/05/2019,Travel and Subsistence,Official Receiver Services,Staff Payment,900008369,6.00,
BEIS,The Insolvency Service,17/05/2019,Travel and Subsistence,Investigations & Enforcement Services,Staff Payment,900008427,2.40,
BEIS,The Insolvency Service,17/05/2019,Travel and Subsistence,Investigations & Enforcement Services,Staff Payment,900008427,5.00,
BEIS,The Insolvency Service,17/05/2019,Travel and Subsistence,Investigations & Enforcement Services,Staff Payment,900008427,5.00,
BEIS,The Insolvency Service,17/05/2019,Travel and Subsistence,Investigations & Enforcement Services,Staff Payment,900008427,34.20,
BEIS,The Insolvency Service,17/05/2019,Travel and Subsistence,Investigations & Enforcement Services,Staff Payment,900008427,36.90,
BEIS,The Insolvency Service,17/05/2019,Travel and Subsistence,Investigations & Enforcement Services,Staff Payment,900008427,6.00,
BEIS,The Insolvency Service,17/05/2019,Travel and Subsistence,Investigations & Enforcement Services,Staff Payment,900008427,39.60,
BEIS,The Insolvency Service,17/05/2019,Travel and Subsistence,Strategy & Change,Staff Payment,900008456,5.00,
BEIS,The Insolvency Service,17/05/2019,Travel and Subsistence,Strategy & Change,Staff Payment,900008456,10.00,
BEIS,The Insolvency Service,17/05/2019,Travel and Subsistence,Strategy & Change,Staff Payment,900008457,18.50,
BEIS,The Insolvency Service,17/05/2019,Travel and Subsistence,Strategy & Change,Staff Payment,900008457,29.80,
BEIS,The Insolvency Service,17/05/2019,Travel and Subsistence,Legal Services Division,Staff Payment,900008523,12.50,
BEIS,The Insolvency Service,17/05/2019,Travel and Subsistence,Legal Services Division,Staff Payment,900008523,5.00,
BEIS,The Insolvency Service,17/05/2019,Travel and Subsistence,Legal Services Division,Staff Payment,900008523,4.45,
BEIS,The Insolvency Service,17/05/2019,Travel and Subsistence,Legal Services Division,Staff Payment,900008525,1.50,
BEIS,The Insolvency Service,17/05/2019,Travel and Subsistence,Legal Services Division,Staff Payment,900008525,3.00,
BEIS,The Insolvency Service,17/05/2019,Travel and Subsistence,Legal Services Division,Staff Payment,900008525,13.89,
BEIS,The Insolvency Service,17/05/2019,Travel and Subsistence,Legal Services Division,Staff Payment,900008525,5.00,
BEIS,The Insolvency Service,17/05/2019,Travel and Subsistence,Legal Services Division,Staff Payment,900008525,5.00,
BEIS,The Insolvency Service,17/05/2019,Travel and Subsistence,Chief Executive Office,Staff Payment,900008544,3.39,
BEIS,The Insolvency Service,17/05/2019,Travel and Subsistence,Chief Executive Office,Staff Payment,900008596,5.00,
BEIS,The Insolvency Service,17/05/2019,Travel and Subsistence,Business Service Division,Staff Payment,900008602,4.00,
BEIS,The Insolvency Service,17/05/2019,Travel and Subsistence,Business Service Division,Staff Payment,900008602,3.80,
BEIS,The Insolvency Service,17/05/2019,Travel and Subsistence,Business Service Division,Staff Payment,900008602,4.40,
BEIS,The Insolvency Service,17/05/2019,Travel and Subsistence,Business Service Division,Staff Payment,900008602,11.91,
BEIS,The Insolvency Service,17/05/2019,Travel and Subsistence,Business Service Division,Staff Payment,900008602,5.00,
BEIS,The Insolvency Service,17/05/2019,Travel and Subsistence,Business Service Division,Staff Payment,900008602,53.55,
BEIS,The Insolvency Service,17/05/2019,Travel and Subsistence,Business Service Division,Staff Payment,900008602,53.55,
BEIS,The Insolvency Service,17/05/2019,Travel and Subsistence,Business Service Division,Staff Payment,900008603,12.50,
BEIS,The Insolvency Service,17/05/2019,Travel and Subsistence,Strategy & Change,Staff Payment,900008626,2.40,
BEIS,The Insolvency Service,17/05/2019,Travel and Subsistence,Strategy & Change,Staff Payment,900008626,5.00,
BEIS,The Insolvency Service,17/05/2019,Travel and Subsistence,Strategy & Change,Staff Payment,900008626,15.00,
BEIS,The Insolvency Service,17/05/2019,Travel and Subsistence,Strategy & Change,Staff Payment,900008626,5.00,
BEIS,The Insolvency Service,17/05/2019,Travel and Subsistence,Investigations & Enforcement Services,Staff Payment,900008659,5.00,
BEIS,The Insolvency Service,17/05/2019,Travel and Subsistence,Investigations & Enforcement Services,Staff Payment,900008659,5.00,
BEIS,The Insolvency Service,17/05/2019,Travel and Subsistence,Investigations & Enforcement Services,Staff Payment,900008659,4.20,
BEIS,The Insolvency Service,17/05/2019,Travel and Subsistence,Investigations & Enforcement Services,Staff Payment,900008659,15.00,
BEIS,The Insolvency Service,17/05/2019,Travel and Subsistence,Investigations & Enforcement Services,Staff Payment,900008659,4.10,
BEIS,The Insolvency Service,17/05/2019,Travel and Subsistence,Investigations & Enforcement Services,Staff Payment,900008659,4.10,
BEIS,The Insolvency Service,17/05/2019,Travel and Subsistence,Investigations & Enforcement Services,Staff Payment,900008659,15.00,
BEIS,The Insolvency Service,17/05/2019,Travel and Subsistence,Investigations & Enforcement Services,Staff Payment,900008659,2.25,
BEIS,The Insolvency Service,17/05/2019,Travel and Subsistence,Investigations & Enforcement Services,Staff Payment,900008659,146.70,
BEIS,The Insolvency Service,17/05/2019,Travel and Subsistence,Investigations & Enforcement Services,Staff Payment,900008659,2.25,
BEIS,The Insolvency Service,17/05/2019,Travel and Subsistence,Investigations & Enforcement Services,Staff Payment,900008659,2.25,
BEIS,The Insolvency Service,17/05/2019,Travel and Subsistence,Investigations & Enforcement Services,Staff Payment,900008659,12.00,
BEIS,The Insolvency Service,17/05/2019,Travel and Subsistence,Business Service Division,Staff Payment,900008675,4.00,
BEIS,The Insolvency Service,17/05/2019,Travel and Subsistence,Business Service Division,Staff Payment,900008675,5.00,
BEIS,The Insolvency Service,17/05/2019,Travel and Subsistence,Business Service Division,Staff Payment,900008675,3.85,
BEIS,The Insolvency Service,17/05/2019,Travel and Subsistence,Business Service Division,Staff Payment,900008675,4.30,
BEIS,The Insolvency Service,17/05/2019,Travel and Subsistence,Business Service Division,Staff Payment,900008675,8.88,
BEIS,The Insolvency Service,17/05/2019,Travel and Subsistence,Business Service Division,Staff Payment,900008675,35.10,
BEIS,The Insolvency Service,17/05/2019,Travel and Subsistence,Business Service Division,Staff Payment,900008675,35.10,
BEIS,The Insolvency Service,17/05/2019,Travel and Subsistence,Official Receiver Services,Staff Payment,900008691,30.30,
BEIS,The Insolvency Service,17/05/2019,Travel and Subsistence,Official Receiver Services,Staff Payment,900008694,23.85,
BEIS,The Insolvency Service,17/05/2019,Travel and Subsistence,Official Receiver Services,Staff Payment,900008694,23.85,
BEIS,The Insolvency Service,17/05/2019,Travel and Subsistence,Official Receiver Services,Staff Payment,900008695,5.00,
BEIS,The Insolvency Service,17/05/2019,Travel and Subsistence,Official Receiver Services,Staff Payment,900008695,5.00,
BEIS,The Insolvency Service,17/05/2019,Travel and Subsistence,Official Receiver Services,Staff Payment,900008695,13.44,
BEIS,The Insolvency Service,17/05/2019,Travel and Subsistence,Official Receiver Services,Staff Payment,900008695,97.65,
BEIS,The Insolvency Service,17/05/2019,Travel and Subsistence,Official Receiver Services,Staff Payment,900008695,97.65,
BEIS,The Insolvency Service,17/05/2019,Travel and Subsistence,Strategy & Change,Staff Payment,900008701,12.20,
BEIS,The Insolvency Service,17/05/2019,Travel and Subsistence,Strategy & Change,Staff Payment,900008701,5.00,
BEIS,The Insolvency Service,17/05/2019,Travel and Subsistence,Strategy & Change,Staff Payment,900008701,9.65,
BEIS,The Insolvency Service,17/05/2019,Travel and Subsistence,Official Receiver Services,Staff Payment,900008704,5.00,
BEIS,The Insolvency Service,17/05/2019,Travel and Subsistence,Official Receiver Services,Staff Payment,900008704,15.00,
BEIS,The Insolvency Service,17/05/2019,Travel and Subsistence,Official Receiver Services,Staff Payment,900008704,4.99,
BEIS,The Insolvency Service,17/05/2019,Travel and Subsistence,Official Receiver Services,Staff Payment,900008704,20.00,
BEIS,The Insolvency Service,17/05/2019,Travel and Subsistence,Official Receiver Services,Staff Payment,900008707,4.90,
BEIS,The Insolvency Service,17/05/2019,Legal Costs,Investigations & Enforcement Services,Tnt Uk Ltd,300009488,29.06, 354 7150 57
BEIS,The Insolvency Service,20/05/2019,Agency Costs,Finance & Commercial,ALEXANDER MANN SOLUTIONS,300009130,63793.63,7444926120
BEIS,The Insolvency Service,20/05/2019,Legal Costs,Investigations & Enforcement Services,Dwf,300009021,814.68,
BEIS,The Insolvency Service,20/05/2019,Investigation & Enforcement Costs,Investigations & Enforcement Services,Dwf,300009022,19461.50,
BEIS,The Insolvency Service,20/05/2019,Investigation & Enforcement Costs,Investigations & Enforcement Services,Dwf,300009075,50.00,
BEIS,The Insolvency Service,20/05/2019,Investigation & Enforcement Costs,Investigations & Enforcement Services,Dwf,300009075,1653.77,
BEIS,The Insolvency Service,20/05/2019,Legal Costs,Investigations & Enforcement Services,Dwf,300009076,1542.83,
BEIS,The Insolvency Service,20/05/2019,Legal Costs,Investigations & Enforcement Services,Dwf,300009076,89836.87,
BEIS,The Insolvency Service,20/05/2019,Investigation & Enforcement Costs,Investigations & Enforcement Services,Gowling Wragge Lawrence Graham  & Co,300009026,102.50,858 698 838
BEIS,The Insolvency Service,20/05/2019,Investigation & Enforcement Costs,Investigations & Enforcement Services,Gowling Wragge Lawrence Graham  & Co,300009080,29421.86,858 698 838
BEIS,The Insolvency Service,20/05/2019,Investigation & Enforcement Costs,Investigations & Enforcement Services,Gowling Wragge Lawrence Graham  & Co,300009080,100.00,858 698 838
BEIS,The Insolvency Service,20/05/2019,Investigation & Enforcement Costs,Investigations & Enforcement Services,Gowling Wragge Lawrence Graham  & Co,300009080,1445.00,858 698 838
BEIS,The Insolvency Service,20/05/2019,Legal Costs,Investigations & Enforcement Services,Gowling Wragge Lawrence Graham  & Co,300009081,17890.73,858 698 838
BEIS,The Insolvency Service,20/05/2019,Legal Costs,Investigations & Enforcement Services,Gowling Wragge Lawrence Graham  & Co,300009081,10677.00,858 698 838
BEIS,The Insolvency Service,20/05/2019,Computer & IT Systems,Chief Executive Office,Granicus,300009072,674.76,943669974
BEIS,The Insolvency Service,20/05/2019,Legal Costs,Official Receiver Services,Howes Percival,300009027,14740.10,119 5235 73
BEIS,The Insolvency Service,20/05/2019,Legal Costs,Investigations & Enforcement Services,Howes Percival,300009054,5280.00,119 5235 73
BEIS,The Insolvency Service,20/05/2019,Legal Costs,Investigations & Enforcement Services,Howes Percival,300009054,14339.77,119 5235 73
BEIS,The Insolvency Service,20/05/2019,Investigation & Enforcement Costs,Investigations & Enforcement Services,Howes Percival,300009064,35213.18,119 5235 73
BEIS,The Insolvency Service,20/05/2019,Investigation & Enforcement Costs,Investigations & Enforcement Services,Howes Percival,300009064,650.00,119 5235 73
BEIS,The Insolvency Service,20/05/2019,Other Costs,Strategy & Change,Kcom Group Plc,300008242,23980.80,647235137
BEIS,The Insolvency Service,20/05/2019,Legal Costs,Investigations & Enforcement Services,National Crime Agency,300009136,568.00,888 849824
BEIS,The Insolvency Service,20/05/2019,Legal Costs,Investigations & Enforcement Services,National Crime Agency,300009137,142.00,888 849824
BEIS,The Insolvency Service,20/05/2019,Legal Costs,Investigations & Enforcement Services,Pitney Bowes Finance Limited,300009135,25.10,
BEIS,The Insolvency Service,20/05/2019,Agency Costs,Finance & Commercial,SF RECRUITMENT LTD,300007653,3117.00,141 9659 92
BEIS,The Insolvency Service,20/05/2019,Agency Costs,Finance & Commercial,SF RECRUITMENT LTD,300007811,2493.60,141 9659 92
BEIS,The Insolvency Service,20/05/2019,Investigation & Enforcement Costs,Investigations & Enforcement Services,Shepherd & Wedderburn,300009095,1457.09, 125 4251 42
BEIS,The Insolvency Service,20/05/2019,Investigation & Enforcement Costs,Investigations & Enforcement Services,Shepherd & Wedderburn,300009095,127.00, 125 4251 42
BEIS,The Insolvency Service,20/05/2019,Investigation & Enforcement Costs,Investigations & Enforcement Services,Shepherd & Wedderburn,300009095,2318.79, 125 4251 42
BEIS,The Insolvency Service,20/05/2019,Investigation & Enforcement Costs,Investigations & Enforcement Services,Shepherd & Wedderburn,300009095,242.00, 125 4251 42
BEIS,The Insolvency Service,20/05/2019,Computer & IT Systems,Information & Technology,SmartSourcing,300008803,2352.00,788 5078 69
BEIS,The Insolvency Service,20/05/2019,Computer & IT Systems,Information & Technology,SmartSourcing,300008804,2400.00,788 5078 69
BEIS,The Insolvency Service,20/05/2019,Computer & IT Systems,Information & Technology,SmartSourcing,300008806,1984.67,788 5078 69
BEIS,The Insolvency Service,20/05/2019,Computer & IT Systems,Information & Technology,SmartSourcing,300008809,2365.44,788 5078 69
BEIS,The Insolvency Service,20/05/2019,Computer & IT Systems,Information & Technology,SmartSourcing,300008810,3456.00,788 5078 69
BEIS,The Insolvency Service,20/05/2019,Computer & IT Systems,Information & Technology,SmartSourcing,300008811,2956.80,788 5078 69
BEIS,The Insolvency Service,20/05/2019,Computer & IT Systems,Information & Technology,SmartSourcing,300008812,3153.00,788 5078 69
BEIS,The Insolvency Service,20/05/2019,Computer & IT Systems,Information & Technology,SmartSourcing,300008814,3288.00,788 5078 69
BEIS,The Insolvency Service,20/05/2019,Travel and Subsistence,Finance & Commercial,Staff Payment,900007918,5.00,
BEIS,The Insolvency Service,20/05/2019,Travel and Subsistence,Finance & Commercial,Staff Payment,900008154,15.00,
BEIS,The Insolvency Service,20/05/2019,Travel and Subsistence,Finance & Commercial,Staff Payment,900008154,11.20,
BEIS,The Insolvency Service,20/05/2019,Travel and Subsistence,Finance & Commercial,Staff Payment,900008154,11.80,
BEIS,The Insolvency Service,20/05/2019,Travel and Subsistence,Finance & Commercial,Staff Payment,900008155,15.00,
BEIS,The Insolvency Service,20/05/2019,Travel and Subsistence,Official Receiver Services,Staff Payment,900008298,5.00,
BEIS,The Insolvency Service,20/05/2019,Travel and Subsistence,Official Receiver Services,Staff Payment,900008298,3.40,
BEIS,The Insolvency Service,20/05/2019,Travel and Subsistence,Official Receiver Services,Staff Payment,900008298,6.00,
BEIS,The Insolvency Service,20/05/2019,Travel and Subsistence,Official Receiver Services,Staff Payment,900008298,39.15,
BEIS,The Insolvency Service,20/05/2019,Travel and Subsistence,Finance & Commercial,Staff Payment,900008357,5.00,
BEIS,The Insolvency Service,20/05/2019,Travel and Subsistence,Business Service Division,Staff Payment,900008552,4.00,
BEIS,The Insolvency Service,20/05/2019,Travel and Subsistence,Business Service Division,Staff Payment,900008552,1.70,
BEIS,The Insolvency Service,20/05/2019,Travel and Subsistence,Business Service Division,Staff Payment,900008552,1.70,
BEIS,The Insolvency Service,20/05/2019,Travel and Subsistence,Business Service Division,Staff Payment,900008552,7.35,
BEIS,The Insolvency Service,20/05/2019,Travel and Subsistence,Business Service Division,Staff Payment,900008552,5.75,
BEIS,The Insolvency Service,20/05/2019,Travel and Subsistence,Business Service Division,Staff Payment,900008552,15.00,
BEIS,The Insolvency Service,20/05/2019,Travel and Subsistence,Business Service Division,Staff Payment,900008552,5.45,
BEIS,The Insolvency Service,20/05/2019,Travel and Subsistence,Business Service Division,Staff Payment,900008552,2.20,
BEIS,The Insolvency Service,20/05/2019,Travel and Subsistence,Investigations & Enforcement Services,Staff Payment,900008573,7.00,
BEIS,The Insolvency Service,20/05/2019,Travel and Subsistence,Business Service Division,Staff Payment,900008627,7.50,
BEIS,The Insolvency Service,20/05/2019,Travel and Subsistence,Business Service Division,Staff Payment,900008627,3.55,
BEIS,The Insolvency Service,20/05/2019,Travel and Subsistence,Business Service Division,Staff Payment,900008627,4.00,
BEIS,The Insolvency Service,20/05/2019,Travel and Subsistence,Business Service Division,Staff Payment,900008627,4.00,
BEIS,The Insolvency Service,20/05/2019,Travel and Subsistence,Business Service Division,Staff Payment,900008627,3.74,
BEIS,The Insolvency Service,20/05/2019,Travel and Subsistence,Official Receiver Services,Staff Payment,900008628,7.00,
BEIS,The Insolvency Service,20/05/2019,Travel and Subsistence,Official Receiver Services,Staff Payment,900008628,4.59,
BEIS,The Insolvency Service,20/05/2019,Travel and Subsistence,Business Service Division,Staff Payment,900008630,3.74,
BEIS,The Insolvency Service,20/05/2019,Travel and Subsistence,Business Service Division,Staff Payment,900008630,5.00,
BEIS,The Insolvency Service,20/05/2019,Travel and Subsistence,Business Service Division,Staff Payment,900008630,4.25,
BEIS,The Insolvency Service,20/05/2019,Travel and Subsistence,Business Service Division,Staff Payment,900008630,4.50,
BEIS,The Insolvency Service,20/05/2019,Travel and Subsistence,Business Service Division,Staff Payment,900008630,3.69,
BEIS,The Insolvency Service,20/05/2019,Travel and Subsistence,Business Service Division,Staff Payment,900008630,3.00,
BEIS,The Insolvency Service,20/05/2019,Travel and Subsistence,Business Service Division,Staff Payment,900008630,3.00,
BEIS,The Insolvency Service,20/05/2019,Travel and Subsistence,Business Service Division,Staff Payment,900008630,5.00,
BEIS,The Insolvency Service,20/05/2019,Travel and Subsistence,Investigations & Enforcement Services,Staff Payment,900008647,15.00,
BEIS,The Insolvency Service,20/05/2019,Travel and Subsistence,Investigations & Enforcement Services,Staff Payment,900008647,25.00,
BEIS,The Insolvency Service,20/05/2019,Travel and Subsistence,Investigations & Enforcement Services,Staff Payment,900008647,13.50,
BEIS,The Insolvency Service,20/05/2019,Travel and Subsistence,Investigations & Enforcement Services,Staff Payment,900008647,110.25,
BEIS,The Insolvency Service,20/05/2019,Travel and Subsistence,Official Receiver Services,Staff Payment,900008664,12.00,
BEIS,The Insolvency Service,20/05/2019,Travel and Subsistence,Official Receiver Services,Staff Payment,900008664,49.05,
BEIS,The Insolvency Service,20/05/2019,Travel and Subsistence,Official Receiver Services,Staff Payment,900008664,12.00,
BEIS,The Insolvency Service,20/05/2019,Travel and Subsistence,Official Receiver Services,Staff Payment,900008664,12.00,
BEIS,The Insolvency Service,20/05/2019,Travel and Subsistence,Investigations & Enforcement Services,Staff Payment,900008670,15.00,
BEIS,The Insolvency Service,20/05/2019,Travel and Subsistence,Investigations & Enforcement Services,Staff Payment,900008670,4.00,
BEIS,The Insolvency Service,20/05/2019,Travel and Subsistence,Investigations & Enforcement Services,Staff Payment,900008670,4.49,
BEIS,The Insolvency Service,20/05/2019,Travel and Subsistence,Investigations & Enforcement Services,Staff Payment,900008670,17.09,
BEIS,The Insolvency Service,20/05/2019,Travel and Subsistence,Investigations & Enforcement Services,Staff Payment,900008671,4.00,
BEIS,The Insolvency Service,20/05/2019,Travel and Subsistence,Investigations & Enforcement Services,Staff Payment,900008671,15.00,
BEIS,The Insolvency Service,20/05/2019,Travel and Subsistence,Investigations & Enforcement Services,Staff Payment,900008671,4.49,
BEIS,The Insolvency Service,20/05/2019,Travel and Subsistence,Investigations & Enforcement Services,Staff Payment,900008671,17.99,
BEIS,The Insolvency Service,20/05/2019,Travel and Subsistence,Official Receiver Services,Staff Payment,900008676,23.40,
BEIS,The Insolvency Service,20/05/2019,Travel and Subsistence,Official Receiver Services,Staff Payment,900008683,3.20,
BEIS,The Insolvency Service,20/05/2019,Travel and Subsistence,Official Receiver Services,Staff Payment,900008683,5.00,
BEIS,The Insolvency Service,20/05/2019,Travel and Subsistence,Official Receiver Services,Staff Payment,900008683,58.05,
BEIS,The Insolvency Service,20/05/2019,Travel and Subsistence,Official Receiver Services,Staff Payment,900008696,1.50,
BEIS,The Insolvency Service,20/05/2019,Travel and Subsistence,Official Receiver Services,Staff Payment,900008696,3.95,
BEIS,The Insolvency Service,20/05/2019,Travel and Subsistence,Official Receiver Services,Staff Payment,900008696,6.50,
BEIS,The Insolvency Service,20/05/2019,Travel and Subsistence,Business Service Division,Staff Payment,900008705,4.00,
BEIS,The Insolvency Service,20/05/2019,Travel and Subsistence,Business Service Division,Staff Payment,900008705,6.00,
BEIS,The Insolvency Service,20/05/2019,Travel and Subsistence,Official Receiver Services,Staff Payment,900008708,3.60,
BEIS,The Insolvency Service,20/05/2019,Travel and Subsistence,Official Receiver Services,Staff Payment,900008708,15.30,
BEIS,The Insolvency Service,20/05/2019,Travel and Subsistence,Investigations & Enforcement Services,Staff Payment,900008709,4.80,
BEIS,The Insolvency Service,20/05/2019,Travel and Subsistence,Investigations & Enforcement Services,Staff Payment,900008710,4.80,
BEIS,The Insolvency Service,20/05/2019,Travel and Subsistence,Investigations & Enforcement Services,Staff Payment,900008711,4.80,
BEIS,The Insolvency Service,20/05/2019,Travel and Subsistence,Investigations & Enforcement Services,Staff Payment,900008719,2.50,
BEIS,The Insolvency Service,20/05/2019,Travel and Subsistence,Investigations & Enforcement Services,Staff Payment,900008719,5.00,
BEIS,The Insolvency Service,20/05/2019,Travel and Subsistence,Investigations & Enforcement Services,Staff Payment,900008719,14.95,
BEIS,The Insolvency Service,20/05/2019,Travel and Subsistence,Investigations & Enforcement Services,Staff Payment,900008719,5.00,
BEIS,The Insolvency Service,20/05/2019,Travel and Subsistence,Investigations & Enforcement Services,Staff Payment,900008719,5.00,
BEIS,The Insolvency Service,20/05/2019,Travel and Subsistence,Investigations & Enforcement Services,Staff Payment,900008719,2.25,
BEIS,The Insolvency Service,20/05/2019,Travel and Subsistence,Business Service Division,Staff Payment,900008722,1.70,
BEIS,The Insolvency Service,20/05/2019,Travel and Subsistence,Business Service Division,Staff Payment,900008722,1.70,
BEIS,The Insolvency Service,20/05/2019,Travel and Subsistence,Business Service Division,Staff Payment,900008722,20.14,
BEIS,The Insolvency Service,20/05/2019,Travel and Subsistence,Official Receiver Services,Staff Payment,900008723,79.00,
BEIS,The Insolvency Service,20/05/2019,Travel and Subsistence,Business Service Division,Staff Payment,900008724,1.70,
BEIS,The Insolvency Service,20/05/2019,Travel and Subsistence,Business Service Division,Staff Payment,900008724,40.09,
BEIS,The Insolvency Service,20/05/2019,Travel and Subsistence,Strategy & Change,Staff Payment,900008725,4.24,
BEIS,The Insolvency Service,20/05/2019,Travel and Subsistence,Strategy & Change,Staff Payment,900008725,5.00,
BEIS,The Insolvency Service,20/05/2019,Travel and Subsistence,Investigations & Enforcement Services,Staff Payment,900008726,1.40,
BEIS,The Insolvency Service,20/05/2019,Travel and Subsistence,Investigations & Enforcement Services,Staff Payment,900008726,3.30,
BEIS,The Insolvency Service,20/05/2019,Travel and Subsistence,Investigations & Enforcement Services,Staff Payment,900008726,5.00,
BEIS,The Insolvency Service,20/05/2019,Travel and Subsistence,Investigations & Enforcement Services,Staff Payment,900008726,3.65,
BEIS,The Insolvency Service,20/05/2019,Travel and Subsistence,Investigations & Enforcement Services,Staff Payment,900008726,2.40,
BEIS,The Insolvency Service,20/05/2019,Travel and Subsistence,Investigations & Enforcement Services,Staff Payment,900008726,5.00,
BEIS,The Insolvency Service,20/05/2019,Travel and Subsistence,Investigations & Enforcement Services,Staff Payment,900008726,25.00,
BEIS,The Insolvency Service,20/05/2019,Travel and Subsistence,Investigations & Enforcement Services,Staff Payment,900008726,25.00,
BEIS,The Insolvency Service,20/05/2019,Travel and Subsistence,Investigations & Enforcement Services,Staff Payment,900008726,25.00,
BEIS,The Insolvency Service,20/05/2019,Travel and Subsistence,Chief Executive Office,Staff Payment,900008742,10.38,
BEIS,The Insolvency Service,20/05/2019,Travel and Subsistence,Investigations & Enforcement Services,Staff Payment,900008768,61.30,
BEIS,The Insolvency Service,20/05/2019,Travel and Subsistence,Investigations & Enforcement Services,Staff Payment,900008768,4.05,
BEIS,The Insolvency Service,20/05/2019,Travel and Subsistence,Investigations & Enforcement Services,Staff Payment,900008768,5.00,
BEIS,The Insolvency Service,20/05/2019,Travel and Subsistence,Investigations & Enforcement Services,Staff Payment,900008769,5.00,
BEIS,The Insolvency Service,20/05/2019,Travel and Subsistence,Investigations & Enforcement Services,Staff Payment,900008769,9.00,
BEIS,The Insolvency Service,20/05/2019,Travel and Subsistence,Investigations & Enforcement Services,Staff Payment,900008769,25.20,
BEIS,The Insolvency Service,20/05/2019,Travel and Subsistence,Investigations & Enforcement Services,Staff Payment,900008769,72.00,
BEIS,The Insolvency Service,20/05/2019,Investigation & Enforcement Costs,Legal Services Division,SUNDRY SUPPLIER,300009199,-435.52,
BEIS,The Insolvency Service,20/05/2019,Investigation & Enforcement Costs,Legal Services Division,SUNDRY SUPPLIER,300009200,-330.00,
BEIS,The Insolvency Service,20/05/2019,Investigation & Enforcement Costs,Investigations & Enforcement Services,Tlt Llp,300009035,528.00,3574583240
BEIS,The Insolvency Service,20/05/2019,Investigation & Enforcement Costs,Investigations & Enforcement Services,Tlt Llp,300009035,3275.00,3574583240
BEIS,The Insolvency Service,20/05/2019,Legal Costs,Investigations & Enforcement Services,Tlt Llp,300009037,2887.80,3574583240
BEIS,The Insolvency Service,20/05/2019,Legal Costs,Investigations & Enforcement Services,Tlt Llp,300009037,280.00,3574583240
BEIS,The Insolvency Service,20/05/2019,Legal Costs,Investigations & Enforcement Services,Tlt Llp,300009037,5000.00,3574583240
BEIS,The Insolvency Service,20/05/2019,Computer & IT Systems,Information & Technology,Ukcloud Ltd,300008952,9401.32,172 647 982
BEIS,The Insolvency Service,20/05/2019,Investigation & Enforcement Costs,Investigations & Enforcement Services,Womble Bond Dickinson,300009082,20590.60,123 3926 27
BEIS,The Insolvency Service,20/05/2019,Investigation & Enforcement Costs,Investigations & Enforcement Services,Womble Bond Dickinson,300009082,610.18,123 3926 27
BEIS,The Insolvency Service,20/05/2019,Investigation & Enforcement Costs,Investigations & Enforcement Services,Womble Bond Dickinson,300009082,207.71,123 3926 27
BEIS,The Insolvency Service,20/05/2019,Investigation & Enforcement Costs,Investigations & Enforcement Services,Womble Bond Dickinson,300009082,11285.25,123 3926 27
BEIS,The Insolvency Service,20/05/2019,Investigation & Enforcement Costs,Investigations & Enforcement Services,Womble Bond Dickinson,300009082,2026.26,123 3926 27
BEIS,The Insolvency Service,20/05/2019,Legal Costs,Investigations & Enforcement Services,Womble Bond Dickinson,300009082,12509.93,123 3926 27
BEIS,The Insolvency Service,21/05/2019,Computer & IT Systems,Information & Technology,Agilisys Ltd,300008790,10560.00,791 7117 13
BEIS,The Insolvency Service,21/05/2019,Storage,Official Receiver Services,Archive Management Systems Ltd,300009185,724.50,292 5560 40
BEIS,The Insolvency Service,21/05/2019,Legal Costs,People & Capability,Cabinet Office,300007582,952.00,888801080
BEIS,The Insolvency Service,21/05/2019,Consultancy,Information & Technology,Concept Information Technology Ltd,300008477,1020.00,776147892
BEIS,The Insolvency Service,21/05/2019,Legal Costs,Official Receiver Services,Dwf,300009023,9985.46,
BEIS,The Insolvency Service,21/05/2019,Telephones,Information & Technology,Ee Ltd (Air Time),300009184,1200.00,771592016
BEIS,The Insolvency Service,21/05/2019,Postage,Official Receiver Services,GPA (c/o CRBE Ltd),300007794,18124.67,
BEIS,The Insolvency Service,21/05/2019,Accomodation,Official Receiver Services,Posturite (Uk) Ltd.,300009121,382.50,583565114
BEIS,The Insolvency Service,21/05/2019,Postage,Business Service Division,Royal Mail,300007705,13942.00,
BEIS,The Insolvency Service,21/05/2019,Computer & IT Systems,Information & Technology,SmartSourcing,300008654,3720.00,788 5078 69
BEIS,The Insolvency Service,21/05/2019,Computer & IT Systems,Information & Technology,SmartSourcing,300008665,3750.00,788 5078 69
BEIS,The Insolvency Service,21/05/2019,Computer & IT Systems,Information & Technology,SmartSourcing,300008668,3000.00,788 5078 69
BEIS,The Insolvency Service,21/05/2019,Computer & IT Systems,Information & Technology,SmartSourcing,300008673,3000.00,788 5078 69
BEIS,The Insolvency Service,21/05/2019,Computer & IT Systems,Information & Technology,SmartSourcing,300008677,2178.00,788 5078 69
BEIS,The Insolvency Service,21/05/2019,Computer & IT Systems,Information & Technology,SmartSourcing,300008805,2250.00,788 5078 69
BEIS,The Insolvency Service,21/05/2019,Computer & IT Systems,Information & Technology,SmartSourcing,300008807,2400.00,788 5078 69
BEIS,The Insolvency Service,21/05/2019,Computer & IT Systems,Information & Technology,SmartSourcing,300008808,2976.00,788 5078 69
BEIS,The Insolvency Service,21/05/2019,Computer & IT Systems,Information & Technology,SmartSourcing,300008813,2040.00,788 5078 69
BEIS,The Insolvency Service,21/05/2019,Computer & IT Systems,Information & Technology,SmartSourcing,300008815,2904.00,788 5078 69
BEIS,The Insolvency Service,21/05/2019,Computer & IT Systems,Information & Technology,SmartSourcing,300009131,2544.00,788 5078 69
BEIS,The Insolvency Service,21/05/2019,Computer & IT Systems,Information & Technology,SmartSourcing,300009132,5399.18,788 5078 69
BEIS,The Insolvency Service,21/05/2019,Travel and Subsistence,Official Receiver Services,Staff Payment,900008489,70.95,
BEIS,The Insolvency Service,21/05/2019,Travel and Subsistence,Strategy & Change,Staff Payment,900008491,12.95,
BEIS,The Insolvency Service,21/05/2019,Travel and Subsistence,Chief Executive Office,Staff Payment,900008534,10.00,
BEIS,The Insolvency Service,21/05/2019,Travel and Subsistence,Strategy & Change,Staff Payment,900008586,4.00,
BEIS,The Insolvency Service,21/05/2019,Travel and Subsistence,Strategy & Change,Staff Payment,900008586,9.60,
BEIS,The Insolvency Service,21/05/2019,Travel and Subsistence,Strategy & Change,Staff Payment,900008586,14.54,
BEIS,The Insolvency Service,21/05/2019,Travel and Subsistence,Strategy & Change,Staff Payment,900008586,5.00,
BEIS,The Insolvency Service,21/05/2019,Travel and Subsistence,Strategy & Change,Staff Payment,900008588,10.00,
BEIS,The Insolvency Service,21/05/2019,Travel and Subsistence,Strategy & Change,Staff Payment,900008588,4.50,
BEIS,The Insolvency Service,21/05/2019,Travel and Subsistence,Strategy & Change,Staff Payment,900008588,8.00,
BEIS,The Insolvency Service,21/05/2019,Travel and Subsistence,Strategy & Change,Staff Payment,900008588,19.28,
BEIS,The Insolvency Service,21/05/2019,Travel and Subsistence,Investigations & Enforcement Services,Staff Payment,900008611,4.94,
BEIS,The Insolvency Service,21/05/2019,Travel and Subsistence,Investigations & Enforcement Services,Staff Payment,900008611,24.75,
BEIS,The Insolvency Service,21/05/2019,Travel and Subsistence,Investigations & Enforcement Services,Staff Payment,900008641,5.00,
BEIS,The Insolvency Service,21/05/2019,Travel and Subsistence,Investigations & Enforcement Services,Staff Payment,900008641,0.60,
BEIS,The Insolvency Service,21/05/2019,Travel and Subsistence,Investigations & Enforcement Services,Staff Payment,900008641,42.30,
BEIS,The Insolvency Service,21/05/2019,Travel and Subsistence,Investigations & Enforcement Services,Staff Payment,900008641,42.30,
BEIS,The Insolvency Service,21/05/2019,Travel and Subsistence,Investigations & Enforcement Services,Staff Payment,900008641,7.00,
BEIS,The Insolvency Service,21/05/2019,Travel and Subsistence,Investigations & Enforcement Services,Staff Payment,900008641,3.38,
BEIS,The Insolvency Service,21/05/2019,Travel and Subsistence,Investigations & Enforcement Services,Staff Payment,900008641,2.50,
BEIS,The Insolvency Service,21/05/2019,Travel and Subsistence,Investigations & Enforcement Services,Staff Payment,900008663,1.49,
BEIS,The Insolvency Service,21/05/2019,Travel and Subsistence,Investigations & Enforcement Services,Staff Payment,900008663,67.50,
BEIS,The Insolvency Service,21/05/2019,Travel and Subsistence,Investigations & Enforcement Services,Staff Payment,900008663,5.29,
BEIS,The Insolvency Service,21/05/2019,Travel and Subsistence,Investigations & Enforcement Services,Staff Payment,900008663,67.50,
BEIS,The Insolvency Service,21/05/2019,Travel and Subsistence,Investigations & Enforcement Services,Staff Payment,900008673,2.50,
BEIS,The Insolvency Service,21/05/2019,Travel and Subsistence,Investigations & Enforcement Services,Staff Payment,900008673,23.70,
BEIS,The Insolvency Service,21/05/2019,Travel and Subsistence,Investigations & Enforcement Services,Staff Payment,900008673,4.75,
BEIS,The Insolvency Service,21/05/2019,Travel and Subsistence,Investigations & Enforcement Services,Staff Payment,900008673,9.00,
BEIS,The Insolvency Service,21/05/2019,Travel and Subsistence,Investigations & Enforcement Services,Staff Payment,900008673,24.00,
BEIS,The Insolvency Service,21/05/2019,Travel and Subsistence,Business Service Division,Staff Payment,900008702,14.00,
BEIS,The Insolvency Service,21/05/2019,Travel and Subsistence,Strategy & Change,Staff Payment,900008703,4.80,
BEIS,The Insolvency Service,21/05/2019,Travel and Subsistence,Strategy & Change,Staff Payment,900008703,9.75,
BEIS,The Insolvency Service,21/05/2019,Travel and Subsistence,Strategy & Change,Staff Payment,900008703,15.00,
BEIS,The Insolvency Service,21/05/2019,Travel and Subsistence,Strategy & Change,Staff Payment,900008703,5.00,
BEIS,The Insolvency Service,21/05/2019,Travel and Subsistence,Investigations & Enforcement Services,Staff Payment,900008706,4.80,
BEIS,The Insolvency Service,21/05/2019,Travel and Subsistence,Official Receiver Services,Staff Payment,900008712,12.60,
BEIS,The Insolvency Service,21/05/2019,Travel and Subsistence,Official Receiver Services,Staff Payment,900008713,21.15,
BEIS,The Insolvency Service,21/05/2019,Travel and Subsistence,Official Receiver Services,Staff Payment,900008716,57.60,
BEIS,The Insolvency Service,21/05/2019,Travel and Subsistence,Official Receiver Services,Staff Payment,900008720,1.35,
BEIS,The Insolvency Service,21/05/2019,Travel and Subsistence,Strategy & Change,Staff Payment,900008727,6.60,
BEIS,The Insolvency Service,21/05/2019,Travel and Subsistence,Strategy & Change,Staff Payment,900008727,12.90,
BEIS,The Insolvency Service,21/05/2019,Travel and Subsistence,Strategy & Change,Staff Payment,900008727,12.90,
BEIS,The Insolvency Service,21/05/2019,Travel and Subsistence,Strategy & Change,Staff Payment,900008729,4.35,
BEIS,The Insolvency Service,21/05/2019,Travel and Subsistence,Strategy & Change,Staff Payment,900008729,15.00,
BEIS,The Insolvency Service,21/05/2019,Travel and Subsistence,Strategy & Change,Staff Payment,900008729,5.00,
BEIS,The Insolvency Service,21/05/2019,Travel and Subsistence,Strategy & Change,Staff Payment,900008729,5.80,
BEIS,The Insolvency Service,21/05/2019,Travel and Subsistence,Strategy & Change,Staff Payment,900008738,4.30,
BEIS,The Insolvency Service,21/05/2019,Travel and Subsistence,Strategy & Change,Staff Payment,900008738,9.00,
BEIS,The Insolvency Service,21/05/2019,Travel and Subsistence,Strategy & Change,Staff Payment,900008738,12.00,
BEIS,The Insolvency Service,21/05/2019,Travel and Subsistence,Strategy & Change,Staff Payment,900008738,5.30,
BEIS,The Insolvency Service,21/05/2019,Travel and Subsistence,Strategy & Change,Staff Payment,900008738,5.30,
BEIS,The Insolvency Service,21/05/2019,Travel and Subsistence,Strategy & Change,Staff Payment,900008738,9.60,
BEIS,The Insolvency Service,21/05/2019,Travel and Subsistence,Strategy & Change,Staff Payment,900008738,5.30,
BEIS,The Insolvency Service,21/05/2019,Travel and Subsistence,Strategy & Change,Staff Payment,900008738,24.25,
BEIS,The Insolvency Service,21/05/2019,Travel and Subsistence,Strategy & Change,Staff Payment,900008738,92.64,
BEIS,The Insolvency Service,21/05/2019,Travel and Subsistence,Strategy & Change,Staff Payment,900008738,40.00,
BEIS,The Insolvency Service,21/05/2019,Travel and Subsistence,Strategy & Change,Staff Payment,900008738,10.00,
BEIS,The Insolvency Service,21/05/2019,Travel and Subsistence,Finance & Commercial,Staff Payment,900008755,1.00,
BEIS,The Insolvency Service,21/05/2019,Travel and Subsistence,Finance & Commercial,Staff Payment,900008755,5.00,
BEIS,The Insolvency Service,21/05/2019,Travel and Subsistence,People & Capability,Staff Payment,900008756,13.90,
BEIS,The Insolvency Service,21/05/2019,Travel and Subsistence,People & Capability,Staff Payment,900008756,5.00,
BEIS,The Insolvency Service,21/05/2019,Travel and Subsistence,People & Capability,Staff Payment,900008756,10.11,
BEIS,The Insolvency Service,21/05/2019,Travel and Subsistence,Official Receiver Services,Staff Payment,900008763,15.00,
BEIS,The Insolvency Service,21/05/2019,Travel and Subsistence,Official Receiver Services,Staff Payment,900008763,5.00,
BEIS,The Insolvency Service,21/05/2019,Travel and Subsistence,Finance & Commercial,Staff Payment,900008765,3.25,
BEIS,The Insolvency Service,21/05/2019,Travel and Subsistence,Finance & Commercial,Staff Payment,900008765,12.00,
BEIS,The Insolvency Service,21/05/2019,Travel and Subsistence,Finance & Commercial,Staff Payment,900008766,12.00,
BEIS,The Insolvency Service,21/05/2019,Travel and Subsistence,Finance & Commercial,Staff Payment,900008767,5.00,
BEIS,The Insolvency Service,21/05/2019,Travel and Subsistence,Finance & Commercial,Staff Payment,900008767,12.00,
BEIS,The Insolvency Service,21/05/2019,Travel and Subsistence,Investigations & Enforcement Services,Staff Payment,900008770,15.00,
BEIS,The Insolvency Service,21/05/2019,Travel and Subsistence,Investigations & Enforcement Services,Staff Payment,900008770,5.00,
BEIS,The Insolvency Service,21/05/2019,Travel and Subsistence,Investigations & Enforcement Services,Staff Payment,900008771,4.70,
BEIS,The Insolvency Service,21/05/2019,Travel and Subsistence,Investigations & Enforcement Services,Staff Payment,900008771,3.10,
BEIS,The Insolvency Service,21/05/2019,Travel and Subsistence,Investigations & Enforcement Services,Staff Payment,900008771,5.00,
BEIS,The Insolvency Service,21/05/2019,Travel and Subsistence,Investigations & Enforcement Services,Staff Payment,900008771,5.00,
BEIS,The Insolvency Service,21/05/2019,Travel and Subsistence,Finance & Commercial,Staff Payment,900008783,2.70,
BEIS,The Insolvency Service,21/05/2019,Travel and Subsistence,Finance & Commercial,Staff Payment,900008783,2.70,
BEIS,The Insolvency Service,21/05/2019,Travel and Subsistence,Finance & Commercial,Staff Payment,900008783,15.00,
BEIS,The Insolvency Service,21/05/2019,Travel and Subsistence,Finance & Commercial,Staff Payment,900008783,2.70,
BEIS,The Insolvency Service,21/05/2019,Travel and Subsistence,Finance & Commercial,Staff Payment,900008783,2.70,
BEIS,The Insolvency Service,21/05/2019,Travel and Subsistence,Finance & Commercial,Staff Payment,900008783,2.70,
BEIS,The Insolvency Service,21/05/2019,Travel and Subsistence,Finance & Commercial,Staff Payment,900008783,2.70,
BEIS,The Insolvency Service,21/05/2019,Travel and Subsistence,Investigations & Enforcement Services,Staff Payment,900008784,5.00,
BEIS,The Insolvency Service,21/05/2019,Travel and Subsistence,Investigations & Enforcement Services,Staff Payment,900008788,2.74,
BEIS,The Insolvency Service,21/05/2019,Travel and Subsistence,Investigations & Enforcement Services,Staff Payment,900008788,67.50,
BEIS,The Insolvency Service,21/05/2019,Travel and Subsistence,Investigations & Enforcement Services,Staff Payment,900008788,5.29,
BEIS,The Insolvency Service,21/05/2019,Travel and Subsistence,Investigations & Enforcement Services,Staff Payment,900008788,67.50,
BEIS,The Insolvency Service,21/05/2019,Travel and Subsistence,Official Receiver Services,Staff Payment,900008790,25.20,
BEIS,The Insolvency Service,21/05/2019,Travel and Subsistence,Official Receiver Services,Staff Payment,900008793,4.85,
BEIS,The Insolvency Service,21/05/2019,Travel and Subsistence,Official Receiver Services,Staff Payment,900008793,6.50,
BEIS,The Insolvency Service,21/05/2019,Travel and Subsistence,Business Service Division,Staff Payment,900008803,5.00,
BEIS,The Insolvency Service,21/05/2019,Travel and Subsistence,Business Service Division,Staff Payment,900008803,5.00,
BEIS,The Insolvency Service,21/05/2019,Travel and Subsistence,Business Service Division,Staff Payment,900008803,15.00,
BEIS,The Insolvency Service,21/05/2019,Travel and Subsistence,Business Service Division,Staff Payment,900008803,5.00,
BEIS,The Insolvency Service,21/05/2019,Travel and Subsistence,Business Service Division,Staff Payment,900008803,5.00,
BEIS,The Insolvency Service,21/05/2019,Travel and Subsistence,Business Service Division,Staff Payment,900008803,5.00,
BEIS,The Insolvency Service,21/05/2019,Travel and Subsistence,Investigations & Enforcement Services,Staff Payment,900008806,5.00,
BEIS,The Insolvency Service,21/05/2019,Travel and Subsistence,Investigations & Enforcement Services,Staff Payment,900008806,92.70,
BEIS,The Insolvency Service,21/05/2019,Travel and Subsistence,Investigations & Enforcement Services,Staff Payment,900008808,15.00,
BEIS,The Insolvency Service,21/05/2019,Travel and Subsistence,Investigations & Enforcement Services,Staff Payment,900008808,25.00,
BEIS,The Insolvency Service,21/05/2019,Travel and Subsistence,Investigations & Enforcement Services,Staff Payment,900008808,13.50,
BEIS,The Insolvency Service,21/05/2019,Insolvency Case Related Costs,Official Receiver Services,SUNDRY SUPPLIER,300009007,2775.76,
BEIS,The Insolvency Service,21/05/2019,Telephones,Information & Technology,Vodafone - Cable & Wireless Communications,300008899,240.00,569953277
BEIS,The Insolvency Service,21/05/2019,Telephones,Information & Technology,Vodafone - Cable & Wireless Communications,300008900,240.00,569953277
BEIS,The Insolvency Service,21/05/2019,Telephones,Information & Technology,Vodafone - Cable & Wireless Communications,300008902,3069.50,569953277
BEIS,The Insolvency Service,21/05/2019,Telephones,Information & Technology,Vodafone - Cable & Wireless Communications,300008904,945.36,569953277
BEIS,The Insolvency Service,22/05/2019,Training Costs,Finance & Commercial,Capita Business Services Ltd,300009187,297.23,618 1841 40
BEIS,The Insolvency Service,22/05/2019,Insolvency Case Related Costs,Investigations & Enforcement Services,Companies House,300008972,4.00,GD255
BEIS,The Insolvency Service,22/05/2019,Accomodation,Finance & Commercial,GPA (c/o CRBE Ltd),300009253,9973.34,
BEIS,The Insolvency Service,22/05/2019,Training Costs,Finance & Commercial,Kaplan Financial,300009216,440.83,
BEIS,The Insolvency Service,22/05/2019,Computer & IT Systems,Information & Technology,Maintel,300008217,4966.27,
BEIS,The Insolvency Service,22/05/2019,Accomodation,Finance & Commercial,Mapeley STEPS Limited (Chatham Office ),300009463,103.68,769771563
BEIS,The Insolvency Service,22/05/2019,Travel and Subsistence,Finance & Commercial,Staff Payment,900006727,5.00,
BEIS,The Insolvency Service,22/05/2019,Travel and Subsistence,Finance & Commercial,Staff Payment,900006727,4.90,
BEIS,The Insolvency Service,22/05/2019,Travel and Subsistence,Finance & Commercial,Staff Payment,900006727,15.00,
BEIS,The Insolvency Service,22/05/2019,Travel and Subsistence,Finance & Commercial,Staff Payment,900006730,5.00,
BEIS,The Insolvency Service,22/05/2019,Travel and Subsistence,Finance & Commercial,Staff Payment,900006730,5.00,
BEIS,The Insolvency Service,22/05/2019,Travel and Subsistence,Finance & Commercial,Staff Payment,900006730,5.00,
BEIS,The Insolvency Service,22/05/2019,Travel and Subsistence,Finance & Commercial,Staff Payment,900006730,15.00,
BEIS,The Insolvency Service,22/05/2019,Travel and Subsistence,Finance & Commercial,Staff Payment,900006730,14.00,
BEIS,The Insolvency Service,22/05/2019,Travel and Subsistence,Finance & Commercial,Staff Payment,900006730,4.50,
BEIS,The Insolvency Service,22/05/2019,Travel and Subsistence,Finance & Commercial,Staff Payment,900006731,5.00,
BEIS,The Insolvency Service,22/05/2019,Travel and Subsistence,Finance & Commercial,Staff Payment,900006731,5.00,
BEIS,The Insolvency Service,22/05/2019,Travel and Subsistence,Finance & Commercial,Staff Payment,900006731,12.95,
BEIS,The Insolvency Service,22/05/2019,Travel and Subsistence,Finance & Commercial,Staff Payment,900006731,15.00,
BEIS,The Insolvency Service,22/05/2019,Travel and Subsistence,Finance & Commercial,Staff Payment,900006732,5.00,
BEIS,The Insolvency Service,22/05/2019,Travel and Subsistence,Finance & Commercial,Staff Payment,900006732,5.00,
BEIS,The Insolvency Service,22/05/2019,Travel and Subsistence,Finance & Commercial,Staff Payment,900006732,15.00,
BEIS,The Insolvency Service,22/05/2019,Travel and Subsistence,Finance & Commercial,Staff Payment,900006732,15.00,
BEIS,The Insolvency Service,22/05/2019,Travel and Subsistence,Finance & Commercial,Staff Payment,900006733,5.00,
BEIS,The Insolvency Service,22/05/2019,Travel and Subsistence,Finance & Commercial,Staff Payment,900006733,5.00,
BEIS,The Insolvency Service,22/05/2019,Travel and Subsistence,Finance & Commercial,Staff Payment,900006733,15.00,
BEIS,The Insolvency Service,22/05/2019,Travel and Subsistence,Finance & Commercial,Staff Payment,900006733,15.00,
BEIS,The Insolvency Service,22/05/2019,Travel and Subsistence,Official Receiver Services,Staff Payment,900008536,49.50,
BEIS,The Insolvency Service,22/05/2019,Travel and Subsistence,Strategy & Change,Staff Payment,900008615,15.00,
BEIS,The Insolvency Service,22/05/2019,Travel and Subsistence,Strategy & Change,Staff Payment,900008615,5.00,
BEIS,The Insolvency Service,22/05/2019,Travel and Subsistence,Strategy & Change,Staff Payment,900008615,4.40,
BEIS,The Insolvency Service,22/05/2019,Travel and Subsistence,Finance & Commercial,Staff Payment,900008650,5.00,
BEIS,The Insolvency Service,22/05/2019,Travel and Subsistence,Finance & Commercial,Staff Payment,900008650,12.00,
BEIS,The Insolvency Service,22/05/2019,Travel and Subsistence,Finance & Commercial,Staff Payment,900008651,3.25,
BEIS,The Insolvency Service,22/05/2019,Travel and Subsistence,Finance & Commercial,Staff Payment,900008651,12.00,
BEIS,The Insolvency Service,22/05/2019,Travel and Subsistence,Finance & Commercial,Staff Payment,900008652,3.25,
BEIS,The Insolvency Service,22/05/2019,Travel and Subsistence,Finance & Commercial,Staff Payment,900008652,12.00,
BEIS,The Insolvency Service,22/05/2019,Travel and Subsistence,Finance & Commercial,Staff Payment,900008654,5.00,
BEIS,The Insolvency Service,22/05/2019,Travel and Subsistence,Finance & Commercial,Staff Payment,900008654,12.00,
BEIS,The Insolvency Service,22/05/2019,Travel and Subsistence,Business Service Division,Staff Payment,900008662,15.00,
BEIS,The Insolvency Service,22/05/2019,Travel and Subsistence,Business Service Division,Staff Payment,900008662,5.00,
BEIS,The Insolvency Service,22/05/2019,Travel and Subsistence,Official Receiver Services,Staff Payment,900008699,49.50,
BEIS,The Insolvency Service,22/05/2019,Travel and Subsistence,Official Receiver Services,Staff Payment,900008715,11.00,
BEIS,The Insolvency Service,22/05/2019,Travel and Subsistence,Official Receiver Services,Staff Payment,900008717,6.30,
BEIS,The Insolvency Service,22/05/2019,Travel and Subsistence,Business Service Division,Staff Payment,900008721,2.20,
BEIS,The Insolvency Service,22/05/2019,Travel and Subsistence,Business Service Division,Staff Payment,900008721,68.50,
BEIS,The Insolvency Service,22/05/2019,Travel and Subsistence,Business Service Division,Staff Payment,900008721,69.50,
BEIS,The Insolvency Service,22/05/2019,Travel and Subsistence,Business Service Division,Staff Payment,900008760,5.00,
BEIS,The Insolvency Service,22/05/2019,Travel and Subsistence,Business Service Division,Staff Payment,900008760,43.50,
BEIS,The Insolvency Service,22/05/2019,Travel and Subsistence,Business Service Division,Staff Payment,900008760,43.50,
BEIS,The Insolvency Service,22/05/2019,Travel and Subsistence,Finance & Commercial,Staff Payment,900008762,12.00,
BEIS,The Insolvency Service,22/05/2019,Travel and Subsistence,Investigations & Enforcement Services,Staff Payment,900008801,7.00,
BEIS,The Insolvency Service,22/05/2019,Travel and Subsistence,Investigations & Enforcement Services,Staff Payment,900008802,3.90,
BEIS,The Insolvency Service,22/05/2019,Travel and Subsistence,Investigations & Enforcement Services,Staff Payment,900008802,3.00,
BEIS,The Insolvency Service,22/05/2019,Travel and Subsistence,Investigations & Enforcement Services,Staff Payment,900008807,5.00,
BEIS,The Insolvency Service,22/05/2019,Travel and Subsistence,Finance & Commercial,Staff Payment,900008812,3.60,
BEIS,The Insolvency Service,22/05/2019,Travel and Subsistence,Finance & Commercial,Staff Payment,900008812,5.00,
BEIS,The Insolvency Service,22/05/2019,Travel and Subsistence,Finance & Commercial,Staff Payment,900008812,15.00,
BEIS,The Insolvency Service,22/05/2019,Travel and Subsistence,Finance & Commercial,Staff Payment,900008812,15.60,
BEIS,The Insolvency Service,22/05/2019,Travel and Subsistence,Finance & Commercial,Staff Payment,900008813,5.00,
BEIS,The Insolvency Service,22/05/2019,Travel and Subsistence,Finance & Commercial,Staff Payment,900008813,5.00,
BEIS,The Insolvency Service,22/05/2019,Travel and Subsistence,Finance & Commercial,Staff Payment,900008813,3.00,
BEIS,The Insolvency Service,22/05/2019,Travel and Subsistence,Finance & Commercial,Staff Payment,900008813,9.12,
BEIS,The Insolvency Service,22/05/2019,Travel and Subsistence,Finance & Commercial,Staff Payment,900008813,4.70,
BEIS,The Insolvency Service,22/05/2019,Travel and Subsistence,Finance & Commercial,Staff Payment,900008813,10.00,
BEIS,The Insolvency Service,22/05/2019,Travel and Subsistence,Finance & Commercial,Staff Payment,900008813,15.00,
BEIS,The Insolvency Service,22/05/2019,Travel and Subsistence,Finance & Commercial,Staff Payment,900008813,14.50,
BEIS,The Insolvency Service,22/05/2019,Travel and Subsistence,Finance & Commercial,Staff Payment,900008814,4.00,
BEIS,The Insolvency Service,22/05/2019,Travel and Subsistence,Finance & Commercial,Staff Payment,900008814,16.00,
BEIS,The Insolvency Service,22/05/2019,Travel and Subsistence,Finance & Commercial,Staff Payment,900008815,4.99,
BEIS,The Insolvency Service,22/05/2019,Travel and Subsistence,Finance & Commercial,Staff Payment,900008815,8.00,
BEIS,The Insolvency Service,22/05/2019,Travel and Subsistence,Finance & Commercial,Staff Payment,900008816,4.00,
BEIS,The Insolvency Service,22/05/2019,Travel and Subsistence,Finance & Commercial,Staff Payment,900008816,9.45,
BEIS,The Insolvency Service,22/05/2019,Travel and Subsistence,Finance & Commercial,Staff Payment,900008816,5.00,
BEIS,The Insolvency Service,22/05/2019,Travel and Subsistence,Finance & Commercial,Staff Payment,900008816,3.00,
BEIS,The Insolvency Service,22/05/2019,Travel and Subsistence,Finance & Commercial,Staff Payment,900008816,6.49,
BEIS,The Insolvency Service,22/05/2019,Travel and Subsistence,Finance & Commercial,Staff Payment,900008816,1.90,
BEIS,The Insolvency Service,22/05/2019,Travel and Subsistence,Finance & Commercial,Staff Payment,900008816,17.60,
BEIS,The Insolvency Service,22/05/2019,Travel and Subsistence,Finance & Commercial,Staff Payment,900008817,4.25,
BEIS,The Insolvency Service,22/05/2019,Travel and Subsistence,Finance & Commercial,Staff Payment,900008817,3.00,
BEIS,The Insolvency Service,22/05/2019,Travel and Subsistence,Finance & Commercial,Staff Payment,900008817,5.00,
BEIS,The Insolvency Service,22/05/2019,Travel and Subsistence,Finance & Commercial,Staff Payment,900008817,4.80,
BEIS,The Insolvency Service,22/05/2019,Travel and Subsistence,Finance & Commercial,Staff Payment,900008818,18.00,
BEIS,The Insolvency Service,22/05/2019,Travel and Subsistence,Investigations & Enforcement Services,Staff Payment,900008821,5.00,
BEIS,The Insolvency Service,22/05/2019,Travel and Subsistence,Investigations & Enforcement Services,Staff Payment,900008821,14.95,
BEIS,The Insolvency Service,22/05/2019,Travel and Subsistence,Investigations & Enforcement Services,Staff Payment,900008821,4.85,
BEIS,The Insolvency Service,22/05/2019,Travel and Subsistence,Investigations & Enforcement Services,Staff Payment,900008821,4.99,
BEIS,The Insolvency Service,22/05/2019,Travel and Subsistence,Investigations & Enforcement Services,Staff Payment,900008821,3.60,
BEIS,The Insolvency Service,22/05/2019,Travel and Subsistence,Investigations & Enforcement Services,Staff Payment,900008821,3.60,
BEIS,The Insolvency Service,22/05/2019,Travel and Subsistence,Business Service Division,Staff Payment,900008823,2.70,
BEIS,The Insolvency Service,22/05/2019,Travel and Subsistence,Business Service Division,Staff Payment,900008823,5.00,
BEIS,The Insolvency Service,23/05/2019,Telephones,Information & Technology,Bt Telephone Payment Centre,300009254,42514.08,245 7193 48
BEIS,The Insolvency Service,23/05/2019,Training Costs,People & Capability,Capita Business Services Limited,300009271,417.11,618184140
BEIS,The Insolvency Service,23/05/2019,Legal Costs,People & Capability,Government Legal Department,300009255,2362.80,
BEIS,The Insolvency Service,23/05/2019,Accomodation,Finance & Commercial,Jones Lang Lasalle (Amas Ltd),300009290,12648.32,244 1555 76
BEIS,The Insolvency Service,23/05/2019,Computer & IT Systems,Information & Technology,Maintel,300009215,4941.68,
BEIS,The Insolvency Service,23/05/2019,Legal Costs,Investigations & Enforcement Services,Mendip Media Group Ltd ,300009288,1634.05,609546425
BEIS,The Insolvency Service,23/05/2019,Other Costs,Business Service Division,Neopost  Limited,300009183,89753.82,805644140
BEIS,The Insolvency Service,23/05/2019,Computer & IT Systems,Information & Technology,Nine Telecom,300009198,735.00,886132113
BEIS,The Insolvency Service,23/05/2019,Travel and Subsistence,Investigations & Enforcement Services,Staff Payment,900008518,5.00,
BEIS,The Insolvency Service,23/05/2019,Travel and Subsistence,Investigations & Enforcement Services,Staff Payment,900008518,4.00,
BEIS,The Insolvency Service,23/05/2019,Travel and Subsistence,Investigations & Enforcement Services,Staff Payment,900008518,7.65,
BEIS,The Insolvency Service,23/05/2019,Travel and Subsistence,Investigations & Enforcement Services,Staff Payment,900008572,7.00,
BEIS,The Insolvency Service,23/05/2019,Travel and Subsistence,Investigations & Enforcement Services,Staff Payment,900008572,7.00,
BEIS,The Insolvency Service,23/05/2019,Travel and Subsistence,Investigations & Enforcement Services,Staff Payment,900008572,4.95,
BEIS,The Insolvency Service,23/05/2019,Travel and Subsistence,Investigations & Enforcement Services,Staff Payment,900008631,25.00,
BEIS,The Insolvency Service,23/05/2019,Travel and Subsistence,Investigations & Enforcement Services,Staff Payment,900008631,4.85,
BEIS,The Insolvency Service,23/05/2019,Travel and Subsistence,Investigations & Enforcement Services,Staff Payment,900008631,5.00,
BEIS,The Insolvency Service,23/05/2019,Travel and Subsistence,Investigations & Enforcement Services,Staff Payment,900008631,4.84,
BEIS,The Insolvency Service,23/05/2019,Travel and Subsistence,Investigations & Enforcement Services,Staff Payment,900008631,2.99,
BEIS,The Insolvency Service,23/05/2019,Travel and Subsistence,Investigations & Enforcement Services,Staff Payment,900008631,5.00,
BEIS,The Insolvency Service,23/05/2019,Travel and Subsistence,Investigations & Enforcement Services,Staff Payment,900008631,4.80,
BEIS,The Insolvency Service,23/05/2019,Travel and Subsistence,Investigations & Enforcement Services,Staff Payment,900008631,12.50,
BEIS,The Insolvency Service,23/05/2019,Travel and Subsistence,Official Receiver Services,Staff Payment,900008638,22.68,
BEIS,The Insolvency Service,23/05/2019,Travel and Subsistence,Official Receiver Services,Staff Payment,900008638,22.68,
BEIS,The Insolvency Service,23/05/2019,Travel and Subsistence,Official Receiver Services,Staff Payment,900008638,5.00,
BEIS,The Insolvency Service,23/05/2019,Travel and Subsistence,Official Receiver Services,Staff Payment,900008681,5.00,
BEIS,The Insolvency Service,23/05/2019,Travel and Subsistence,Official Receiver Services,Staff Payment,900008681,54.00,
BEIS,The Insolvency Service,23/05/2019,Travel and Subsistence,Official Receiver Services,Staff Payment,900008682,1.50,
BEIS,The Insolvency Service,23/05/2019,Travel and Subsistence,Official Receiver Services,Staff Payment,900008682,2.40,
BEIS,The Insolvency Service,23/05/2019,Travel and Subsistence,Official Receiver Services,Staff Payment,900008682,3.69,
BEIS,The Insolvency Service,23/05/2019,Travel and Subsistence,Official Receiver Services,Staff Payment,900008682,4.70,
BEIS,The Insolvency Service,23/05/2019,Travel and Subsistence,People & Capability,Staff Payment,900008684,4.00,
BEIS,The Insolvency Service,23/05/2019,Travel and Subsistence,People & Capability,Staff Payment,900008684,5.00,
BEIS,The Insolvency Service,23/05/2019,Travel and Subsistence,People & Capability,Staff Payment,900008684,10.00,
BEIS,The Insolvency Service,23/05/2019,Travel and Subsistence,People & Capability,Staff Payment,900008684,10.00,
BEIS,The Insolvency Service,23/05/2019,Travel and Subsistence,People & Capability,Staff Payment,900008689,11.80,
BEIS,The Insolvency Service,23/05/2019,Travel and Subsistence,People & Capability,Staff Payment,900008689,9.00,
BEIS,The Insolvency Service,23/05/2019,Travel and Subsistence,People & Capability,Staff Payment,900008690,10.92,
BEIS,The Insolvency Service,23/05/2019,Travel and Subsistence,People & Capability,Staff Payment,900008692,7.74,
BEIS,The Insolvency Service,23/05/2019,Travel and Subsistence,Business Service Division,Staff Payment,900008693,19.99,
BEIS,The Insolvency Service,23/05/2019,Travel and Subsistence,Business Service Division,Staff Payment,900008718,4.95,
BEIS,The Insolvency Service,23/05/2019,Travel and Subsistence,Business Service Division,Staff Payment,900008718,5.00,
BEIS,The Insolvency Service,23/05/2019,Travel and Subsistence,Business Service Division,Staff Payment,900008718,15.00,
BEIS,The Insolvency Service,23/05/2019,Travel and Subsistence,Business Service Division,Staff Payment,900008718,5.00,
BEIS,The Insolvency Service,23/05/2019,Travel and Subsistence,Business Service Division,Staff Payment,900008718,5.00,
BEIS,The Insolvency Service,23/05/2019,Travel and Subsistence,Business Service Division,Staff Payment,900008718,35.00,
BEIS,The Insolvency Service,23/05/2019,Travel and Subsistence,Business Service Division,Staff Payment,900008718,3.79,
BEIS,The Insolvency Service,23/05/2019,Travel and Subsistence,Business Service Division,Staff Payment,900008718,4.25,
BEIS,The Insolvency Service,23/05/2019,Travel and Subsistence,Business Service Division,Staff Payment,900008718,4.79,
BEIS,The Insolvency Service,23/05/2019,Travel and Subsistence,Business Service Division,Staff Payment,900008718,5.00,
BEIS,The Insolvency Service,23/05/2019,Travel and Subsistence,Business Service Division,Staff Payment,900008718,4.80,
BEIS,The Insolvency Service,23/05/2019,Travel and Subsistence,Business Service Division,Staff Payment,900008718,15.00,
BEIS,The Insolvency Service,23/05/2019,Travel and Subsistence,Business Service Division,Staff Payment,900008718,5.00,
BEIS,The Insolvency Service,23/05/2019,Travel and Subsistence,Business Service Division,Staff Payment,900008718,4.64,
BEIS,The Insolvency Service,23/05/2019,Travel and Subsistence,Business Service Division,Staff Payment,900008718,10.00,
BEIS,The Insolvency Service,23/05/2019,Travel and Subsistence,Business Service Division,Staff Payment,900008718,3.89,
BEIS,The Insolvency Service,23/05/2019,Travel and Subsistence,Business Service Division,Staff Payment,900008718,10.00,
BEIS,The Insolvency Service,23/05/2019,Travel and Subsistence,Business Service Division,Staff Payment,900008718,30.00,
BEIS,The Insolvency Service,23/05/2019,Travel and Subsistence,Official Receiver Services,Staff Payment,900008758,36.00,
BEIS,The Insolvency Service,23/05/2019,Travel and Subsistence,Investigations & Enforcement Services,Staff Payment,900008791,2.26,
BEIS,The Insolvency Service,23/05/2019,Travel and Subsistence,Investigations & Enforcement Services,Staff Payment,900008791,4.90,
BEIS,The Insolvency Service,23/05/2019,Travel and Subsistence,Investigations & Enforcement Services,Staff Payment,900008791,7.80,
BEIS,The Insolvency Service,23/05/2019,Travel and Subsistence,Investigations & Enforcement Services,Staff Payment,900008791,2.20,
BEIS,The Insolvency Service,23/05/2019,Travel and Subsistence,Investigations & Enforcement Services,Staff Payment,900008791,5.00,
BEIS,The Insolvency Service,23/05/2019,Travel and Subsistence,Investigations & Enforcement Services,Staff Payment,900008791,2.70,
BEIS,The Insolvency Service,23/05/2019,Travel and Subsistence,Investigations & Enforcement Services,Staff Payment,900008791,3.50,
BEIS,The Insolvency Service,23/05/2019,Travel and Subsistence,Legal Services Division,Staff Payment,900008797,4.00,
BEIS,The Insolvency Service,23/05/2019,Travel and Subsistence,Legal Services Division,Staff Payment,900008797,5.00,
BEIS,The Insolvency Service,23/05/2019,Travel and Subsistence,Legal Services Division,Staff Payment,900008797,5.00,
BEIS,The Insolvency Service,23/05/2019,Travel and Subsistence,People & Capability,Staff Payment,900008798,16.20,
BEIS,The Insolvency Service,23/05/2019,Travel and Subsistence,People & Capability,Staff Payment,900008799,14.20,
BEIS,The Insolvency Service,23/05/2019,Travel and Subsistence,People & Capability,Staff Payment,900008799,5.00,
BEIS,The Insolvency Service,23/05/2019,Travel and Subsistence,People & Capability,Staff Payment,900008799,8.10,
BEIS,The Insolvency Service,23/05/2019,Travel and Subsistence,People & Capability,Staff Payment,900008799,8.10,
BEIS,The Insolvency Service,23/05/2019,Travel and Subsistence,People & Capability,Staff Payment,900008800,5.00,
BEIS,The Insolvency Service,23/05/2019,Travel and Subsistence,People & Capability,Staff Payment,900008800,1.85,
BEIS,The Insolvency Service,23/05/2019,Travel and Subsistence,People & Capability,Staff Payment,900008800,16.20,
BEIS,The Insolvency Service,23/05/2019,Travel and Subsistence,People & Capability,Staff Payment,900008819,163.00,
BEIS,The Insolvency Service,23/05/2019,Travel and Subsistence,Investigations & Enforcement Services,Staff Payment,900008825,5.00,
BEIS,The Insolvency Service,23/05/2019,Travel and Subsistence,Investigations & Enforcement Services,Staff Payment,900008826,7.00,
BEIS,The Insolvency Service,23/05/2019,Travel and Subsistence,Official Receiver Services,Staff Payment,900008828,1.60,
BEIS,The Insolvency Service,23/05/2019,Travel and Subsistence,Strategy & Change,Staff Payment,900008830,4.80,
BEIS,The Insolvency Service,23/05/2019,Travel and Subsistence,Strategy & Change,Staff Payment,900008830,5.00,
BEIS,The Insolvency Service,23/05/2019,Travel and Subsistence,Investigations & Enforcement Services,Staff Payment,900008833,8.80,
BEIS,The Insolvency Service,23/05/2019,Travel and Subsistence,Investigations & Enforcement Services,Staff Payment,900008835,7.00,
BEIS,The Insolvency Service,23/05/2019,Travel and Subsistence,Investigations & Enforcement Services,Staff Payment,900008841,35.55,
BEIS,The Insolvency Service,23/05/2019,Travel and Subsistence,People & Capability,Staff Payment,900008845,9.80,
BEIS,The Insolvency Service,23/05/2019,Travel and Subsistence,People & Capability,Staff Payment,900008845,12.60,
BEIS,The Insolvency Service,23/05/2019,Travel and Subsistence,Official Receiver Services,Staff Payment,900008861,4.50,
BEIS,The Insolvency Service,23/05/2019,Travel and Subsistence,Official Receiver Services,Staff Payment,900008870,1.50,
BEIS,The Insolvency Service,23/05/2019,Travel and Subsistence,Official Receiver Services,Staff Payment,900008870,3.60,
BEIS,The Insolvency Service,23/05/2019,Accomodation,Finance & Commercial,Water Plus Ltd,300008959,435.66,
BEIS,The Insolvency Service,24/05/2019,Accomodation,Finance & Commercial,Avison Young,300009257,91003.80,657 7195 90
BEIS,The Insolvency Service,24/05/2019,Telephones,Investigations & Enforcement Services,Daisy Communications Ltd,300008956,36.89,
BEIS,The Insolvency Service,24/05/2019,Legal Costs,Investigations & Enforcement Services,Pitney Bowes - Purchasepower,300009352,128.40,
BEIS,The Insolvency Service,24/05/2019,Legal Costs,Investigations & Enforcement Services,Royal Mail,300009341,3.29,243 1700 02
BEIS,The Insolvency Service,24/05/2019,Travel and Subsistence,Strategy & Change,Staff Payment,900008570,9.60,
BEIS,The Insolvency Service,24/05/2019,Travel and Subsistence,Investigations & Enforcement Services,Staff Payment,900008672,44.69,
BEIS,The Insolvency Service,24/05/2019,Travel and Subsistence,Investigations & Enforcement Services,Staff Payment,900008672,5.00,
BEIS,The Insolvency Service,24/05/2019,Travel and Subsistence,Investigations & Enforcement Services,Staff Payment,900008672,10.45,
BEIS,The Insolvency Service,24/05/2019,Travel and Subsistence,Investigations & Enforcement Services,Staff Payment,900008672,3.70,
BEIS,The Insolvency Service,24/05/2019,Travel and Subsistence,Investigations & Enforcement Services,Staff Payment,900008672,4.20,
BEIS,The Insolvency Service,24/05/2019,Travel and Subsistence,Investigations & Enforcement Services,Staff Payment,900008672,17.87,
BEIS,The Insolvency Service,24/05/2019,Travel and Subsistence,Investigations & Enforcement Services,Staff Payment,900008672,4.00,
BEIS,The Insolvency Service,24/05/2019,Travel and Subsistence,Investigations & Enforcement Services,Staff Payment,900008741,4.35,
BEIS,The Insolvency Service,24/05/2019,Travel and Subsistence,Investigations & Enforcement Services,Staff Payment,900008741,23.40,
BEIS,The Insolvency Service,24/05/2019,Travel and Subsistence,Investigations & Enforcement Services,Staff Payment,900008741,15.30,
BEIS,The Insolvency Service,24/05/2019,Travel and Subsistence,Investigations & Enforcement Services,Staff Payment,900008822,2.00,
BEIS,The Insolvency Service,24/05/2019,Travel and Subsistence,Investigations & Enforcement Services,Staff Payment,900008822,14.55,
BEIS,The Insolvency Service,24/05/2019,Travel and Subsistence,Investigations & Enforcement Services,Staff Payment,900008822,4.20,
BEIS,The Insolvency Service,24/05/2019,Travel and Subsistence,Investigations & Enforcement Services,Staff Payment,900008822,4.55,
BEIS,The Insolvency Service,24/05/2019,Travel and Subsistence,Investigations & Enforcement Services,Staff Payment,900008827,5.00,
BEIS,The Insolvency Service,24/05/2019,Travel and Subsistence,Chief Executive Office,Staff Payment,900008849,7.90,
BEIS,The Insolvency Service,24/05/2019,Travel and Subsistence,Chief Executive Office,Staff Payment,900008849,7.90,
BEIS,The Insolvency Service,24/05/2019,Travel and Subsistence,Chief Executive Office,Staff Payment,900008849,15.00,
BEIS,The Insolvency Service,24/05/2019,Travel and Subsistence,Chief Executive Office,Staff Payment,900008849,13.50,
BEIS,The Insolvency Service,24/05/2019,Travel and Subsistence,Chief Executive Office,Staff Payment,900008849,13.50,
BEIS,The Insolvency Service,24/05/2019,Travel and Subsistence,Chief Executive Office,Staff Payment,900008850,15.00,
BEIS,The Insolvency Service,24/05/2019,Travel and Subsistence,Chief Executive Office,Staff Payment,900008850,139.50,
BEIS,The Insolvency Service,24/05/2019,Travel and Subsistence,Chief Executive Office,Staff Payment,900008851,33.40,
BEIS,The Insolvency Service,24/05/2019,Travel and Subsistence,Chief Executive Office,Staff Payment,900008851,5.10,
BEIS,The Insolvency Service,24/05/2019,Travel and Subsistence,Chief Executive Office,Staff Payment,900008851,5.40,
BEIS,The Insolvency Service,24/05/2019,Travel and Subsistence,Chief Executive Office,Staff Payment,900008883,33.40,
BEIS,The Insolvency Service,24/05/2019,Travel and Subsistence,Chief Executive Office,Staff Payment,900008883,5.40,
BEIS,The Insolvency Service,24/05/2019,Travel and Subsistence,Chief Executive Office,Staff Payment,900008883,5.10,
BEIS,The Insolvency Service,24/05/2019,Travel and Subsistence,Finance & Commercial,Staff Payment,900008904,5.00,
BEIS,The Insolvency Service,24/05/2019,Travel and Subsistence,Finance & Commercial,Staff Payment,900008904,5.00,
BEIS,The Insolvency Service,24/05/2019,Travel and Subsistence,Finance & Commercial,Staff Payment,900008904,3.39,
BEIS,The Insolvency Service,24/05/2019,Travel and Subsistence,Finance & Commercial,Staff Payment,900008904,11.35,
BEIS,The Insolvency Service,24/05/2019,Travel and Subsistence,Finance & Commercial,Staff Payment,900008904,5.00,
BEIS,The Insolvency Service,24/05/2019,Travel and Subsistence,Finance & Commercial,Staff Payment,900008906,15.00,
BEIS,The Insolvency Service,24/05/2019,Travel and Subsistence,Finance & Commercial,Staff Payment,900008906,5.00,
BEIS,The Insolvency Service,24/05/2019,Travel and Subsistence,Finance & Commercial,Staff Payment,900008906,2.60,
BEIS,The Insolvency Service,24/05/2019,Travel and Subsistence,Finance & Commercial,Staff Payment,900008906,4.75,
BEIS,The Insolvency Service,24/05/2019,Travel and Subsistence,Finance & Commercial,Staff Payment,900008906,4.45,
BEIS,The Insolvency Service,24/05/2019,Travel and Subsistence,Finance & Commercial,Staff Payment,900008906,10.00,
BEIS,The Insolvency Service,24/05/2019,Accomodation,Finance & Commercial,The Scottish Government,300009237,3259.29,
BEIS,The Insolvency Service,24/05/2019,Accomodation,Finance & Commercial,The Scottish Government,300009237,3358.81,
BEIS,The Insolvency Service,24/05/2019,Accomodation,Finance & Commercial,The Scottish Government,300009237,2632.20,
BEIS,The Insolvency Service,28/05/2019,Travel and Subsistence,Strategy & Change,Staff Payment,900008732,14.50,
BEIS,The Insolvency Service,28/05/2019,Travel and Subsistence,Strategy & Change,Staff Payment,900008732,5.00,
BEIS,The Insolvency Service,28/05/2019,Travel and Subsistence,Strategy & Change,Staff Payment,900008733,2.40,
BEIS,The Insolvency Service,28/05/2019,Travel and Subsistence,Strategy & Change,Staff Payment,900008734,4.80,
BEIS,The Insolvency Service,28/05/2019,Travel and Subsistence,Strategy & Change,Staff Payment,900008734,5.00,
BEIS,The Insolvency Service,28/05/2019,Travel and Subsistence,Strategy & Change,Staff Payment,900008734,12.00,
BEIS,The Insolvency Service,28/05/2019,Travel and Subsistence,Strategy & Change,Staff Payment,900008735,4.80,
BEIS,The Insolvency Service,29/05/2019,Investigation & Enforcement Costs,Legal Services Division,SUNDRY SUPPLIER,300009466,13.90,
BEIS,The Insolvency Service,29/05/2019,Investigation & Enforcement Costs,Legal Services Division,SUNDRY SUPPLIER,300009466,720.80,
BEIS,The Insolvency Service,30/05/2019,Legal Costs,Legal Services Division,6 Kings Bench Walk,300009392,342.00,782 7144 11
BEIS,The Insolvency Service,30/05/2019,Agency Costs,Finance & Commercial,ALEXANDER MANN SOLUTIONS,300009400,58448.71,7444926120
BEIS,The Insolvency Service,30/05/2019,Accomodation,Finance & Commercial,Birmingham City Council,300009391,6150.00,
BEIS,The Insolvency Service,30/05/2019,Legal Costs,People & Capability,Cabinet Office,300007583,10220.00,888801080
BEIS,The Insolvency Service,30/05/2019,Training Costs,Finance & Commercial,Capita Business Services Ltd,300009186,343.97,618 1841 40
BEIS,The Insolvency Service,30/05/2019,Postage,Business Service Division,City Sprint Uk Ltd,300009086,13.65,997 3273 64
BEIS,The Insolvency Service,30/05/2019,Postage,Business Service Division,City Sprint Uk Ltd,300009087,6.43,997 3273 64
BEIS,The Insolvency Service,30/05/2019,Postage,Business Service Division,City Sprint Uk Ltd,300009088,41.50,997 3273 64
BEIS,The Insolvency Service,30/05/2019,Postage,Business Service Division,City Sprint Uk Ltd,300009291,41.74,997 3273 64
BEIS,The Insolvency Service,30/05/2019,Employee Related Costs,People & Capability,Duradiamond Healthcare Limited,300009256,3116.15,806426440
BEIS,The Insolvency Service,30/05/2019,Telephones,Information & Technology,Ee Ltd (Air Time),300009214,2160.00,771592016
BEIS,The Insolvency Service,30/05/2019,Telephones,Information & Technology,Ee Ltd (Air Time),300009398,1200.00,771592016
BEIS,The Insolvency Service,30/05/2019,Postage,Business Service Division,GPA (c/o CRBE Ltd),300006924,20462.62,
BEIS,The Insolvency Service,30/05/2019,Accomodation,Finance & Commercial,HMRC,300009340,3125.29, 888 8481 41
BEIS,The Insolvency Service,30/05/2019,Computer & IT Systems,Strategy & Change,Insight Direct (UK) Ltd,300009349,71783.60,746075129
BEIS,The Insolvency Service,30/05/2019,Computer & IT Systems,Strategy & Change,Insight Direct (UK) Ltd,300009351,5704.12,746075129
BEIS,The Insolvency Service,30/05/2019,Accomodation,Finance & Commercial,Jones Lang Lasalle (Amas Ltd),300009394,198602.89,244 1555 76
BEIS,The Insolvency Service,30/05/2019,Accomodation,Finance & Commercial,Jones Lang Lasalle,300009396,8400.00,245894718
BEIS,The Insolvency Service,30/05/2019,Accomodation,Finance & Commercial,Mapeley STEPS Limited (Chatham Office ),300009362,16621.36,769771563
BEIS,The Insolvency Service,30/05/2019,Other Costs,Business Service Division,Populus,300007920,20800.00,
BEIS,The Insolvency Service,30/05/2019,Investigation & Enforcement Costs,Legal Services Division,Radcliffe Chambers,300009451,864.00,182831693
BEIS,The Insolvency Service,30/05/2019,Postage,Business Service Division,Royal Mail,300009111,103.64,243 1700 02
BEIS,The Insolvency Service,30/05/2019,Postage,Business Service Division,Royal Mail,300009120,99.00,243 1700 02
BEIS,The Insolvency Service,30/05/2019,Postage,Business Service Division,Royal Mail,300009181,18153.00,243 1700 02
BEIS,The Insolvency Service,30/05/2019,Postage,Business Service Division,Royal Mail,300009182,342.00,243 1700 02
BEIS,The Insolvency Service,30/05/2019,Accomodation,Finance & Commercial,Royal Mail,300009195,3300.00,243 1700 02
BEIS,The Insolvency Service,30/05/2019,Agency Costs,Finance & Commercial,SF RECRUITMENT LTD,300008221,2493.60,141 9659 92
BEIS,The Insolvency Service,30/05/2019,Agency Costs,Finance & Commercial,SF RECRUITMENT LTD,300008414,3117.00,141 9659 92
BEIS,The Insolvency Service,30/05/2019,Accomodation,Finance & Commercial,Sheffield City Council,300009395,2100.00,
BEIS,The Insolvency Service,30/05/2019,Computer & IT Systems,Information & Technology,SmartSourcing,300009227,3750.00,788 5078 69
BEIS,The Insolvency Service,30/05/2019,Computer & IT Systems,Information & Technology,SmartSourcing,300009228,14880.00,788 5078 69
BEIS,The Insolvency Service,30/05/2019,Computer & IT Systems,Information & Technology,SmartSourcing,300009229,2940.00,788 5078 69
BEIS,The Insolvency Service,30/05/2019,Computer & IT Systems,Information & Technology,SmartSourcing,300009230,2835.24,788 5078 69
BEIS,The Insolvency Service,30/05/2019,Computer & IT Systems,Information & Technology,SmartSourcing,300009231,3408.72,788 5078 69
BEIS,The Insolvency Service,30/05/2019,Computer & IT Systems,Information & Technology,SmartSourcing,300009232,4110.00,788 5078 69
BEIS,The Insolvency Service,30/05/2019,Computer & IT Systems,Information & Technology,SmartSourcing,300009233,10500.00,788 5078 69
BEIS,The Insolvency Service,30/05/2019,Computer & IT Systems,Information & Technology,SmartSourcing,300009234,3856.56,788 5078 69
BEIS,The Insolvency Service,30/05/2019,Computer & IT Systems,Information & Technology,SmartSourcing,300009235,3000.00,788 5078 69
BEIS,The Insolvency Service,30/05/2019,Computer & IT Systems,Information & Technology,SmartSourcing,300009244,2956.80,788 5078 69
BEIS,The Insolvency Service,30/05/2019,Computer & IT Systems,Information & Technology,SmartSourcing,300009245,4320.00,788 5078 69
BEIS,The Insolvency Service,30/05/2019,Computer & IT Systems,Information & Technology,SmartSourcing,300009246,3153.00,788 5078 69
BEIS,The Insolvency Service,30/05/2019,Computer & IT Systems,Information & Technology,SmartSourcing,300009247,5088.00,788 5078 69
BEIS,The Insolvency Service,30/05/2019,Computer & IT Systems,Information & Technology,SmartSourcing,300009248,3180.00,788 5078 69
BEIS,The Insolvency Service,30/05/2019,Computer & IT Systems,Information & Technology,SmartSourcing,300009249,2550.00,788 5078 69
BEIS,The Insolvency Service,30/05/2019,Computer & IT Systems,Information & Technology,SmartSourcing,300009250,3630.00,788 5078 69
BEIS,The Insolvency Service,30/05/2019,Computer & IT Systems,Information & Technology,SmartSourcing,300009251,3720.00,788 5078 69
BEIS,The Insolvency Service,30/05/2019,Computer & IT Systems,Information & Technology,SmartSourcing,300009252,3000.00,788 5078 69
BEIS,The Insolvency Service,30/05/2019,Computer & IT Systems,Information & Technology,SmartSourcing,300009374,3696.00,788 5078 69
BEIS,The Insolvency Service,30/05/2019,Computer & IT Systems,Information & Technology,SmartSourcing,300009377,2400.00,788 5078 69
BEIS,The Insolvency Service,30/05/2019,Travel and Subsistence,Investigations & Enforcement Services,Staff Payment,900007665,4.09,
BEIS,The Insolvency Service,30/05/2019,Travel and Subsistence,Investigations & Enforcement Services,Staff Payment,900007665,3.00,
BEIS,The Insolvency Service,30/05/2019,Travel and Subsistence,Investigations & Enforcement Services,Staff Payment,900007666,5.00,
BEIS,The Insolvency Service,30/05/2019,Travel and Subsistence,Investigations & Enforcement Services,Staff Payment,900007666,4.29,
BEIS,The Insolvency Service,30/05/2019,Travel and Subsistence,Investigations & Enforcement Services,Staff Payment,900007706,12.49,
BEIS,The Insolvency Service,30/05/2019,Travel and Subsistence,Investigations & Enforcement Services,Staff Payment,900007706,4.08,
BEIS,The Insolvency Service,30/05/2019,Travel and Subsistence,Investigations & Enforcement Services,Staff Payment,900007706,10.80,
BEIS,The Insolvency Service,30/05/2019,Travel and Subsistence,Investigations & Enforcement Services,Staff Payment,900007897,6.30,
BEIS,The Insolvency Service,30/05/2019,Travel and Subsistence,Investigations & Enforcement Services,Staff Payment,900008172,6.30,
BEIS,The Insolvency Service,30/05/2019,Travel and Subsistence,Investigations & Enforcement Services,Staff Payment,900008247,6.30,
BEIS,The Insolvency Service,30/05/2019,Travel and Subsistence,Business Service Division,Staff Payment,900008349,13.50,
BEIS,The Insolvency Service,30/05/2019,Travel and Subsistence,Business Service Division,Staff Payment,900008350,14.00,
BEIS,The Insolvency Service,30/05/2019,Travel and Subsistence,Official Receiver Services,Staff Payment,900008441,71.10,
BEIS,The Insolvency Service,30/05/2019,Travel and Subsistence,Official Receiver Services,Staff Payment,900008441,50.40,
